Workbook

Sheet シート
B2: ■使用方法 | D2: 1) | E2: 右の「入力全クリア」ボタンを押す。
D3: 2) | E3: 色つきセルに入力する（オレンジ色のセルは、クリックするとドロップダウンメニューが出るので、そこから選択）。
D4: 3) | E4: キーボードの[F9]を押して再計算する。
D5: 4) | E5: 右の「ダイス分計算」ボタンを押す。 | AE5: 今回 | AJ5: 1回前 | AO5: 2回前 | AT5: 3回前 | AY5: 4回前 | BD5: 5回前
D6: 5) | E6: キーボードの[F9]を押して再計算する。 | AE6: レベル | AG6: =+V31 -> 100 | AJ6: レベル | AL6: =+V32 -> 0 | AO6: レベル | AQ6: =+V33 -> 0 | AT6: レベル | AV6: =+V34 -> 0 | AY6: レベル | BA6: =+V35 -> 0 | BD6: レベル | BF6: =+V36 -> 0
E7: フェイタル・ウォーリアーズ キャラクターシート | U7: 作製時 | AE7: クラス | AG7: =+W31 -> なし | AJ7: クラス | AL7: =+W32 -> なし | AO7: クラス | AQ7: =+W33 -> なし | AT7: クラス | AV7: =+W34 -> なし | AY7: クラス | BA7: =+W35 -> なし | BD7: クラス | BF7: =+W36 -> なし
U8: （2D8加算値）
C9: 上昇値修正 | E9: 特性値 | G9: 回避値 | H9: 修正 | I9: 上昇値 | J9: 名前 | L9: リベ・ガルフェン（メイナード・シレスタ） | U9: 回避値 | V9: 各欄には数値のみ入力 | AE9: 特性値 | AF9: 乱数分 | AG9: 回避値 | AH9: 上昇値 | AJ9: 特性値 | AK9: 乱数分 | AL9: 回避値 | AM9: 上昇値 | AO9: 特性値 | AP9: 乱数分 | AQ9: 回避値 | AR9: 上昇値 | AT9: 特性値 | AU9: 乱数分 | AV9: 回避値 | AW9: 上昇値 | AY9: 特性値 | AZ9: 乱数分 | BA9: 回避値 | BB9: 上昇値 | BD9: 特性値 | BE9: 乱数分 | BF9: 回避値 | BG9: 上昇値
E10: 筋力 | F10: =+AE10+COUNTA(W$38)*10*L$12+C10*L$12 -> 10251 | G10: =IF(W$38<>"",ROUNDDOWN(F10/10,0),AG10) -> 1025 | H10: ダメージ | I10: =+AH10+COUNTA(W$38)*10+C10 -> 100 | J10: 種族 | L10: 異世界神 | U10: 4 | V10: （「S=」などは入力不要） | AE10: =IF(AG$6=0,0,ROUNDDOWN(RAND()*(10-1)+1,0)-1+AF10+AH10*(AG$6-1)+IF(AL$6=0,(VLOOKUP($L$10,データ!$B$4:$S$13,2,FALSE)+$U10)*10,ROUNDDOWN(AL10/2,0)*10)) -> 10251 | AF10: 205 | AG10: =+IF(VLOOKUP(AG$7,データ!$B$17:$S$47,18,FALSE)+VLOOKUP($L$10,データ!$B$4:$S$13,18,FALSE)>0,ROUNDDOWN(AE10/10,0),MIN(ROUNDDOWN(AE10/10,0),18)) -> 1025 | AH10: =IF(AG$6=0,0,VLOOKUP(AG$7,データ!$B$17:$S$47,10,FALSE)+VLOOKUP($L$10,データ!$B$4:$S$13,10,FALSE)+VLOOKUP($L$14,データ!$B$52:$S$54,10,FALSE)) -> 100 | AJ10: =IF(AL$6=0,0,ROUNDDOWN(RAND()*(10-1)+1,0)-1+AK10+AM10*(AL$6-1)+IF(AQ$6=0,(VLOOKUP($L$10,データ!$B$4:$S$13,2,FALSE)+$U10)*10,ROUNDDOWN(AQ10/2,0)*10)) -> 0 | AL10: =+IF(VLOOKUP(AL$7,データ!$B$17:$S$47,18,FALSE)+VLOOKUP($L$10,データ!$B$4:$S$13,18,FALSE)>0,ROUNDDOWN(AJ10/10,0),MIN(ROUNDDOWN(AJ10/10,0),18)) -> 0 | AM10: =IF(AL$6=0,0,VLOOKUP(AL$7,データ!$B$17:$S$47,10,FALSE)+VLOOKUP($L$10,データ!$B$4:$S$13,10,FALSE)+VLOOKUP($L$14,データ!$B$52:$S$54,10,FALSE)) -> 0 | AO10: =IF(AQ$6=0,0,ROUNDDOWN(RAND()*(10-1)+1,0)-1+AP10+AR10*(AQ$6-1)+IF(AV$6=0,(VLOOKUP($L$10,データ!$B$4:$S$13,2,FALSE)+$U10)*10,ROUNDDOWN(AV10/2,0)*10)) -> 0 | AQ10: =+IF(VLOOKUP(AQ$7,データ!$B$17:$S$47,18,FALSE)+VLOOKUP($L$10,データ!$B$4:$S$13,18,FALSE)>0,ROUNDDOWN(AO10/10,0),MIN(ROUNDDOWN(AO10/10,0),18)) -> 0 | AR10: =IF(AQ$6=0,0,VLOOKUP(AQ$7,データ!$B$17:$S$47,10,FALSE)+VLOOKUP($L$10,データ!$B$4:$S$13,10,FALSE)+VLOOKUP($L$14,データ!$B$52:$S$54,10,FALSE)) -> 0 | AT10: =IF(AV$6=0,0,ROUNDDOWN(RAND()*(10-1)+1,0)-1+AU10+AW10*(AV$6-1)+IF(BA$6=0,(VLOOKUP($L$10,データ!$B$4:$S$13,2,FALSE)+$U10)*10,ROUNDDOWN(BA10/2,0)*10)) -> 0 | AV10: =+IF(VLOOKUP(AV$7,データ!$B$17:$S$47,18,FALSE)+VLOOKUP($L$10,データ!$B$4:$S$13,18,FALSE)>0,ROUNDDOWN(AT10/10,0),MIN(ROUNDDOWN(AT10/10,0),18)) -> 0 | AW10: =IF(AV$6=0,0,VLOOKUP(AV$7,データ!$B$17:$S$47,10,FALSE)+VLOOKUP($L$10,データ!$B$4:$S$13,10,FALSE)+VLOOKUP($L$14,データ!$B$52:$S$54,10,FALSE)) -> 0 | AY10: =IF(BA$6=0,0,ROUNDDOWN(RAND()*(10-1)+1,0)-1+AZ10+BB10*(BA$6-1)+IF(BF$6=0,(VLOOKUP($L$10,データ!$B$4:$S$13,2,FALSE)+$U10)*10,ROUNDDOWN(BF10/2,0)*10)) -> 0 | BA10: =+IF(VLOOKUP(BA$7,データ!$B$17:$S$47,18,FALSE)+VLOOKUP($L$10,データ!$B$4:$S$13,18,FALSE)>0,ROUNDDOWN(AY10/10,0),MIN(ROUNDDOWN(AY10/10,0),18)) -> 0 | BB10: =IF(BA$6=0,0,VLOOKUP(BA$7,データ!$B$17:$S$47,10,FALSE)+VLOOKUP($L$10,データ!$B$4:$S$13,10,FALSE)+VLOOKUP($L$14,データ!$B$52:$S$54,10,FALSE)) -> 0 | BD10: =IF(BF$6=0,0,ROUNDDOWN(RAND()*(10-1)+1,0)-1+BE10+BG10*(BF$6-1)+IF(BK$6=0,(VLOOKUP($L$10,データ!$B$4:$S$13,2,FALSE)+$U10)*10,ROUNDDOWN(BK10/2,0)*10)) -> 0 | BF10: =+IF(VLOOKUP(BF$7,データ!$B$17:$S$47,18,FALSE)+VLOOKUP($L$10,データ!$B$4:$S$13,18,FALSE)>0,ROUNDDOWN(BD10/10,0),MIN(ROUNDDOWN(BD10/10,0),18)) -> 0 | BG10: =IF(BF$6=0,0,VLOOKUP(BF$7,データ!$B$17:$S$47,10,FALSE)+VLOOKUP($L$10,データ!$B$4:$S$13,10,FALSE)+VLOOKUP($L$14,データ!$B$52:$S$54,10,FALSE)) -> 0
H11: =ROUNDDOWN(F10/5,0) -> 2050 | J11: 性別 | L11: 男
E12: 知恵 | F12: =+AE12+COUNTA(W$38)*10*L$12+C12*L$12 -> 10296 | G12: =IF(W$38<>"",ROUNDDOWN(F12/10,0),AG12) -> 1029 | H12: 敵判別 | I12: =+AH12+COUNTA(W$38)*10+C12 -> 101 | J12: レベル | L12: =+V31 -> 100 | U12: 0 | AE12: =IF(AG$6=0,0,ROUNDDOWN(RAND()*(10-1)+1,0)-1+AF12+AH12*(AG$6-1)+IF(AL$6=0,(VLOOKUP($L$10,データ!$B$4:$S$13,3,FALSE)+$U12)*10,ROUNDDOWN(AL12/2,0)*10)) -> 10296 | AF12: 194 | AG12: =+IF(VLOOKUP(AG$7,データ!$B$17:$S$47,18,FALSE)+VLOOKUP($L$10,データ!$B$4:$S$13,18,FALSE)>0,ROUNDDOWN(AE12/10,0),MIN(ROUNDDOWN(AE12/10,0),18)) -> 1029 | AH12: =IF(AG$6=0,0,VLOOKUP(AG$7,データ!$B$17:$S$47,11,FALSE)+VLOOKUP($L$10,データ!$B$4:$S$13,11,FALSE)+VLOOKUP($L$14,データ!$B$52:$S$54,11,FALSE)) -> 101 | AJ12: =IF(AL$6=0,0,ROUNDDOWN(RAND()*(10-1)+1,0)-1+AK12+AM12*(AL$6-1)+IF(AQ$6=0,(VLOOKUP($L$10,データ!$B$4:$S$13,3,FALSE)+$U12)*10,ROUNDDOWN(AQ12/2,0)*10)) -> 0 | AL12: =+IF(VLOOKUP(AL$7,データ!$B$17:$S$47,18,FALSE)+VLOOKUP($L$10,データ!$B$4:$S$13,18,FALSE)>0,ROUNDDOWN(AJ12/10,0),MIN(ROUNDDOWN(AJ12/10,0),18)) -> 0 | AM12: =IF(AL$6=0,0,VLOOKUP(AL$7,データ!$B$17:$S$47,11,FALSE)+VLOOKUP($L$10,データ!$B$4:$S$13,11,FALSE)+VLOOKUP($L$14,データ!$B$52:$S$54,11,FALSE)) -> 0 | AO12: =IF(AQ$6=0,0,ROUNDDOWN(RAND()*(10-1)+1,0)-1+AP12+AR12*(AQ$6-1)+IF(AV$6=0,(VLOOKUP($L$10,データ!$B$4:$S$13,3,FALSE)+$U12)*10,ROUNDDOWN(AV12/2,0)*10)) -> 0 | AQ12: =+IF(VLOOKUP(AQ$7,データ!$B$17:$S$47,18,FALSE)+VLOOKUP($L$10,データ!$B$4:$S$13,18,FALSE)>0,ROUNDDOWN(AO12/10,0),MIN(ROUNDDOWN(AO12/10,0),18)) -> 0 | AR12: =IF(AQ$6=0,0,VLOOKUP(AQ$7,データ!$B$17:$S$47,11,FALSE)+VLOOKUP($L$10,データ!$B$4:$S$13,11,FALSE)+VLOOKUP($L$14,データ!$B$52:$S$54,11,FALSE)) -> 0 | AT12: =IF(AV$6=0,0,ROUNDDOWN(RAND()*(10-1)+1,0)-1+AU12+AW12*(AV$6-1)+IF(BA$6=0,(VLOOKUP($L$10,データ!$B$4:$S$13,3,FALSE)+$U12)*10,ROUNDDOWN(BA12/2,0)*10)) -> 0 | AV12: =+IF(VLOOKUP(AV$7,データ!$B$17:$S$47,18,FALSE)+VLOOKUP($L$10,データ!$B$4:$S$13,18,FALSE)>0,ROUNDDOWN(AT12/10,0),MIN(ROUNDDOWN(AT12/10,0),18)) -> 0 | AW12: =IF(AV$6=0,0,VLOOKUP(AV$7,データ!$B$17:$S$47,11,FALSE)+VLOOKUP($L$10,データ!$B$4:$S$13,11,FALSE)+VLOOKUP($L$14,データ!$B$52:$S$54,11,FALSE)) -> 0 | AY12: =IF(BA$6=0,0,ROUNDDOWN(RAND()*(10-1)+1,0)-1+AZ12+BB12*(BA$6-1)+IF(BF$6=0,(VLOOKUP($L$10,データ!$B$4:$S$13,3,FALSE)+$U12)*10,ROUNDDOWN(BF12/2,0)*10)) -> 0 | BA12: =+IF(VLOOKUP(BA$7,データ!$B$17:$S$47,18,FALSE)+VLOOKUP($L$10,データ!$B$4:$S$13,18,FALSE)>0,ROUNDDOWN(AY12/10,0),MIN(ROUNDDOWN(AY12/10,0),18)) -> 0 | BB12: =IF(BA$6=0,0,VLOOKUP(BA$7,データ!$B$17:$S$47,11,FALSE)+VLOOKUP($L$10,データ!$B$4:$S$13,11,FALSE)+VLOOKUP($L$14,データ!$B$52:$S$54,11,FALSE)) -> 0 | BD12: =IF(BF$6=0,0,ROUNDDOWN(RAND()*(10-1)+1,0)-1+BE12+BG12*(BF$6-1)+IF(BK$6=0,(VLOOKUP($L$10,データ!$B$4:$S$13,3,FALSE)+$U12)*10,ROUNDDOWN(BK12/2,0)*10)) -> 0 | BF12: =+IF(VLOOKUP(BF$7,データ!$B$17:$S$47,18,FALSE)+VLOOKUP($L$10,データ!$B$4:$S$13,18,FALSE)>0,ROUNDDOWN(BD12/10,0),MIN(ROUNDDOWN(BD12/10,0),18)) -> 0 | BG12: =IF(BF$6=0,0,VLOOKUP(BF$7,データ!$B$17:$S$47,11,FALSE)+VLOOKUP($L$10,データ!$B$4:$S$13,11,FALSE)+VLOOKUP($L$14,データ!$B$52:$S$54,11,FALSE)) -> 0
H13: =ROUNDDOWN(F12/5,0) -> 2059 | J13: クラス | L13: =IF(W38<>"",W38,W31) -> なし
E14: 信仰心 | F14: =+AE14+COUNTA(W$38)*10*L$12+C14*L$12 -> 10301 | G14: =IF(W$38<>"",ROUNDDOWN(F14/10,0),AG14) -> 1030 | H14: ディスペル | I14: =+AH14+COUNTA(W$38)*10+C14 -> 101 | J14: 属性 | L14: 悪 | U14: 0 | AE14: =IF(AG$6=0,0,ROUNDDOWN(RAND()*(10-1)+1,0)-1+AF14+AH14*(AG$6-1)+IF(AL$6=0,(VLOOKUP($L$10,データ!$B$4:$S$13,4,FALSE)+$U14)*10,ROUNDDOWN(AL14/2,0)*10)) -> 10301 | AF14: 194 | AG14: =+IF(VLOOKUP(AG$7,データ!$B$17:$S$47,18,FALSE)+VLOOKUP($L$10,データ!$B$4:$S$13,18,FALSE)>0,ROUNDDOWN(AE14/10,0),MIN(ROUNDDOWN(AE14/10,0),18)) -> 1030 | AH14: =IF(AG$6=0,0,VLOOKUP(AG$7,データ!$B$17:$S$47,12,FALSE)+VLOOKUP($L$10,データ!$B$4:$S$13,12,FALSE)+VLOOKUP($L$14,データ!$B$52:$S$54,12,FALSE)) -> 101 | AJ14: =IF(AL$6=0,0,ROUNDDOWN(RAND()*(10-1)+1,0)-1+AK14+AM14*(AL$6-1)+IF(AQ$6=0,(VLOOKUP($L$10,データ!$B$4:$S$13,4,FALSE)+$U14)*10,ROUNDDOWN(AQ14/2,0)*10)) -> 0 | AL14: =+IF(VLOOKUP(AL$7,データ!$B$17:$S$47,18,FALSE)+VLOOKUP($L$10,データ!$B$4:$S$13,18,FALSE)>0,ROUNDDOWN(AJ14/10,0),MIN(ROUNDDOWN(AJ14/10,0),18)) -> 0 | AM14: =IF(AL$6=0,0,VLOOKUP(AL$7,データ!$B$17:$S$47,12,FALSE)+VLOOKUP($L$10,データ!$B$4:$S$13,12,FALSE)+VLOOKUP($L$14,データ!$B$52:$S$54,12,FALSE)) -> 0 | AO14: =IF(AQ$6=0,0,ROUNDDOWN(RAND()*(10-1)+1,0)-1+AP14+AR14*(AQ$6-1)+IF(AV$6=0,(VLOOKUP($L$10,データ!$B$4:$S$13,4,FALSE)+$U14)*10,ROUNDDOWN(AV14/2,0)*10)) -> 0 | AQ14: =+IF(VLOOKUP(AQ$7,データ!$B$17:$S$47,18,FALSE)+VLOOKUP($L$10,データ!$B$4:$S$13,18,FALSE)>0,ROUNDDOWN(AO14/10,0),MIN(ROUNDDOWN(AO14/10,0),18)) -> 0 | AR14: =IF(AQ$6=0,0,VLOOKUP(AQ$7,データ!$B$17:$S$47,12,FALSE)+VLOOKUP($L$10,データ!$B$4:$S$13,12,FALSE)+VLOOKUP($L$14,データ!$B$52:$S$54,12,FALSE)) -> 0 | AT14: =IF(AV$6=0,0,ROUNDDOWN(RAND()*(10-1)+1,0)-1+AU14+AW14*(AV$6-1)+IF(BA$6=0,(VLOOKUP($L$10,データ!$B$4:$S$13,4,FALSE)+$U14)*10,ROUNDDOWN(BA14/2,0)*10)) -> 0 | AV14: =+IF(VLOOKUP(AV$7,データ!$B$17:$S$47,18,FALSE)+VLOOKUP($L$10,データ!$B$4:$S$13,18,FALSE)>0,ROUNDDOWN(AT14/10,0),MIN(ROUNDDOWN(AT14/10,0),18)) -> 0 | AW14: =IF(AV$6=0,0,VLOOKUP(AV$7,データ!$B$17:$S$47,12,FALSE)+VLOOKUP($L$10,データ!$B$4:$S$13,12,FALSE)+VLOOKUP($L$14,データ!$B$52:$S$54,12,FALSE)) -> 0 | AY14: =IF(BA$6=0,0,ROUNDDOWN(RAND()*(10-1)+1,0)-1+AZ14+BB14*(BA$6-1)+IF(BF$6=0,(VLOOKUP($L$10,データ!$B$4:$S$13,4,FALSE)+$U14)*10,ROUNDDOWN(BF14/2,0)*10)) -> 0 | BA14: =+IF(VLOOKUP(BA$7,データ!$B$17:$S$47,18,FALSE)+VLOOKUP($L$10,データ!$B$4:$S$13,18,FALSE)>0,ROUNDDOWN(AY14/10,0),MIN(ROUNDDOWN(AY14/10,0),18)) -> 0 | BB14: =IF(BA$6=0,0,VLOOKUP(BA$7,データ!$B$17:$S$47,12,FALSE)+VLOOKUP($L$10,データ!$B$4:$S$13,12,FALSE)+VLOOKUP($L$14,データ!$B$52:$S$54,12,FALSE)) -> 0 | BD14: =IF(BF$6=0,0,ROUNDDOWN(RAND()*(10-1)+1,0)-1+BE14+BG14*(BF$6-1)+IF(BK$6=0,(VLOOKUP($L$10,データ!$B$4:$S$13,4,FALSE)+$U14)*10,ROUNDDOWN(BK14/2,0)*10)) -> 0 | BF14: =+IF(VLOOKUP(BF$7,データ!$B$17:$S$47,18,FALSE)+VLOOKUP($L$10,データ!$B$4:$S$13,18,FALSE)>0,ROUNDDOWN(BD14/10,0),MIN(ROUNDDOWN(BD14/10,0),18)) -> 0 | BG14: =IF(BF$6=0,0,VLOOKUP(BF$7,データ!$B$17:$S$47,12,FALSE)+VLOOKUP($L$10,データ!$B$4:$S$13,12,FALSE)+VLOOKUP($L$14,データ!$B$52:$S$54,12,FALSE)) -> 0
H15: =ROUNDDOWN(F14/5,0) -> 2060 | J15: 年齢 | L15: 不明
E16: 精神力 | F16: =+AE16+COUNTA(W$38)*10*L$12+C16*L$12 -> 10229 | G16: =IF(W$38<>"",ROUNDDOWN(F16/10,0),AG16) -> 1022 | H16: MP | I16: =+AH16+COUNTA(W$38)*10+C16 -> 100 | J16: 居住地 | L16: 異世界 | U16: 1 | AE16: =IF(AG$6=0,0,ROUNDDOWN(RAND()*(10-1)+1,0)-1+AF16+AH16*(AG$6-1)+IF(AL$6=0,(VLOOKUP($L$10,データ!$B$4:$S$13,5,FALSE)+$U16)*10,ROUNDDOWN(AL16/2,0)*10)) -> 10229 | AF16: 216 | AG16: =+IF(VLOOKUP(AG$7,データ!$B$17:$S$47,18,FALSE)+VLOOKUP($L$10,データ!$B$4:$S$13,18,FALSE)>0,ROUNDDOWN(AE16/10,0),MIN(ROUNDDOWN(AE16/10,0),18)) -> 1022 | AH16: =IF(AG$6=0,0,VLOOKUP(AG$7,データ!$B$17:$S$47,13,FALSE)+VLOOKUP($L$10,データ!$B$4:$S$13,13,FALSE)+VLOOKUP($L$14,データ!$B$52:$S$54,13,FALSE)) -> 100 | AJ16: =IF(AL$6=0,0,ROUNDDOWN(RAND()*(10-1)+1,0)-1+AK16+AM16*(AL$6-1)+IF(AQ$6=0,(VLOOKUP($L$10,データ!$B$4:$S$13,5,FALSE)+$U16)*10,ROUNDDOWN(AQ16/2,0)*10)) -> 0 | AL16: =+IF(VLOOKUP(AL$7,データ!$B$17:$S$47,18,FALSE)+VLOOKUP($L$10,データ!$B$4:$S$13,18,FALSE)>0,ROUNDDOWN(AJ16/10,0),MIN(ROUNDDOWN(AJ16/10,0),18)) -> 0 | AM16: =IF(AL$6=0,0,VLOOKUP(AL$7,データ!$B$17:$S$47,13,FALSE)+VLOOKUP($L$10,データ!$B$4:$S$13,13,FALSE)+VLOOKUP($L$14,データ!$B$52:$S$54,13,FALSE)) -> 0 | AO16: =IF(AQ$6=0,0,ROUNDDOWN(RAND()*(10-1)+1,0)-1+AP16+AR16*(AQ$6-1)+IF(AV$6=0,(VLOOKUP($L$10,データ!$B$4:$S$13,5,FALSE)+$U16)*10,ROUNDDOWN(AV16/2,0)*10)) -> 0 | AQ16: =+IF(VLOOKUP(AQ$7,データ!$B$17:$S$47,18,FALSE)+VLOOKUP($L$10,データ!$B$4:$S$13,18,FALSE)>0,ROUNDDOWN(AO16/10,0),MIN(ROUNDDOWN(AO16/10,0),18)) -> 0 | AR16: =IF(AQ$6=0,0,VLOOKUP(AQ$7,データ!$B$17:$S$47,13,FALSE)+VLOOKUP($L$10,データ!$B$4:$S$13,13,FALSE)+VLOOKUP($L$14,データ!$B$52:$S$54,13,FALSE)) -> 0 | AT16: =IF(AV$6=0,0,ROUNDDOWN(RAND()*(10-1)+1,0)-1+AU16+AW16*(AV$6-1)+IF(BA$6=0,(VLOOKUP($L$10,データ!$B$4:$S$13,5,FALSE)+$U16)*10,ROUNDDOWN(BA16/2,0)*10)) -> 0 | AV16: =+IF(VLOOKUP(AV$7,データ!$B$17:$S$47,18,FALSE)+VLOOKUP($L$10,データ!$B$4:$S$13,18,FALSE)>0,ROUNDDOWN(AT16/10,0),MIN(ROUNDDOWN(AT16/10,0),18)) -> 0 | AW16: =IF(AV$6=0,0,VLOOKUP(AV$7,データ!$B$17:$S$47,13,FALSE)+VLOOKUP($L$10,データ!$B$4:$S$13,13,FALSE)+VLOOKUP($L$14,データ!$B$52:$S$54,13,FALSE)) -> 0 | AY16: =IF(BA$6=0,0,ROUNDDOWN(RAND()*(10-1)+1,0)-1+AZ16+BB16*(BA$6-1)+IF(BF$6=0,(VLOOKUP($L$10,データ!$B$4:$S$13,5,FALSE)+$U16)*10,ROUNDDOWN(BF16/2,0)*10)) -> 0 | BA16: =+IF(VLOOKUP(BA$7,データ!$B$17:$S$47,18,FALSE)+VLOOKUP($L$10,データ!$B$4:$S$13,18,FALSE)>0,ROUNDDOWN(AY16/10,0),MIN(ROUNDDOWN(AY16/10,0),18)) -> 0 | BB16: =IF(BA$6=0,0,VLOOKUP(BA$7,データ!$B$17:$S$47,13,FALSE)+VLOOKUP($L$10,データ!$B$4:$S$13,13,FALSE)+VLOOKUP($L$14,データ!$B$52:$S$54,13,FALSE)) -> 0 | BD16: =IF(BF$6=0,0,ROUNDDOWN(RAND()*(10-1)+1,0)-1+BE16+BG16*(BF$6-1)+IF(BK$6=0,(VLOOKUP($L$10,データ!$B$4:$S$13,5,FALSE)+$U16)*10,ROUNDDOWN(BK16/2,0)*10)) -> 0 | BF16: =+IF(VLOOKUP(BF$7,データ!$B$17:$S$47,18,FALSE)+VLOOKUP($L$10,データ!$B$4:$S$13,18,FALSE)>0,ROUNDDOWN(BD16/10,0),MIN(ROUNDDOWN(BD16/10,0),18)) -> 0 | BG16: =IF(BF$6=0,0,VLOOKUP(BF$7,データ!$B$17:$S$47,13,FALSE)+VLOOKUP($L$10,データ!$B$4:$S$13,13,FALSE)+VLOOKUP($L$14,データ!$B$52:$S$54,13,FALSE)) -> 0
H17: =ROUNDDOWN(F16/2,0) -> 5114 | J17: 精霊魔術 | L17: =IF(AC54>36,"全て("&AC54&")",IF(AC50<>0,AB50&"("&AC50&") ","")&IF(AC51<>0,AB51&"("&AC51&") ","")&IF(AC52<>0,AB52&"("&AC52&") ","")&IF(AC53<>0,AB53&"("&AC53&")","")) -> 
E18: 生命力 | F18: =+AE18+COUNTA(W$38)*10*L$12+C18*L$12 -> 10235 | G18: =IF(W$38<>"",ROUNDDOWN(F18/10,0),AG18) -> 1023 | H18: HP | I18: =+AH18+COUNTA(W$38)*10+C18 -> 100 | L18: =+ROUNDDOWN(F12/10,0) -> 1029 | U18: 4 | AE18: =IF(AG$6=0,0,ROUNDDOWN(RAND()*(10-1)+1,0)-1+AF18+AH18*(AG$6-1)+IF(AL$6=0,(VLOOKUP($L$10,データ!$B$4:$S$13,6,FALSE)+$U18)*10,ROUNDDOWN(AL18/2,0)*10)) -> 10235 | AF18: 195 | AG18: =+IF(VLOOKUP(AG$7,データ!$B$17:$S$47,18,FALSE)+VLOOKUP($L$10,データ!$B$4:$S$13,18,FALSE)>0,ROUNDDOWN(AE18/10,0),MIN(ROUNDDOWN(AE18/10,0),18)) -> 1023 | AH18: =IF(AG$6=0,0,VLOOKUP(AG$7,データ!$B$17:$S$47,14,FALSE)+VLOOKUP($L$10,データ!$B$4:$S$13,14,FALSE)+VLOOKUP($L$14,データ!$B$52:$S$54,14,FALSE)) -> 100 | AJ18: =IF(AL$6=0,0,ROUNDDOWN(RAND()*(10-1)+1,0)-1+AK18+AM18*(AL$6-1)+IF(AQ$6=0,(VLOOKUP($L$10,データ!$B$4:$S$13,6,FALSE)+$U18)*10,ROUNDDOWN(AQ18/2,0)*10)) -> 0 | AL18: =+IF(VLOOKUP(AL$7,データ!$B$17:$S$47,18,FALSE)+VLOOKUP($L$10,データ!$B$4:$S$13,18,FALSE)>0,ROUNDDOWN(AJ18/10,0),MIN(ROUNDDOWN(AJ18/10,0),18)) -> 0 | AM18: =IF(AL$6=0,0,VLOOKUP(AL$7,データ!$B$17:$S$47,14,FALSE)+VLOOKUP($L$10,データ!$B$4:$S$13,14,FALSE)+VLOOKUP($L$14,データ!$B$52:$S$54,14,FALSE)) -> 0 | AO18: =IF(AQ$6=0,0,ROUNDDOWN(RAND()*(10-1)+1,0)-1+AP18+AR18*(AQ$6-1)+IF(AV$6=0,(VLOOKUP($L$10,データ!$B$4:$S$13,6,FALSE)+$U18)*10,ROUNDDOWN(AV18/2,0)*10)) -> 0 | AQ18: =+IF(VLOOKUP(AQ$7,データ!$B$17:$S$47,18,FALSE)+VLOOKUP($L$10,データ!$B$4:$S$13,18,FALSE)>0,ROUNDDOWN(AO18/10,0),MIN(ROUNDDOWN(AO18/10,0),18)) -> 0 | AR18: =IF(AQ$6=0,0,VLOOKUP(AQ$7,データ!$B$17:$S$47,14,FALSE)+VLOOKUP($L$10,データ!$B$4:$S$13,14,FALSE)+VLOOKUP($L$14,データ!$B$52:$S$54,14,FALSE)) -> 0 | AT18: =IF(AV$6=0,0,ROUNDDOWN(RAND()*(10-1)+1,0)-1+AU18+AW18*(AV$6-1)+IF(BA$6=0,(VLOOKUP($L$10,データ!$B$4:$S$13,6,FALSE)+$U18)*10,ROUNDDOWN(BA18/2,0)*10)) -> 0 | AV18: =+IF(VLOOKUP(AV$7,データ!$B$17:$S$47,18,FALSE)+VLOOKUP($L$10,データ!$B$4:$S$13,18,FALSE)>0,ROUNDDOWN(AT18/10,0),MIN(ROUNDDOWN(AT18/10,0),18)) -> 0 | AW18: =IF(AV$6=0,0,VLOOKUP(AV$7,データ!$B$17:$S$47,14,FALSE)+VLOOKUP($L$10,データ!$B$4:$S$13,14,FALSE)+VLOOKUP($L$14,データ!$B$52:$S$54,14,FALSE)) -> 0 | AY18: =IF(BA$6=0,0,ROUNDDOWN(RAND()*(10-1)+1,0)-1+AZ18+BB18*(BA$6-1)+IF(BF$6=0,(VLOOKUP($L$10,データ!$B$4:$S$13,6,FALSE)+$U18)*10,ROUNDDOWN(BF18/2,0)*10)) -> 0 | BA18: =+IF(VLOOKUP(BA$7,データ!$B$17:$S$47,18,FALSE)+VLOOKUP($L$10,データ!$B$4:$S$13,18,FALSE)>0,ROUNDDOWN(AY18/10,0),MIN(ROUNDDOWN(AY18/10,0),18)) -> 0 | BB18: =IF(BA$6=0,0,VLOOKUP(BA$7,データ!$B$17:$S$47,14,FALSE)+VLOOKUP($L$10,データ!$B$4:$S$13,14,FALSE)+VLOOKUP($L$14,データ!$B$52:$S$54,14,FALSE)) -> 0 | BD18: =IF(BF$6=0,0,ROUNDDOWN(RAND()*(10-1)+1,0)-1+BE18+BG18*(BF$6-1)+IF(BK$6=0,(VLOOKUP($L$10,データ!$B$4:$S$13,6,FALSE)+$U18)*10,ROUNDDOWN(BK18/2,0)*10)) -> 0 | BF18: =+IF(VLOOKUP(BF$7,データ!$B$17:$S$47,18,FALSE)+VLOOKUP($L$10,データ!$B$4:$S$13,18,FALSE)>0,ROUNDDOWN(BD18/10,0),MIN(ROUNDDOWN(BD18/10,0),18)) -> 0 | BG18: =IF(BF$6=0,0,VLOOKUP(BF$7,データ!$B$17:$S$47,14,FALSE)+VLOOKUP($L$10,データ!$B$4:$S$13,14,FALSE)+VLOOKUP($L$14,データ!$B$52:$S$54,14,FALSE)) -> 0
H19: =ROUNDDOWN(F18/2,0) -> 5117 | J19: 神聖魔術 | L19: =IF(AC55>36,"全て("&AC55&")",IF(AC55<>0,AB55&"("&AC55&") ","")&IF(AC56<>0,AB56&"("&AC56&") ","")&IF(AC57<>0,AB57&"("&AC57&") ","")&IF(AC58<>0,AB58&"("&AC58&")","")) -> 
E20: 敏捷度 | F20: =+AE20+COUNTA(W$38)*10*L$12+C20*L$12 -> 10217 | G20: =IF(W$38<>"",ROUNDDOWN(F20/10,0),AG20) -> 1021 | H20: 命中率 | I20: =+AH20+COUNTA(W$38)*10+C20 -> 100 | L20: =+ROUNDDOWN(F14/10,0) -> 1030 | U20: 2 | AE20: =IF(AG$6=0,0,ROUNDDOWN(RAND()*(10-1)+1,0)-1+AF20+AH20*(AG$6-1)+IF(AL$6=0,(VLOOKUP($L$10,データ!$B$4:$S$13,7,FALSE)+$U20)*10,ROUNDDOWN(AL20/2,0)*10)) -> 10217 | AF20: 193 | AG20: =+IF(VLOOKUP(AG$7,データ!$B$17:$S$47,18,FALSE)+VLOOKUP($L$10,データ!$B$4:$S$13,18,FALSE)>0,ROUNDDOWN(AE20/10,0),MIN(ROUNDDOWN(AE20/10,0),18)) -> 1021 | AH20: =IF(AG$6=0,0,VLOOKUP(AG$7,データ!$B$17:$S$47,15,FALSE)+VLOOKUP($L$10,データ!$B$4:$S$13,15,FALSE)+VLOOKUP($L$14,データ!$B$52:$S$54,15,FALSE)) -> 100 | AJ20: =IF(AL$6=0,0,ROUNDDOWN(RAND()*(10-1)+1,0)-1+AK20+AM20*(AL$6-1)+IF(AQ$6=0,(VLOOKUP($L$10,データ!$B$4:$S$13,7,FALSE)+$U20)*10,ROUNDDOWN(AQ20/2,0)*10)) -> 0 | AL20: =+IF(VLOOKUP(AL$7,データ!$B$17:$S$47,18,FALSE)+VLOOKUP($L$10,データ!$B$4:$S$13,18,FALSE)>0,ROUNDDOWN(AJ20/10,0),MIN(ROUNDDOWN(AJ20/10,0),18)) -> 0 | AM20: =IF(AL$6=0,0,VLOOKUP(AL$7,データ!$B$17:$S$47,15,FALSE)+VLOOKUP($L$10,データ!$B$4:$S$13,15,FALSE)+VLOOKUP($L$14,データ!$B$52:$S$54,15,FALSE)) -> 0 | AO20: =IF(AQ$6=0,0,ROUNDDOWN(RAND()*(10-1)+1,0)-1+AP20+AR20*(AQ$6-1)+IF(AV$6=0,(VLOOKUP($L$10,データ!$B$4:$S$13,7,FALSE)+$U20)*10,ROUNDDOWN(AV20/2,0)*10)) -> 0 | AQ20: =+IF(VLOOKUP(AQ$7,データ!$B$17:$S$47,18,FALSE)+VLOOKUP($L$10,データ!$B$4:$S$13,18,FALSE)>0,ROUNDDOWN(AO20/10,0),MIN(ROUNDDOWN(AO20/10,0),18)) -> 0 | AR20: =IF(AQ$6=0,0,VLOOKUP(AQ$7,データ!$B$17:$S$47,15,FALSE)+VLOOKUP($L$10,データ!$B$4:$S$13,15,FALSE)+VLOOKUP($L$14,データ!$B$52:$S$54,15,FALSE)) -> 0 | AT20: =IF(AV$6=0,0,ROUNDDOWN(RAND()*(10-1)+1,0)-1+AU20+AW20*(AV$6-1)+IF(BA$6=0,(VLOOKUP($L$10,データ!$B$4:$S$13,7,FALSE)+$U20)*10,ROUNDDOWN(BA20/2,0)*10)) -> 0 | AV20: =+IF(VLOOKUP(AV$7,データ!$B$17:$S$47,18,FALSE)+VLOOKUP($L$10,データ!$B$4:$S$13,18,FALSE)>0,ROUNDDOWN(AT20/10,0),MIN(ROUNDDOWN(AT20/10,0),18)) -> 0 | AW20: =IF(AV$6=0,0,VLOOKUP(AV$7,データ!$B$17:$S$47,15,FALSE)+VLOOKUP($L$10,データ!$B$4:$S$13,15,FALSE)+VLOOKUP($L$14,データ!$B$52:$S$54,15,FALSE)) -> 0 | AY20: =IF(BA$6=0,0,ROUNDDOWN(RAND()*(10-1)+1,0)-1+AZ20+BB20*(BA$6-1)+IF(BF$6=0,(VLOOKUP($L$10,データ!$B$4:$S$13,7,FALSE)+$U20)*10,ROUNDDOWN(BF20/2,0)*10)) -> 0 | BA20: =+IF(VLOOKUP(BA$7,データ!$B$17:$S$47,18,FALSE)+VLOOKUP($L$10,データ!$B$4:$S$13,18,FALSE)>0,ROUNDDOWN(AY20/10,0),MIN(ROUNDDOWN(AY20/10,0),18)) -> 0 | BB20: =IF(BA$6=0,0,VLOOKUP(BA$7,データ!$B$17:$S$47,15,FALSE)+VLOOKUP($L$10,データ!$B$4:$S$13,15,FALSE)+VLOOKUP($L$14,データ!$B$52:$S$54,15,FALSE)) -> 0 | BD20: =IF(BF$6=0,0,ROUNDDOWN(RAND()*(10-1)+1,0)-1+BE20+BG20*(BF$6-1)+IF(BK$6=0,(VLOOKUP($L$10,データ!$B$4:$S$13,7,FALSE)+$U20)*10,ROUNDDOWN(BK20/2,0)*10)) -> 0 | BF20: =+IF(VLOOKUP(BF$7,データ!$B$17:$S$47,18,FALSE)+VLOOKUP($L$10,データ!$B$4:$S$13,18,FALSE)>0,ROUNDDOWN(BD20/10,0),MIN(ROUNDDOWN(BD20/10,0),18)) -> 0 | BG20: =IF(BF$6=0,0,VLOOKUP(BF$7,データ!$B$17:$S$47,15,FALSE)+VLOOKUP($L$10,データ!$B$4:$S$13,15,FALSE)+VLOOKUP($L$14,データ!$B$52:$S$54,15,FALSE)) -> 0
H21: =ROUNDDOWN(F20/5,0) -> 2043 | J21: 精神魔術 | L21: =IF(AC59>36,"全て("&AC59&")",IF(AC59<>0,AB59&"("&AC59&") ","")&IF(AC60<>0,AB60&"("&AC60&") ","")&IF(AC61<>0,AB61&"("&AC61&") ","")&IF(AC62<>0,AB62&"("&AC62&")","")) -> 
E22: 幸運度 | F22: =+AE22+COUNTA(W$38)*10*L$12+C22*L$12 -> 10308 | G22: =IF(W$38<>"",ROUNDDOWN(F22/10,0),AG22) -> 1030 | H22: 交渉率 | I22: =+AH22+COUNTA(W$38)*10+C22 -> 101 | L22: =+ROUNDDOWN(F16/10,0) -> 1022 | U22: 0 | AE22: =IF(AG$6=0,0,ROUNDDOWN(RAND()*(10-1)+1,0)-1+AF22+AH22*(AG$6-1)+IF(AL$6=0,(VLOOKUP($L$10,データ!$B$4:$S$13,8,FALSE)+$U22)*10,ROUNDDOWN(AL22/2,0)*10)) -> 10308 | AF22: 205 | AG22: =+IF(VLOOKUP(AG$7,データ!$B$17:$S$47,18,FALSE)+VLOOKUP($L$10,データ!$B$4:$S$13,18,FALSE)>0,ROUNDDOWN(AE22/10,0),MIN(ROUNDDOWN(AE22/10,0),18)) -> 1030 | AH22: =IF(AG$6=0,0,VLOOKUP(AG$7,データ!$B$17:$S$47,16,FALSE)+VLOOKUP($L$10,データ!$B$4:$S$13,16,FALSE)+VLOOKUP($L$14,データ!$B$52:$S$54,16,FALSE)) -> 101 | AJ22: =IF(AL$6=0,0,ROUNDDOWN(RAND()*(10-1)+1,0)-1+AK22+AM22*(AL$6-1)+IF(AQ$6=0,(VLOOKUP($L$10,データ!$B$4:$S$13,8,FALSE)+$U22)*10,ROUNDDOWN(AQ22/2,0)*10)) -> 0 | AL22: =+IF(VLOOKUP(AL$7,データ!$B$17:$S$47,18,FALSE)+VLOOKUP($L$10,データ!$B$4:$S$13,18,FALSE)>0,ROUNDDOWN(AJ22/10,0),MIN(ROUNDDOWN(AJ22/10,0),18)) -> 0 | AM22: =IF(AL$6=0,0,VLOOKUP(AL$7,データ!$B$17:$S$47,16,FALSE)+VLOOKUP($L$10,データ!$B$4:$S$13,16,FALSE)+VLOOKUP($L$14,データ!$B$52:$S$54,16,FALSE)) -> 0 | AO22: =IF(AQ$6=0,0,ROUNDDOWN(RAND()*(10-1)+1,0)-1+AP22+AR22*(AQ$6-1)+IF(AV$6=0,(VLOOKUP($L$10,データ!$B$4:$S$13,8,FALSE)+$U22)*10,ROUNDDOWN(AV22/2,0)*10)) -> 0 | AQ22: =+IF(VLOOKUP(AQ$7,データ!$B$17:$S$47,18,FALSE)+VLOOKUP($L$10,データ!$B$4:$S$13,18,FALSE)>0,ROUNDDOWN(AO22/10,0),MIN(ROUNDDOWN(AO22/10,0),18)) -> 0 | AR22: =IF(AQ$6=0,0,VLOOKUP(AQ$7,データ!$B$17:$S$47,16,FALSE)+VLOOKUP($L$10,データ!$B$4:$S$13,16,FALSE)+VLOOKUP($L$14,データ!$B$52:$S$54,16,FALSE)) -> 0 | AT22: =IF(AV$6=0,0,ROUNDDOWN(RAND()*(10-1)+1,0)-1+AU22+AW22*(AV$6-1)+IF(BA$6=0,(VLOOKUP($L$10,データ!$B$4:$S$13,8,FALSE)+$U22)*10,ROUNDDOWN(BA22/2,0)*10)) -> 0 | AV22: =+IF(VLOOKUP(AV$7,データ!$B$17:$S$47,18,FALSE)+VLOOKUP($L$10,データ!$B$4:$S$13,18,FALSE)>0,ROUNDDOWN(AT22/10,0),MIN(ROUNDDOWN(AT22/10,0),18)) -> 0 | AW22: =IF(AV$6=0,0,VLOOKUP(AV$7,データ!$B$17:$S$47,16,FALSE)+VLOOKUP($L$10,データ!$B$4:$S$13,16,FALSE)+VLOOKUP($L$14,データ!$B$52:$S$54,16,FALSE)) -> 0 | AY22: =IF(BA$6=0,0,ROUNDDOWN(RAND()*(10-1)+1,0)-1+AZ22+BB22*(BA$6-1)+IF(BF$6=0,(VLOOKUP($L$10,データ!$B$4:$S$13,8,FALSE)+$U22)*10,ROUNDDOWN(BF22/2,0)*10)) -> 0 | BA22: =+IF(VLOOKUP(BA$7,データ!$B$17:$S$47,18,FALSE)+VLOOKUP($L$10,データ!$B$4:$S$13,18,FALSE)>0,ROUNDDOWN(AY22/10,0),MIN(ROUNDDOWN(AY22/10,0),18)) -> 0 | BB22: =IF(BA$6=0,0,VLOOKUP(BA$7,データ!$B$17:$S$47,16,FALSE)+VLOOKUP($L$10,データ!$B$4:$S$13,16,FALSE)+VLOOKUP($L$14,データ!$B$52:$S$54,16,FALSE)) -> 0 | BD22: =IF(BF$6=0,0,ROUNDDOWN(RAND()*(10-1)+1,0)-1+BE22+BG22*(BF$6-1)+IF(BK$6=0,(VLOOKUP($L$10,データ!$B$4:$S$13,8,FALSE)+$U22)*10,ROUNDDOWN(BK22/2,0)*10)) -> 0 | BF22: =+IF(VLOOKUP(BF$7,データ!$B$17:$S$47,18,FALSE)+VLOOKUP($L$10,データ!$B$4:$S$13,18,FALSE)>0,ROUNDDOWN(BD22/10,0),MIN(ROUNDDOWN(BD22/10,0),18)) -> 0 | BG22: =IF(BF$6=0,0,VLOOKUP(BF$7,データ!$B$17:$S$47,16,FALSE)+VLOOKUP($L$10,データ!$B$4:$S$13,16,FALSE)+VLOOKUP($L$14,データ!$B$52:$S$54,16,FALSE)) -> 0
H23: =ROUNDDOWN(F22/5,0) -> 2061 | J23: 暗黒魔術 | L23: =IF(AC63>36,"全て("&AC63&")",IF(AC63<>0,AB63&"("&AC63&") ","")&IF(AC64<>0,AB64&"("&AC64&") ","")&IF(AC65<>0,AB65&"("&AC65&") ","")&IF(AC66<>0,AB66&"("&AC66&")","")) -> 
E24: 魅力 | F24: =+AE24+COUNTA(W$38)*10*L$12+C24*L$12 -> 10108 | G24: =IF(W$38<>"",ROUNDDOWN(F24/10,0),AG24) -> 1010 | H24: 統率力 | I24: =+AH24+COUNTA(W$38)*10+C24 -> 99 | L24: =+ROUNDDOWN(F14/10,0) -> 1030 | U24: 0 | AE24: =IF(AG$6=0,0,ROUNDDOWN(RAND()*(10-1)+1,0)-1+AF24+AH24*(AG$6-1)+IF(AL$6=0,(VLOOKUP($L$10,データ!$B$4:$S$13,9,FALSE)+$U24)*10,ROUNDDOWN(AL24/2,0)*10)) -> 10108 | AF24: 206 | AG24: =+IF(VLOOKUP(AG$7,データ!$B$17:$S$47,18,FALSE)+VLOOKUP($L$10,データ!$B$4:$S$13,18,FALSE)>0,ROUNDDOWN(AE24/10,0),MIN(ROUNDDOWN(AE24/10,0),18)) -> 1010 | AH24: =IF(AG$6=0,0,VLOOKUP(AG$7,データ!$B$17:$S$47,17,FALSE)+VLOOKUP($L$10,データ!$B$4:$S$13,17,FALSE)+VLOOKUP($L$14,データ!$B$52:$S$54,17,FALSE)) -> 99 | AJ24: =IF(AL$6=0,0,ROUNDDOWN(RAND()*(10-1)+1,0)-1+AK24+AM24*(AL$6-1)+IF(AQ$6=0,(VLOOKUP($L$10,データ!$B$4:$S$13,9,FALSE)+$U24)*10,ROUNDDOWN(AQ24/2,0)*10)) -> 0 | AL24: =+IF(VLOOKUP(AL$7,データ!$B$17:$S$47,18,FALSE)+VLOOKUP($L$10,データ!$B$4:$S$13,18,FALSE)>0,ROUNDDOWN(AJ24/10,0),MIN(ROUNDDOWN(AJ24/10,0),18)) -> 0 | AM24: =IF(AL$6=0,0,VLOOKUP(AL$7,データ!$B$17:$S$47,17,FALSE)+VLOOKUP($L$10,データ!$B$4:$S$13,17,FALSE)+VLOOKUP($L$14,データ!$B$52:$S$54,17,FALSE)) -> 0 | AO24: =IF(AQ$6=0,0,ROUNDDOWN(RAND()*(10-1)+1,0)-1+AP24+AR24*(AQ$6-1)+IF(AV$6=0,(VLOOKUP($L$10,データ!$B$4:$S$13,9,FALSE)+$U24)*10,ROUNDDOWN(AV24/2,0)*10)) -> 0 | AQ24: =+IF(VLOOKUP(AQ$7,データ!$B$17:$S$47,18,FALSE)+VLOOKUP($L$10,データ!$B$4:$S$13,18,FALSE)>0,ROUNDDOWN(AO24/10,0),MIN(ROUNDDOWN(AO24/10,0),18)) -> 0 | AR24: =IF(AQ$6=0,0,VLOOKUP(AQ$7,データ!$B$17:$S$47,17,FALSE)+VLOOKUP($L$10,データ!$B$4:$S$13,17,FALSE)+VLOOKUP($L$14,データ!$B$52:$S$54,17,FALSE)) -> 0 | AT24: =IF(AV$6=0,0,ROUNDDOWN(RAND()*(10-1)+1,0)-1+AU24+AW24*(AV$6-1)+IF(BA$6=0,(VLOOKUP($L$10,データ!$B$4:$S$13,9,FALSE)+$U24)*10,ROUNDDOWN(BA24/2,0)*10)) -> 0 | AV24: =+IF(VLOOKUP(AV$7,データ!$B$17:$S$47,18,FALSE)+VLOOKUP($L$10,データ!$B$4:$S$13,18,FALSE)>0,ROUNDDOWN(AT24/10,0),MIN(ROUNDDOWN(AT24/10,0),18)) -> 0 | AW24: =IF(AV$6=0,0,VLOOKUP(AV$7,データ!$B$17:$S$47,17,FALSE)+VLOOKUP($L$10,データ!$B$4:$S$13,17,FALSE)+VLOOKUP($L$14,データ!$B$52:$S$54,17,FALSE)) -> 0 | AY24: =IF(BA$6=0,0,ROUNDDOWN(RAND()*(10-1)+1,0)-1+AZ24+BB24*(BA$6-1)+IF(BF$6=0,(VLOOKUP($L$10,データ!$B$4:$S$13,9,FALSE)+$U24)*10,ROUNDDOWN(BF24/2,0)*10)) -> 0 | BA24: =+IF(VLOOKUP(BA$7,データ!$B$17:$S$47,18,FALSE)+VLOOKUP($L$10,データ!$B$4:$S$13,18,FALSE)>0,ROUNDDOWN(AY24/10,0),MIN(ROUNDDOWN(AY24/10,0),18)) -> 0 | BB24: =IF(BA$6=0,0,VLOOKUP(BA$7,データ!$B$17:$S$47,17,FALSE)+VLOOKUP($L$10,データ!$B$4:$S$13,17,FALSE)+VLOOKUP($L$14,データ!$B$52:$S$54,17,FALSE)) -> 0 | BD24: =IF(BF$6=0,0,ROUNDDOWN(RAND()*(10-1)+1,0)-1+BE24+BG24*(BF$6-1)+IF(BK$6=0,(VLOOKUP($L$10,データ!$B$4:$S$13,9,FALSE)+$U24)*10,ROUNDDOWN(BK24/2,0)*10)) -> 0 | BF24: =+IF(VLOOKUP(BF$7,データ!$B$17:$S$47,18,FALSE)+VLOOKUP($L$10,データ!$B$4:$S$13,18,FALSE)>0,ROUNDDOWN(BD24/10,0),MIN(ROUNDDOWN(BD24/10,0),18)) -> 0 | BG24: =IF(BF$6=0,0,VLOOKUP(BF$7,データ!$B$17:$S$47,17,FALSE)+VLOOKUP($L$10,データ!$B$4:$S$13,17,FALSE)+VLOOKUP($L$14,データ!$B$52:$S$54,17,FALSE)) -> 0
H25: =ROUNDDOWN(F24/20,0) -> 505 | J25: 言語 | L25: =CONCATENATE(X49,X50,X51,X52,X53,X54,X55,X56,X57,X58,X59,X60,X61,X62,X63,X64,X65,X66,X67) -> 
C26: 特殊な条件下で、上昇値に | F26: 基本命中率 | H26: 回避率 | I26: 攻撃力 | L26: 防御力 | M26: 経験値 | O26: =IF(V31=0,0,IF(L12<=50,VLOOKUP(L12,経験値!B4:F53,VLOOKUP(W31,データ!B17:AY47,50,FALSE)+1,FALSE),VLOOKUP(50,経験値!B4:F53,VLOOKUP(W31,データ!B17:AY47,50,FALSE)+1,FALSE)+200000*(L12-50)))*IF(OR(L10="神",L10="異世界神"),100,1) -> 1445000000 | U26: 合計 | V26: =IF(U27<2,"加算値合計は2～16",IF(U27>16,"加算値合計は2～16","")) -> 
C27: 修正が入る場合に記入 | E27: 武器1 | G27: =+$L$12*5+50+H$21+R$32+SUM(Q40:Q43)+$Q$29+VLOOKUP($L$10,データ!$B$4:$T$13,19,FALSE) -> 3198 | H27: =+$L$12*5+H$21+R$34+R$35+R$37+R$38+R$39+SUM(R40:R43)+$Q$29+VLOOKUP($L$10,データ!$B$4:$T$13,19,FALSE) -> 3148 | I27: =+P32 -> D100 | J27: =+Q32+H11+Q29+SUM(O40:O43) -> 2855 | L27: =+Q34+Q35+Q37+Q38+Q39+SUM(P40:P43)+H46+Q29 -> 1605 | M27: HP | O27: =+R27 -> 5658 | Q27: ／ | R27: =+AH27+COUNTA(W$38)*3000 -> 5658 | U27: =+SUM(U10:U25) -> 11 | AE27: HP | AF27: 541 | AG27: =AF27+ROUNDDOWN(AE18/2,0) -> 5658 | AH27: =+IF(AG27<AM27,AM27+AG6,AG27) -> 5658 | AJ27: HP | AL27: =AK27+ROUNDDOWN(AJ18/2,0) -> 0 | AM27: =+IF(AL27<AR27,AR27+AL6,AL27) -> 0 | AO27: HP | AQ27: =AP27+ROUNDDOWN(AO18/2,0) -> 0 | AR27: =+IF(AQ27<AW27,AW27+AQ6,AQ27) -> 0 | AT27: HP | AV27: =AU27+ROUNDDOWN(AT18/2,0) -> 0 | AW27: =+IF(AV27<BB27,BB27+AV6,AV27) -> 0 | AY27: HP | BA27: =AZ27+ROUNDDOWN(AY18/2,0) -> 0 | BB27: =+IF(BA27<BG27,BG27+BA6,BA27) -> 0 | BD27: HP | BF27: =BE27+ROUNDDOWN(BD18/2,0) -> 0 | BG27: =+IF(BF27<BK27,BK27+BF6,BF27) -> 0
C28: （「覚醒の石」使用時など） | E28: 武器2 | G28: =+$L$12*5+50+H$21+R$33+SUM(Q40:Q43)+$Q$29+VLOOKUP($L$10,データ!$B$4:$T$13,19,FALSE) -> 3098 | H28: =+$L$12*5+H$21+R$34+R$36+R$37+R$38+R$39+SUM(R40:R43)+$Q$29+VLOOKUP($L$10,データ!$B$4:$T$13,19,FALSE) -> 3128 | I28: =+P33 -> D100 | J28: =+Q33+H11+Q29+SUM(O40:O43) -> 2755 | L28: =+Q34+Q36+Q37+Q38+Q39+SUM(P40:P43)+H46+Q29 -> 1585 | M28: MP | O28: =+R28 -> 5690 | Q28: ／ | R28: =+AH28+COUNTA(W$38)*3000 -> 5690 | AE28: MP | AF28: 576 | AG28: =AF28+ROUNDDOWN(AE16/2,0) -> 5690 | AH28: =+IF(AG28<AM28,AM28+AG6,AG28) -> 5690 | AJ28: MP | AL28: =AK28+ROUNDDOWN(AJ16/2,0) -> 0 | AM28: =+IF(AL28<AR28,AR28+AL6,AL28) -> 0 | AO28: MP | AQ28: =AP28+ROUNDDOWN(AO16/2,0) -> 0 | AR28: =+IF(AQ28<AW28,AW28+AQ6,AQ28) -> 0 | AT28: MP | AV28: =AU28+ROUNDDOWN(AT16/2,0) -> 0 | AW28: =+IF(AV28<BB28,BB28+AV6,AV28) -> 0 | AY28: MP | BA28: =AZ28+ROUNDDOWN(AY16/2,0) -> 0 | BB28: =+IF(BA28<BG28,BG28+BA6,BA28) -> 0 | BD28: MP | BF28: =BE28+ROUNDDOWN(BD16/2,0) -> 0 | BG28: =+IF(BF28<BK28,BK28+BF6,BF28) -> 0
E29: 命中判定減算率 （選択ルール） | H29: 打撃判定減算率 （選択ルール） | L29: リーダー | M29: 本人 | Q29: =+H25 -> 505
E30: ステータス | F30: ■正常 □催眠 □恐怖 □魅了 □混乱 □麻痺 □毒 □石化 □呪詛 □昏睡 □死亡 □根絶 | V30: レベル | W30: クラス | X30: 呪文1 | Y30: 系統 | Z30: № | AA30: 呪文2 | AB30: 系統 | AC30: № | AE30: 技能 | AG30: 特殊能力 | AJ30: 技能 | AL30: 特殊能力 | AO30: 技能 | AQ30: 特殊能力 | AT30: 技能 | AV30: 特殊能力 | AY30: 技能 | BA30: 特殊能力 | BD30: 技能 | BF30: 特殊能力
B31: 技能加算 | E31: 技能 | G31: 特殊能力 | I31: アイテム・効果 | U31: 今回 | V31: 100 | W31: なし | X31: =VLOOKUP(VLOOKUP($W31,データ!$B$17:$BB$47,51,FALSE),データ!$A$65:$B$70,2,FALSE) ->  | Z31: =IF(X31=" ","",IF(VLOOKUP($W31,データ!$B$17:$BB$47,53,FALSE)=2,MIN(36,V31),MIN(36,VLOOKUP($V31,経験値!$B$4:$J$53,VLOOKUP($W31,データ!$B$17:$BB$47,51,FALSE)+5,FALSE)))) ->  | AA31: =VLOOKUP(VLOOKUP($W31,データ!$B$17:$BB$47,52,FALSE),データ!$A$65:$B$70,2,FALSE) ->  | AC31: =IF(AA31=" ","",IF(VLOOKUP($W31,データ!$B$17:$BB$47,53,FALSE)=2,MIN(36,V31),MIN(36,VLOOKUP($V31,経験値!$B$4:$J$53,VLOOKUP($W31,データ!$B$17:$BB$47,52,FALSE)+5,FALSE)))) ->  | AE31: 獲得 | AF31: 乱数分 | AG31: 継承 | AH31: 獲得 | AJ31: 獲得 | AK31: 乱数分 | AL31: 継承 | AM31: 獲得 | AO31: 獲得 | AP31: 乱数分 | AQ31: 継承 | AR31: 獲得 | AT31: 獲得 | AU31: 乱数分 | AV31: 継承 | AW31: 獲得 | AY31: 獲得 | AZ31: 乱数分 | BA31: 継承 | BB31: 獲得 | BD31: 獲得 | BE31: 乱数分 | BF31: 継承 | BG31: 獲得
B32: 剣 | E32: 剣 | F32: =+AE32+AJ32+AO32+AT32+AY32+BD32+C32 -> 90 | G32: 快打 | H32: =MAX(AG32,IF(W$38<>"",MIN(30,L$12*3),0)) -> 10 | I32: 武器1 | K32: 紅闇の剣 | O32: 攻撃力 | P32: =+VLOOKUP(K32,武器!$B$16:$P$200,2,FALSE) -> D100 | Q32: =+VLOOKUP(K32,武器!$B$16:$P$200,3,FALSE)+VLOOKUP(J32,武器!$B$4:$J$9,3,FALSE) -> 300 | R32: =+VLOOKUP(K32,武器!$B$20:$J$200,5,FALSE)+VLOOKUP(N32,武器!$B$12:$J$17,5,FALSE) -> 100 | S32: =IF(VLOOKUP(K32,武器!$B$20:$J$200,8,FALSE)=0,0,IF(VLOOKUP(K32,武器!$B$20:$J$200,8,FALSE)+VLOOKUP(J32,武器!$B$4:$J$9,8,FALSE)<1,1,VLOOKUP(K32,武器!$B$20:$J$200,8,FALSE)+VLOOKUP(J32,武器!$B$4:$J$9,8,FALSE))) -> 10 | U32: 1回前 | V32: 0 | W32: なし | X32: =VLOOKUP(VLOOKUP($W32,データ!$B$17:$BB$47,51,FALSE),データ!$A$65:$B$70,2,FALSE) ->  | Z32: =IF(X32=" ","",IF(VLOOKUP($W32,データ!$B$17:$BB$47,53,FALSE)=2,MIN(36,V32),MIN(36,VLOOKUP($V32,経験値!$B$4:$J$53,VLOOKUP($W32,データ!$B$17:$BB$47,51,FALSE)+5,FALSE)))) ->  | AA32: =VLOOKUP(VLOOKUP($W32,データ!$B$17:$BB$47,52,FALSE),データ!$A$65:$B$70,2,FALSE) ->  | AC32: =IF(AA32=" ","",IF(VLOOKUP($W32,データ!$B$17:$BB$47,53,FALSE)=2,MIN(36,V32),MIN(36,VLOOKUP($V32,経験値!$B$4:$J$53,VLOOKUP($W32,データ!$B$17:$BB$47,52,FALSE)+5,FALSE)))) ->  | AE32: =IF(AG$6=0,0,IF(AL$6=0,VLOOKUP($L$10,データ!$B$4:$AF$13,21,FALSE)+VLOOKUP(AG$7,データ!$B$17:$AF$46,21,FALSE),0)) -> 90 | AG32: =+MAX(AH32,AL32) -> 10 | AH32: =IF(AG$7="ハイ・ウォーリアー",MIN(30,AG$6*3),IF(AG$7="フェンサー",MIN(30,AG$6*3),MIN(10,AG$6))) -> 10 | AJ32: =IF(AL$6=0,0,IF(AQ$6=0,VLOOKUP($L$10,データ!$B$4:$AF$13,21,FALSE)+VLOOKUP(AL$7,データ!$B$17:$AF$46,21,FALSE),0)) -> 0 | AL32: =+MAX(AM32,AQ32) -> 0 | AM32: =IF(AL$7="ハイ・ウォーリアー",MIN(30,AL$6*3),IF(AL$7="フェンサー",MIN(30,AL$6*3),MIN(10,AL$6))) -> 0 | AO32: =IF(AQ$6=0,0,IF(AV$6=0,VLOOKUP($L$10,データ!$B$4:$AF$13,21,FALSE)+VLOOKUP(AQ$7,データ!$B$17:$AF$46,21,FALSE),0)) -> 0 | AQ32: =+MAX(AR32,AV32) -> 0 | AR32: =IF(AQ$7="ハイ・ウォーリアー",MIN(30,AQ$6*3),IF(AQ$7="フェンサー",MIN(30,AQ$6*3),MIN(10,AQ$6))) -> 0 | AT32: =IF(AV$6=0,0,IF(BA$6=0,VLOOKUP($L$10,データ!$B$4:$AF$13,21,FALSE)+VLOOKUP(AV$7,データ!$B$17:$AF$46,21,FALSE),0)) -> 0 | AV32: =+MAX(AW32,BA32) -> 0 | AW32: =IF(AV$7="ハイ・ウォーリアー",MIN(30,AV$6*3),IF(AV$7="フェンサー",MIN(30,AV$6*3),MIN(10,AV$6))) -> 0 | AY32: =IF(BA$6=0,0,IF(BF$6=0,VLOOKUP($L$10,データ!$B$4:$AF$13,21,FALSE)+VLOOKUP(BA$7,データ!$B$17:$AF$46,21,FALSE),0)) -> 0 | BA32: =+MAX(BB32,BF32) -> 0 | BB32: =IF(BA$7="ハイ・ウォーリアー",MIN(30,BA$6*3),IF(BA$7="フェンサー",MIN(30,BA$6*3),MIN(10,BA$6))) -> 0 | BD32: =IF(BF$6=0,0,IF(BJ$6=0,VLOOKUP($L$10,データ!$B$4:$AF$13,21,FALSE)+VLOOKUP(BF$7,データ!$B$17:$AF$46,21,FALSE),0)) -> 0 | BF32: =+MAX(BG32,BJ32) -> 0 | BG32: =IF(BF$7="ハイ・ウォーリアー",MIN(30,BF$6*3),IF(BF$7="フェンサー",MIN(30,BF$6*3),MIN(10,BF$6))) -> 0
I33: 武器2 | K33: 素手（神） | O33: 攻撃力 | P33: =+VLOOKUP(K33,武器!$B$16:$P$200,2,FALSE) -> D100 | Q33: =+VLOOKUP(K33,武器!$B$16:$P$200,3,FALSE)+VLOOKUP(J33,武器!$B$4:$J$9,3,FALSE) -> 200 | R33: =+VLOOKUP(K33,武器!$B$20:$J$200,5,FALSE)+VLOOKUP(N33,武器!$B$12:$J$17,5,FALSE) -> 0 | S33: =IF(VLOOKUP(K33,武器!$B$20:$J$200,8,FALSE)=0,0,IF(VLOOKUP(K33,武器!$B$20:$J$200,8,FALSE)+VLOOKUP(J33,武器!$B$4:$J$9,8,FALSE)<1,1,VLOOKUP(K33,武器!$B$20:$J$200,8,FALSE)+VLOOKUP(J33,武器!$B$4:$J$9,8,FALSE))) -> 0 | U33: 2回前 | V33: 0 | W33: なし | X33: =VLOOKUP(VLOOKUP($W33,データ!$B$17:$BB$47,51,FALSE),データ!$A$65:$B$70,2,FALSE) ->  | Z33: =IF(X33=" ","",IF(VLOOKUP($W33,データ!$B$17:$BB$47,53,FALSE)=2,MIN(36,V33),MIN(36,VLOOKUP($V33,経験値!$B$4:$J$53,VLOOKUP($W33,データ!$B$17:$BB$47,51,FALSE)+5,FALSE)))) ->  | AA33: =VLOOKUP(VLOOKUP($W33,データ!$B$17:$BB$47,52,FALSE),データ!$A$65:$B$70,2,FALSE) ->  | AC33: =IF(AA33=" ","",IF(VLOOKUP($W33,データ!$B$17:$BB$47,53,FALSE)=2,MIN(36,V33),MIN(36,VLOOKUP($V33,経験値!$B$4:$J$53,VLOOKUP($W33,データ!$B$17:$BB$47,52,FALSE)+5,FALSE)))) -> 
B34: 斧 | E34: 斧 | F34: =+AE34+AJ34+AO34+AT34+AY34+BD34+C34 -> 90 | G34: 昏倒打 | H34: =MAX(AG34,IF(W$38<>"",MIN(20,L$12*2),0)) -> 0 | I34: 鎧 | K34: 紅闇の鎧 | O34: 防御力 | Q34: =VLOOKUP(K34,防具!$B$20:$J$80,4,FALSE)+VLOOKUP(J34,防具!$B$4:$J$9,4,FALSE) -> 20 | R34: =VLOOKUP(K34,防具!$B$20:$J$80,6,FALSE)+VLOOKUP(N34,防具!$B$12:$J$17,6,FALSE) -> 20 | S34: =IF(VLOOKUP(K34,防具!$B$20:$J$80,8,FALSE)=0,0,IF(VLOOKUP(K34,防具!$B$20:$J$80,8,FALSE)+VLOOKUP(J34,武器!$B$4:$J$9,8,FALSE)<1,1,VLOOKUP(K34,防具!$B$20:$J$80,8,FALSE)+VLOOKUP(J34,武器!$B$4:$J$9,8,FALSE))) -> 10 | U34: 3回前 | V34: 0 | W34: なし | X34: =VLOOKUP(VLOOKUP($W34,データ!$B$17:$BB$47,51,FALSE),データ!$A$65:$B$70,2,FALSE) ->  | Z34: =IF(X34=" ","",IF(VLOOKUP($W34,データ!$B$17:$BB$47,53,FALSE)=2,MIN(36,V34),MIN(36,VLOOKUP($V34,経験値!$B$4:$J$53,VLOOKUP($W34,データ!$B$17:$BB$47,51,FALSE)+5,FALSE)))) ->  | AA34: =VLOOKUP(VLOOKUP($W34,データ!$B$17:$BB$47,52,FALSE),データ!$A$65:$B$70,2,FALSE) ->  | AC34: =IF(AA34=" ","",IF(VLOOKUP($W34,データ!$B$17:$BB$47,53,FALSE)=2,MIN(36,V34),MIN(36,VLOOKUP($V34,経験値!$B$4:$J$53,VLOOKUP($W34,データ!$B$17:$BB$47,52,FALSE)+5,FALSE)))) ->  | AE34: =IF(AG$6=0,0,IF(AL$6=0,VLOOKUP($L$10,データ!$B$4:$AF$13,22,FALSE)+VLOOKUP(AG$7,データ!$B$17:$AF$46,22,FALSE),0)) -> 90 | AG34: =+MAX(AH34,AL34) -> 0 | AH34: =IF(AG$7="ハイ・ウォーリアー",MIN(20,AG$6*2),IF(AG$7="ファイター",MIN(20,AG$6*2),0)) -> 0 | AJ34: =IF(AL$6=0,0,IF(AQ$6=0,VLOOKUP($L$10,データ!$B$4:$AF$13,22,FALSE)+VLOOKUP(AL$7,データ!$B$17:$AF$46,22,FALSE),0)) -> 0 | AL34: =+MAX(AM34,AQ34) -> 0 | AM34: =IF(AL$7="ハイ・ウォーリアー",MIN(20,AL$6*2),IF(AL$7="ファイター",MIN(20,AL$6*2),0)) -> 0 | AO34: =IF(AQ$6=0,0,IF(AV$6=0,VLOOKUP($L$10,データ!$B$4:$AF$13,22,FALSE)+VLOOKUP(AQ$7,データ!$B$17:$AF$46,22,FALSE),0)) -> 0 | AQ34: =+MAX(AR34,AV34) -> 0 | AR34: =IF(AQ$7="ハイ・ウォーリアー",MIN(20,AQ$6*2),IF(AQ$7="ファイター",MIN(20,AQ$6*2),0)) -> 0 | AT34: =IF(AV$6=0,0,IF(BA$6=0,VLOOKUP($L$10,データ!$B$4:$AF$13,22,FALSE)+VLOOKUP(AV$7,データ!$B$17:$AF$46,22,FALSE),0)) -> 0 | AV34: =+MAX(AW34,BA34) -> 0 | AW34: =IF(AV$7="ハイ・ウォーリアー",MIN(20,AV$6*2),IF(AV$7="ファイター",MIN(20,AV$6*2),0)) -> 0 | AY34: =IF(BA$6=0,0,IF(BF$6=0,VLOOKUP($L$10,データ!$B$4:$AF$13,22,FALSE)+VLOOKUP(BA$7,データ!$B$17:$AF$46,22,FALSE),0)) -> 0 | BA34: =+MAX(BB34,BF34) -> 0 | BB34: =IF(BA$7="ハイ・ウォーリアー",MIN(20,BA$6*2),IF(BA$7="ファイター",MIN(20,BA$6*2),0)) -> 0 | BD34: =IF(BF$6=0,0,IF(BJ$6=0,VLOOKUP($L$10,データ!$B$4:$AF$13,22,FALSE)+VLOOKUP(BF$7,データ!$B$17:$AF$46,22,FALSE),0)) -> 0 | BF34: =+MAX(BG34,BJ34) -> 0 | BG34: =IF(BF$7="ハイ・ウォーリアー",MIN(20,BF$6*2),IF(BF$7="ファイター",MIN(20,BF$6*2),0)) -> 0
I35: 盾1 | K35: 紅闇の盾 | O35: 防御力 | Q35: =VLOOKUP(K35,防具!$B$81:$J$138,4,FALSE)+VLOOKUP(J35,防具!$B$4:$J$9,4,FALSE) -> 20 | R35: =VLOOKUP(K35,防具!$B$81:$J$138,6,FALSE)+VLOOKUP(N35,防具!$B$12:$J$17,6,FALSE) -> 20 | S35: =IF(VLOOKUP(K35,防具!$B$81:$J$138,8,FALSE)=0,0,IF(VLOOKUP(K35,防具!$B$81:$J$138,8,FALSE)+VLOOKUP(J35,武器!$B$4:$J$9,8,FALSE)<1,1,VLOOKUP(K35,防具!$B$81:$J$138,8,FALSE)+VLOOKUP(J35,武器!$B$4:$J$9,8,FALSE))) -> 3 | U35: 4回前 | V35: 0 | W35: なし | X35: =VLOOKUP(VLOOKUP($W35,データ!$B$17:$BB$47,51,FALSE),データ!$A$65:$B$70,2,FALSE) ->  | Z35: =IF(X35=" ","",IF(VLOOKUP($W35,データ!$B$17:$BB$47,53,FALSE)=2,MIN(36,V35),MIN(36,VLOOKUP($V35,経験値!$B$4:$J$53,VLOOKUP($W35,データ!$B$17:$BB$47,51,FALSE)+5,FALSE)))) ->  | AA35: =VLOOKUP(VLOOKUP($W35,データ!$B$17:$BB$47,52,FALSE),データ!$A$65:$B$70,2,FALSE) ->  | AC35: =IF(AA35=" ","",IF(VLOOKUP($W35,データ!$B$17:$BB$47,53,FALSE)=2,MIN(36,V35),MIN(36,VLOOKUP($V35,経験値!$B$4:$J$53,VLOOKUP($W35,データ!$B$17:$BB$47,52,FALSE)+5,FALSE)))) -> 
B36: 棒 | E36: 棒 | F36: =+AE36+AJ36+AO36+AT36+AY36+BD36+C36 -> 90 | G36: 致命打 | H36: =MAX(AG36,IF(W$38<>"",MIN(10,L$12),0)) -> 0 | I36: 盾2 | K36: なし | O36: 防御力 | Q36: =VLOOKUP(K36,防具!$B$81:$J$138,4,FALSE)+VLOOKUP(J36,防具!$B$4:$J$9,4,FALSE) -> 0 | R36: =VLOOKUP(K36,防具!$B$81:$J$138,6,FALSE)+VLOOKUP(N36,防具!$B$12:$J$17,6,FALSE) -> 0 | S36: =IF(VLOOKUP(K36,防具!$B$81:$J$138,8,FALSE)=0,0,IF(VLOOKUP(K36,防具!$B$81:$J$138,8,FALSE)+VLOOKUP(J36,武器!$B$4:$J$9,8,FALSE)<1,1,VLOOKUP(K36,防具!$B$81:$J$138,8,FALSE)+VLOOKUP(J36,武器!$B$4:$J$9,8,FALSE))) -> 0 | U36: 5回前 | V36: 0 | W36: なし | X36: =VLOOKUP(VLOOKUP($W36,データ!$B$17:$BB$47,51,FALSE),データ!$A$65:$B$70,2,FALSE) ->  | Z36: =IF(X36=" ","",IF(VLOOKUP($W36,データ!$B$17:$BB$47,53,FALSE)=2,MIN(36,V36),MIN(36,VLOOKUP($V36,経験値!$B$4:$J$53,VLOOKUP($W36,データ!$B$17:$BB$47,51,FALSE)+5,FALSE)))) ->  | AA36: =VLOOKUP(VLOOKUP($W36,データ!$B$17:$BB$47,52,FALSE),データ!$A$65:$B$70,2,FALSE) ->  | AC36: =IF(AA36=" ","",IF(VLOOKUP($W36,データ!$B$17:$BB$47,53,FALSE)=2,MIN(36,V36),MIN(36,VLOOKUP($V36,経験値!$B$4:$J$53,VLOOKUP($W36,データ!$B$17:$BB$47,52,FALSE)+5,FALSE)))) ->  | AE36: =IF(AG$6=0,0,IF(AL$6=0,VLOOKUP($L$10,データ!$B$4:$AF$13,23,FALSE)+VLOOKUP(AG$7,データ!$B$17:$AF$46,23,FALSE),0)) -> 90 | AG36: =+MAX(AH36,AL36) -> 0 | AH36: =IF(AG$7="ハイ・ウォーリアー",MIN(10,AG$6),IF(AG$7="エクスパート",MIN(10,AG$6),0)) -> 0 | AJ36: =IF(AL$6=0,0,IF(AQ$6=0,VLOOKUP($L$10,データ!$B$4:$AF$13,23,FALSE)+VLOOKUP(AL$7,データ!$B$17:$AF$46,23,FALSE),0)) -> 0 | AL36: =+MAX(AM36,AQ36) -> 0 | AM36: =IF(AL$7="ハイ・ウォーリアー",MIN(10,AL$6),IF(AL$7="エクスパート",MIN(10,AL$6),0)) -> 0 | AO36: =IF(AQ$6=0,0,IF(AV$6=0,VLOOKUP($L$10,データ!$B$4:$AF$13,23,FALSE)+VLOOKUP(AQ$7,データ!$B$17:$AF$46,23,FALSE),0)) -> 0 | AQ36: =+MAX(AR36,AV36) -> 0 | AR36: =IF(AQ$7="ハイ・ウォーリアー",MIN(10,AQ$6),IF(AQ$7="エクスパート",MIN(10,AQ$6),0)) -> 0 | AT36: =IF(AV$6=0,0,IF(BA$6=0,VLOOKUP($L$10,データ!$B$4:$AF$13,23,FALSE)+VLOOKUP(AV$7,データ!$B$17:$AF$46,23,FALSE),0)) -> 0 | AV36: =+MAX(AW36,BA36) -> 0 | AW36: =IF(AV$7="ハイ・ウォーリアー",MIN(10,AV$6),IF(AV$7="エクスパート",MIN(10,AV$6),0)) -> 0 | AY36: =IF(BA$6=0,0,IF(BF$6=0,VLOOKUP($L$10,データ!$B$4:$AF$13,23,FALSE)+VLOOKUP(BA$7,データ!$B$17:$AF$46,23,FALSE),0)) -> 0 | BA36: =+MAX(BB36,BF36) -> 0 | BB36: =IF(BA$7="ハイ・ウォーリアー",MIN(10,BA$6),IF(BA$7="エクスパート",MIN(10,BA$6),0)) -> 0 | BD36: =IF(BF$6=0,0,IF(BJ$6=0,VLOOKUP($L$10,データ!$B$4:$AF$13,23,FALSE)+VLOOKUP(BF$7,データ!$B$17:$AF$46,23,FALSE),0)) -> 0 | BF36: =+MAX(BG36,BJ36) -> 0 | BG36: =IF(BF$7="ハイ・ウォーリアー",MIN(10,BF$6),IF(BF$7="エクスパート",MIN(10,BF$6),0)) -> 0
I37: 兜 | K37: 紅闇の兜 | O37: 防御力 | Q37: =VLOOKUP(K37,防具!$B$139:$J$194,4,FALSE)+VLOOKUP(J37,防具!$B$4:$J$9,4,FALSE) -> 20 | R37: =VLOOKUP(K37,防具!$B$139:$J$194,6,FALSE)+VLOOKUP(N37,防具!$B$12:$J$17,6,FALSE) -> 20 | S37: =IF(VLOOKUP(K37,防具!$B$139:$J$194,8,FALSE)=0,0,IF(VLOOKUP(K37,防具!$B$139:$J$194,8,FALSE)+VLOOKUP(J37,武器!$B$4:$J$9,8,FALSE)<1,1,VLOOKUP(K37,防具!$B$139:$J$194,8,FALSE)+VLOOKUP(J37,武器!$B$4:$J$9,8,FALSE))) -> 3
B38: 鞭 | E38: 鞭 | F38: =+AE38+AJ38+AO38+AT38+AY38+BD38+C38 -> 90 | G38: 攻撃回数 | H38: =MIN(4,ROUNDDOWN(F$20/50,0)+1)+MAX(AG38,IF(W$38<>"",1,0)) -> 4 | I38: 籠手 | K38: 紅闇の籠手 | O38: 防御力 | Q38: =VLOOKUP(K38,防具!$B$195:$J$250,4,FALSE)+VLOOKUP(J38,防具!$B$4:$J$9,4,FALSE) -> 20 | R38: =VLOOKUP(K38,防具!$B$195:$J$250,6,FALSE)+VLOOKUP(N38,防具!$B$12:$J$17,6,FALSE) -> 20 | S38: =IF(VLOOKUP(K38,防具!$B$195:$J$250,8,FALSE)=0,0,IF(VLOOKUP(K38,防具!$B$195:$J$250,8,FALSE)+VLOOKUP(J38,武器!$B$4:$J$9,8,FALSE)<1,1,VLOOKUP(K38,防具!$B$195:$J$250,8,FALSE)+VLOOKUP(J38,武器!$B$4:$J$9,8,FALSE))) -> 3 | U38: 今回：覚醒モード | AE38: =IF(AG$6=0,0,IF(AL$6=0,VLOOKUP($L$10,データ!$B$4:$AF$13,24,FALSE)+VLOOKUP(AG$7,データ!$B$17:$AF$46,24,FALSE),0)) -> 90 | AG38: =+MAX(AH38,AL38) -> 0 | AH38: =IF(AG$7="ハイ・ウォーリアー",1,IF(AG$7="パラディン",1,0)) -> 0 | AJ38: =IF(AL$6=0,0,IF(AQ$6=0,VLOOKUP($L$10,データ!$B$4:$AF$13,24,FALSE)+VLOOKUP(AL$7,データ!$B$17:$AF$46,24,FALSE),0)) -> 0 | AL38: =+MAX(AM38,AQ38) -> 0 | AM38: =IF(AL$7="ハイ・ウォーリアー",1,IF(AL$7="パラディン",1,0)) -> 0 | AO38: =IF(AQ$6=0,0,IF(AV$6=0,VLOOKUP($L$10,データ!$B$4:$AF$13,24,FALSE)+VLOOKUP(AQ$7,データ!$B$17:$AF$46,24,FALSE),0)) -> 0 | AQ38: =+MAX(AR38,AV38) -> 0 | AR38: =IF(AQ$7="ハイ・ウォーリアー",1,IF(AQ$7="パラディン",1,0)) -> 0 | AT38: =IF(AV$6=0,0,IF(BA$6=0,VLOOKUP($L$10,データ!$B$4:$AF$13,24,FALSE)+VLOOKUP(AV$7,データ!$B$17:$AF$46,24,FALSE),0)) -> 0 | AV38: =+MAX(AW38,BA38) -> 0 | AW38: =IF(AV$7="ハイ・ウォーリアー",1,IF(AV$7="パラディン",1,0)) -> 0 | AY38: =IF(BA$6=0,0,IF(BF$6=0,VLOOKUP($L$10,データ!$B$4:$AF$13,24,FALSE)+VLOOKUP(BA$7,データ!$B$17:$AF$46,24,FALSE),0)) -> 0 | BA38: =+MAX(BB38,BF38) -> 0 | BB38: =IF(BA$7="ハイ・ウォーリアー",1,IF(BA$7="パラディン",1,0)) -> 0 | BD38: =IF(BF$6=0,0,IF(BJ$6=0,VLOOKUP($L$10,データ!$B$4:$AF$13,24,FALSE)+VLOOKUP(BF$7,データ!$B$17:$AF$46,24,FALSE),0)) -> 0 | BF38: =+MAX(BG38,BJ38) -> 0 | BG38: =IF(BF$7="ハイ・ウォーリアー",1,IF(BF$7="パラディン",1,0)) -> 0
I39: 靴 | K39: 紅闇の靴 | O39: 防御力 | Q39: =VLOOKUP(K39,防具!$B$251:$J$306,4,FALSE)+VLOOKUP(J39,防具!$B$4:$J$9,4,FALSE) -> 20 | R39: =VLOOKUP(K39,防具!$B$251:$J$306,6,FALSE)+VLOOKUP(N39,防具!$B$12:$J$17,6,FALSE) -> 20 | S39: =IF(VLOOKUP(K39,防具!$B$251:$J$306,8,FALSE)=0,0,IF(VLOOKUP(K39,防具!$B$251:$J$306,8,FALSE)+VLOOKUP(J39,武器!$B$4:$J$9,8,FALSE)<1,1,VLOOKUP(K39,防具!$B$251:$J$306,8,FALSE)+VLOOKUP(J39,武器!$B$4:$J$9,8,FALSE))) -> 3 | U39: 「光の戦士」に覚醒した際の
B40: 槌 | E40: 槌 | F40: =+AE40+AJ40+AO40+AT40+AY40+BD40+C40 -> 90 | G40: 不意討ち | H40: =MIN(90,MAX(AG40,IF(W38<>"",ROUNDDOWN(F22/10,0)+ROUNDDOWN(F24/20,0),0))) -> 0 | I40: その他 | J40: なし | O40: =+VLOOKUP($J40,防具!$B$308:$J$358,3,FALSE) -> 0 | P40: =+VLOOKUP($J40,防具!$B$308:$J$358,4,FALSE) -> 0 | Q40: =+VLOOKUP($J40,防具!$B$308:$J$358,5,FALSE) -> 0 | R40: =+VLOOKUP($J40,防具!$B$308:$J$358,6,FALSE) -> 0 | S40: =+VLOOKUP($J40,防具!$B$308:$J$358,8,FALSE) -> 0 | U40: 能力を見る場合、 | X40: 呪文 | Y40: 系統 | Z40: № | AA40: 呪文 | AB40: 系統 | AC40: № | AE40: =IF(AG$6=0,0,IF(AL$6=0,VLOOKUP($L$10,データ!$B$4:$AF$13,25,FALSE)+VLOOKUP(AG$7,データ!$B$17:$AF$46,25,FALSE),0)) -> 90 | AG40: =+MAX(AH40,AL40) -> 0 | AH40: =MIN(90,IF(AG$7="ハイ・ウォーリアー",ROUNDDOWN(AE22/10,0)+ROUNDDOWN(AE24/20,0),IF(AG$7="アーチャー",ROUNDDOWN(AE22/10,0)+ROUNDDOWN(AE24/20,0),0))) -> 0 | AJ40: =IF(AL$6=0,0,IF(AQ$6=0,VLOOKUP($L$10,データ!$B$4:$AF$13,25,FALSE)+VLOOKUP(AL$7,データ!$B$17:$AF$46,25,FALSE),0)) -> 0 | AL40: =+MAX(AM40,AQ40) -> 0 | AM40: =MIN(90,IF(AL$7="ハイ・ウォーリアー",ROUNDDOWN(AJ22/10,0)+ROUNDDOWN(AJ24/20,0),IF(AL$7="アーチャー",ROUNDDOWN(AJ22/10,0)+ROUNDDOWN(AJ24/20,0),0))) -> 0 | AO40: =IF(AQ$6=0,0,IF(AV$6=0,VLOOKUP($L$10,データ!$B$4:$AF$13,25,FALSE)+VLOOKUP(AQ$7,データ!$B$17:$AF$46,25,FALSE),0)) -> 0 | AQ40: =+MAX(AR40,AV40) -> 0 | AR40: =MIN(90,IF(AQ$7="ハイ・ウォーリアー",ROUNDDOWN(AO22/10,0)+ROUNDDOWN(AO24/20,0),IF(AQ$7="アーチャー",ROUNDDOWN(AO22/10,0)+ROUNDDOWN(AO24/20,0),0))) -> 0 | AT40: =IF(AV$6=0,0,IF(BA$6=0,VLOOKUP($L$10,データ!$B$4:$AF$13,25,FALSE)+VLOOKUP(AV$7,データ!$B$17:$AF$46,25,FALSE),0)) -> 0 | AV40: =+MAX(AW40,BA40) -> 0 | AW40: =MIN(90,IF(AV$7="ハイ・ウォーリアー",ROUNDDOWN(AT22/10,0)+ROUNDDOWN(AT24/20,0),IF(AV$7="アーチャー",ROUNDDOWN(AT22/10,0)+ROUNDDOWN(AT24/20,0),0))) -> 0 | AY40: =IF(BA$6=0,0,IF(BF$6=0,VLOOKUP($L$10,データ!$B$4:$AF$13,25,FALSE)+VLOOKUP(BA$7,データ!$B$17:$AF$46,25,FALSE),0)) -> 0 | BA40: =+MAX(BB40,BF40) -> 0 | BB40: =MIN(90,IF(BA$7="ハイ・ウォーリアー",ROUNDDOWN(AY22/10,0)+ROUNDDOWN(AY24/20,0),IF(BA$7="アーチャー",ROUNDDOWN(AY22/10,0)+ROUNDDOWN(AY24/20,0),0))) -> 0 | BD40: =IF(BF$6=0,0,IF(BJ$6=0,VLOOKUP($L$10,データ!$B$4:$AF$13,25,FALSE)+VLOOKUP(BF$7,データ!$B$17:$AF$46,25,FALSE),0)) -> 0 | BF40: =+MAX(BG40,BJ40) -> 0 | BG40: =MIN(90,IF(BF$7="ハイ・ウォーリアー",ROUNDDOWN(BD22/10,0)+ROUNDDOWN(BD24/20,0),IF(BF$7="アーチャー",ROUNDDOWN(BD22/10,0)+ROUNDDOWN(BD24/20,0),0))) -> 0
I41: その他 | J41: なし | O41: =+VLOOKUP($J41,防具!$B$308:$J$358,3,FALSE) -> 0 | P41: =+VLOOKUP($J41,防具!$B$308:$J$358,4,FALSE) -> 0 | Q41: =+VLOOKUP($J41,防具!$B$308:$J$358,5,FALSE) -> 0 | R41: =+VLOOKUP($J41,防具!$B$308:$J$358,6,FALSE) -> 0 | S41: =+VLOOKUP($J41,防具!$B$308:$J$358,8,FALSE) -> 0 | U41: 「ハイ・ウォーリアー」を選択 | X41: 真正
B42: 槍 | E42: 槍 | F42: =+AE42+AJ42+AO42+AT42+AY42+BD42+C42 -> 90 | G42: 渾身の一撃 | H42: =IF(W$38<>"","あり",AG42) -> なし | I42: その他 | J42: なし | O42: =+VLOOKUP($J42,防具!$B$308:$J$358,3,FALSE) -> 0 | P42: =+VLOOKUP($J42,防具!$B$308:$J$358,4,FALSE) -> 0 | Q42: =+VLOOKUP($J42,防具!$B$308:$J$358,5,FALSE) -> 0 | R42: =+VLOOKUP($J42,防具!$B$308:$J$358,6,FALSE) -> 0 | S42: =+VLOOKUP($J42,防具!$B$308:$J$358,8,FALSE) -> 0 | AE42: =IF(AG$6=0,0,IF(AL$6=0,VLOOKUP($L$10,データ!$B$4:$AF$13,26,FALSE)+VLOOKUP(AG$7,データ!$B$17:$AF$46,26,FALSE),0)) -> 90 | AG42: =+IF(AH42="あり","あり",IF(AL42="あり","あり","なし")) -> なし | AH42: =IF(AG$7="ハイ・ウォーリアー","あり",IF(AG$7="ウォーリアー","あり","なし")) -> なし | AJ42: =IF(AL$6=0,0,IF(AQ$6=0,VLOOKUP($L$10,データ!$B$4:$AF$13,26,FALSE)+VLOOKUP(AL$7,データ!$B$17:$AF$46,26,FALSE),0)) -> 0 | AL42: =+IF(AM42="あり","あり",IF(AQ42="あり","あり","なし")) -> なし | AM42: =IF(AL$7="ハイ・ウォーリアー","あり",IF(AL$7="ウォーリアー","あり","なし")) -> なし | AO42: =IF(AQ$6=0,0,IF(AV$6=0,VLOOKUP($L$10,データ!$B$4:$AF$13,26,FALSE)+VLOOKUP(AQ$7,データ!$B$17:$AF$46,26,FALSE),0)) -> 0 | AQ42: =+IF(AR42="あり","あり",IF(AV42="あり","あり","なし")) -> なし | AR42: =IF(AQ$7="ハイ・ウォーリアー","あり",IF(AQ$7="ウォーリアー","あり","なし")) -> なし | AT42: =IF(AV$6=0,0,IF(BA$6=0,VLOOKUP($L$10,データ!$B$4:$AF$13,26,FALSE)+VLOOKUP(AV$7,データ!$B$17:$AF$46,26,FALSE),0)) -> 0 | AV42: =+IF(AW42="あり","あり",IF(BA42="あり","あり","なし")) -> なし | AW42: =IF(AV$7="ハイ・ウォーリアー","あり",IF(AV$7="ウォーリアー","あり","なし")) -> なし | AY42: =IF(BA$6=0,0,IF(BF$6=0,VLOOKUP($L$10,データ!$B$4:$AF$13,26,FALSE)+VLOOKUP(BA$7,データ!$B$17:$AF$46,26,FALSE),0)) -> 0 | BA42: =+IF(BB42="あり","あり",IF(BF42="あり","あり","なし")) -> なし | BB42: =IF(BA$7="ハイ・ウォーリアー","あり",IF(BA$7="ウォーリアー","あり","なし")) -> なし | BD42: =IF(BF$6=0,0,IF(BJ$6=0,VLOOKUP($L$10,データ!$B$4:$AF$13,26,FALSE)+VLOOKUP(BF$7,データ!$B$17:$AF$46,26,FALSE),0)) -> 0 | BF42: =+IF(BG42="あり","あり",IF(BJ42="あり","あり","なし")) -> なし | BG42: =IF(BF$7="ハイ・ウォーリアー","あり",IF(BF$7="ウォーリアー","あり","なし")) -> なし
I43: その他 | J43: なし | O43: =+VLOOKUP($J43,防具!$B$308:$J$358,3,FALSE) -> 0 | P43: =+VLOOKUP($J43,防具!$B$308:$J$358,4,FALSE) -> 0 | Q43: =+VLOOKUP($J43,防具!$B$308:$J$358,5,FALSE) -> 0 | R43: =+VLOOKUP($J43,防具!$B$308:$J$358,6,FALSE) -> 0 | S43: =+VLOOKUP($J43,防具!$B$308:$J$358,8,FALSE) -> 0
B44: 弓矢 | E44: 弓矢 | F44: =+AE44+AJ44+AO44+AT44+AY44+BD44+C44 -> 90 | G44: 流儀 | H44: =IF(W$38<>"","あり",AG44) -> なし | I44: 服（普段着） | P44: 個数： | Q44: 1 | S44: =+VLOOKUP(I44,アイテム!$B$4:$D$100,2,FALSE)*Q44 -> 2 | AE44: =IF(AG$6=0,0,IF(AL$6=0,VLOOKUP($L$10,データ!$B$4:$AF$13,27,FALSE)+VLOOKUP(AG$7,データ!$B$17:$AF$46,27,FALSE),0)) -> 90 | AG44: =+IF(AH44="あり","あり",IF(AL44="あり","あり","なし")) -> なし | AH44: =IF(AG$7="ハイ・ウォーリアー","あり",IF(AG$7="ナイト","あり","なし")) -> なし | AJ44: =IF(AL$6=0,0,IF(AQ$6=0,VLOOKUP($L$10,データ!$B$4:$AF$13,27,FALSE)+VLOOKUP(AL$7,データ!$B$17:$AF$46,27,FALSE),0)) -> 0 | AL44: =+IF(AM44="あり","あり",IF(AQ44="あり","あり","なし")) -> なし | AM44: =IF(AL$7="ハイ・ウォーリアー","あり",IF(AL$7="ナイト","あり","なし")) -> なし | AO44: =IF(AQ$6=0,0,IF(AV$6=0,VLOOKUP($L$10,データ!$B$4:$AF$13,27,FALSE)+VLOOKUP(AQ$7,データ!$B$17:$AF$46,27,FALSE),0)) -> 0 | AQ44: =+IF(AR44="あり","あり",IF(AV44="あり","あり","なし")) -> なし | AR44: =IF(AQ$7="ハイ・ウォーリアー","あり",IF(AQ$7="ナイト","あり","なし")) -> なし | AT44: =IF(AV$6=0,0,IF(BA$6=0,VLOOKUP($L$10,データ!$B$4:$AF$13,27,FALSE)+VLOOKUP(AV$7,データ!$B$17:$AF$46,27,FALSE),0)) -> 0 | AV44: =+IF(AW44="あり","あり",IF(BA44="あり","あり","なし")) -> なし | AW44: =IF(AV$7="ハイ・ウォーリアー","あり",IF(AV$7="ナイト","あり","なし")) -> なし | AY44: =IF(BA$6=0,0,IF(BF$6=0,VLOOKUP($L$10,データ!$B$4:$AF$13,27,FALSE)+VLOOKUP(BA$7,データ!$B$17:$AF$46,27,FALSE),0)) -> 0 | BA44: =+IF(BB44="あり","あり",IF(BF44="あり","あり","なし")) -> なし | BB44: =IF(BA$7="ハイ・ウォーリアー","あり",IF(BA$7="ナイト","あり","なし")) -> なし | BD44: =IF(BF$6=0,0,IF(BJ$6=0,VLOOKUP($L$10,データ!$B$4:$AF$13,27,FALSE)+VLOOKUP(BF$7,データ!$B$17:$AF$46,27,FALSE),0)) -> 0 | BF44: =+IF(BG44="あり","あり",IF(BJ44="あり","あり","なし")) -> なし | BG44: =IF(BF$7="ハイ・ウォーリアー","あり",IF(BF$7="ナイト","あり","なし")) -> なし
I45: マント | P45: 個数： | Q45: 1 | S45: =+VLOOKUP(I45,アイテム!$B$4:$D$100,2,FALSE)*Q45 -> 1
B46: 投擲 | E46: 投擲 | F46: =+AE46+AJ46+AO46+AT46+AY46+BD46+C46 -> 90 | G46: 防御力 | H46: =MAX(AG46,IF(W38<>"",L12+1000,0)) -> 1000 | P46: 個数： | S46: =+VLOOKUP(I46,アイテム!$B$4:$D$100,2,FALSE)*Q46 -> 0 | AE46: =IF(AG$6=0,0,IF(AL$6=0,VLOOKUP($L$10,データ!$B$4:$AF$13,28,FALSE)+VLOOKUP(AG$7,データ!$B$17:$AF$46,28,FALSE),0)) -> 90 | AG46: =+MAX(AH46,AL46) -> 1000 | AH46: =IF(AG$7="ハイ・ウォーリアー",AG6,IF(AG$7="バトラー",AG6,0))+IF(OR(L10="神",L10="異世界神"),AG6*10,0) -> 1000 | AJ46: =IF(AL$6=0,0,IF(AQ$6=0,VLOOKUP($L$10,データ!$B$4:$AF$13,28,FALSE)+VLOOKUP(AL$7,データ!$B$17:$AF$46,28,FALSE),0)) -> 0 | AL46: =+MAX(AM46,AQ46) -> 0 | AM46: =IF(AL$7="ハイ・ウォーリアー",AL6,IF(AL$7="バトラー",AL6,0)) -> 0 | AO46: =IF(AQ$6=0,0,IF(AV$6=0,VLOOKUP($L$10,データ!$B$4:$AF$13,28,FALSE)+VLOOKUP(AQ$7,データ!$B$17:$AF$46,28,FALSE),0)) -> 0 | AQ46: =+MAX(AR46,AV46) -> 0 | AR46: =IF(AQ$7="ハイ・ウォーリアー",AQ6,IF(AQ$7="バトラー",AQ6,0)) -> 0 | AT46: =IF(AV$6=0,0,IF(BA$6=0,VLOOKUP($L$10,データ!$B$4:$AF$13,28,FALSE)+VLOOKUP(AV$7,データ!$B$17:$AF$46,28,FALSE),0)) -> 0 | AV46: =+MAX(AW46,BA46) -> 0 | AW46: =IF(AV$7="ハイ・ウォーリアー",AV6,IF(AV$7="バトラー",AV6,0)) -> 0 | AY46: =IF(BA$6=0,0,IF(BF$6=0,VLOOKUP($L$10,データ!$B$4:$AF$13,28,FALSE)+VLOOKUP(BA$7,データ!$B$17:$AF$46,28,FALSE),0)) -> 0 | BA46: =+MAX(BB46,BF46) -> 0 | BB46: =IF(BA$7="ハイ・ウォーリアー",BA6,IF(BA$7="バトラー",BA6,0)) -> 0 | BD46: =IF(BF$6=0,0,IF(BJ$6=0,VLOOKUP($L$10,データ!$B$4:$AF$13,28,FALSE)+VLOOKUP(BF$7,データ!$B$17:$AF$46,28,FALSE),0)) -> 0 | BF46: =+MAX(BG46,BJ46) -> 0 | BG46: =IF(BF$7="ハイ・ウォーリアー",BF6,IF(BF$7="バトラー",BF6,0)) -> 0
P47: 個数： | S47: =+VLOOKUP(I47,アイテム!$B$4:$D$100,2,FALSE)*Q47 -> 0 | X47: =IF(AC54<>0,IF(AC54<37,"空系精霊魔術は37～72",""),"") -> 
B48: 格闘 | E48: 格闘 | F48: =+AE48+AJ48+AO48+AT48+AY48+BD48+C48 -> 90 | G48: 移動力 | H48: =ROUNDDOWN(F$20/50,0)+2+MAX(AG48,IF(W38<>"",1,0)) -> 206 | P48: 個数： | S48: =+VLOOKUP(I48,アイテム!$B$4:$D$100,2,FALSE)*Q48 -> 0 | AE48: =IF(AG$6=0,0,IF(AL$6=0,VLOOKUP($L$10,データ!$B$4:$AF$13,29,FALSE)+VLOOKUP(AG$7,データ!$B$17:$AF$46,29,FALSE),0)) -> 90 | AG48: =+MAX(AH48,AL48) -> 0 | AH48: =IF(AG$7="ハイ・ウォーリアー",1,IF(AG$7="ランサー",1,0)) -> 0 | AJ48: =IF(AL$6=0,0,IF(AQ$6=0,VLOOKUP($L$10,データ!$B$4:$AF$13,29,FALSE)+VLOOKUP(AL$7,データ!$B$17:$AF$46,29,FALSE),0)) -> 0 | AL48: =+MAX(AM48,AQ48) -> 0 | AM48: =IF(AL$7="ハイ・ウォーリアー",1,IF(AL$7="ランサー",1,0)) -> 0 | AO48: =IF(AQ$6=0,0,IF(AV$6=0,VLOOKUP($L$10,データ!$B$4:$AF$13,29,FALSE)+VLOOKUP(AQ$7,データ!$B$17:$AF$46,29,FALSE),0)) -> 0 | AQ48: =+MAX(AR48,AV48) -> 0 | AR48: =IF(AQ$7="ハイ・ウォーリアー",1,IF(AQ$7="ランサー",1,0)) -> 0 | AT48: =IF(AV$6=0,0,IF(BA$6=0,VLOOKUP($L$10,データ!$B$4:$AF$13,29,FALSE)+VLOOKUP(AV$7,データ!$B$17:$AF$46,29,FALSE),0)) -> 0 | AV48: =+MAX(AW48,BA48) -> 0 | AW48: =IF(AV$7="ハイ・ウォーリアー",1,IF(AV$7="ランサー",1,0)) -> 0 | AY48: =IF(BA$6=0,0,IF(BF$6=0,VLOOKUP($L$10,データ!$B$4:$AF$13,29,FALSE)+VLOOKUP(BA$7,データ!$B$17:$AF$46,29,FALSE),0)) -> 0 | BA48: =+MAX(BB48,BF48) -> 0 | BB48: =IF(BA$7="ハイ・ウォーリアー",1,IF(BA$7="ランサー",1,0)) -> 0 | BD48: =IF(BF$6=0,0,IF(BJ$6=0,VLOOKUP($L$10,データ!$B$4:$AF$13,29,FALSE)+VLOOKUP(BF$7,データ!$B$17:$AF$46,29,FALSE),0)) -> 0 | BF48: =+MAX(BG48,BJ48) -> 0 | BG48: =IF(BF$7="ハイ・ウォーリアー",1,IF(BF$7="ランサー",1,0)) -> 0
P49: 個数： | S49: =+VLOOKUP(I49,アイテム!$B$4:$D$100,2,FALSE)*Q49 -> 0 | U49: アルデリア共通語 | X49: =IF(W49="習得",U49&" ","") ->  | AA49: 習得呪文一覧
B50: 盾 | E50: 盾 | F50: =+AE50+AJ50+AO50+AT50+AY50+BD50+C50 -> 90 | G50: 敵判別 | H50: =MAX(AG50,IF(W38<>"",MIN(90,H13+50),MIN(90,H13))) -> 90 | P50: 個数： | S50: =+VLOOKUP(I50,アイテム!$B$4:$D$100,2,FALSE)*Q50 -> 0 | U50: フィノス語 | X50: =IF(W50="習得",U50&" ","") ->  | AA50: 精霊 | AB50: 地 | AC50: =IF(AC$54>36,36,データ!C75) -> 0 | AE50: =IF(AG$6=0,0,IF(AL$6=0,VLOOKUP($L$10,データ!$B$4:$AF$13,30,FALSE)+VLOOKUP(AG$7,データ!$B$17:$AF$46,30,FALSE),0)) -> 90 | AG50: =+MAX(AH50,AL50) -> 90 | AH50: =IF(AG$7="ハイ・ウォーリアー",MIN(90,ROUNDDOWN(AE12/5,0)+50),IF(AG$7="ウォーロック",MIN(90,ROUNDDOWN(AE12/5,0)+50),MIN(90,ROUNDDOWN(AE12/5,0)))) -> 90 | AJ50: =IF(AL$6=0,0,IF(AQ$6=0,VLOOKUP($L$10,データ!$B$4:$AF$13,30,FALSE)+VLOOKUP(AL$7,データ!$B$17:$AF$46,30,FALSE),0)) -> 0 | AL50: =+MAX(AM50,AQ50) -> 0 | AM50: =IF(AL$7="ハイ・ウォーリアー",MIN(90,ROUNDDOWN(AJ12/5,0)+50),IF(AL$7="ウォーロック",MIN(90,ROUNDDOWN(AJ12/5,0)+50),MIN(90,ROUNDDOWN(AJ12/5,0)))) -> 0 | AO50: =IF(AQ$6=0,0,IF(AV$6=0,VLOOKUP($L$10,データ!$B$4:$AF$13,30,FALSE)+VLOOKUP(AQ$7,データ!$B$17:$AF$46,30,FALSE),0)) -> 0 | AQ50: =+MAX(AR50,AV50) -> 0 | AR50: =IF(AQ$7="ハイ・ウォーリアー",MIN(90,ROUNDDOWN(AO12/5,0)+50),IF(AQ$7="ウォーロック",MIN(90,ROUNDDOWN(AO12/5,0)+50),MIN(90,ROUNDDOWN(AO12/5,0)))) -> 0 | AT50: =IF(AV$6=0,0,IF(BA$6=0,VLOOKUP($L$10,データ!$B$4:$AF$13,30,FALSE)+VLOOKUP(AV$7,データ!$B$17:$AF$46,30,FALSE),0)) -> 0 | AV50: =+MAX(AW50,BA50) -> 0 | AW50: =IF(AV$7="ハイ・ウォーリアー",MIN(90,ROUNDDOWN(AT12/5,0)+50),IF(AV$7="ウォーロック",MIN(90,ROUNDDOWN(AT12/5,0)+50),MIN(90,ROUNDDOWN(AT12/5,0)))) -> 0 | AY50: =IF(BA$6=0,0,IF(BF$6=0,VLOOKUP($L$10,データ!$B$4:$AF$13,30,FALSE)+VLOOKUP(BA$7,データ!$B$17:$AF$46,30,FALSE),0)) -> 0 | BA50: =+MAX(BB50,BF50) -> 0 | BB50: =IF(BA$7="ハイ・ウォーリアー",MIN(90,ROUNDDOWN(AY12/5,0)+50),IF(BA$7="ウォーロック",MIN(90,ROUNDDOWN(AY12/5,0)+50),MIN(90,ROUNDDOWN(AY12/5,0)))) -> 0 | BD50: =IF(BF$6=0,0,IF(BJ$6=0,VLOOKUP($L$10,データ!$B$4:$AF$13,30,FALSE)+VLOOKUP(BF$7,データ!$B$17:$AF$46,30,FALSE),0)) -> 0 | BF50: =+MAX(BG50,BJ50) -> 0 | BG50: =IF(BF$7="ハイ・ウォーリアー",MIN(90,ROUNDDOWN(BD12/5,0)+50),IF(BF$7="ウォーロック",MIN(90,ROUNDDOWN(BD12/5,0)+50),MIN(90,ROUNDDOWN(BD12/5,0)))) -> 0
P51: 個数： | S51: =+VLOOKUP(I51,アイテム!$B$4:$D$100,2,FALSE)*Q51 -> 0 | U51: エンティシア語 | AB51: 水 | AC51: =IF(AC$54>36,36,データ!C76) -> 0
E52: =B52 -> 0 | F52: =+AE52+AJ52+AO52+AT52+AY52+BD52+C52 -> 90 | G52: 抵抗力 （毒等） | H52: =MAX(AG52,IF(W38<>"",20,0)) -> 0 | P52: 個数： | S52: =+VLOOKUP(I52,アイテム!$B$4:$D$100,2,FALSE)*Q52 -> 0 | U52: アリミア語 | AB52: 火 | AC52: =IF(AC$54>36,36,データ!C77) -> 0 | AE52: =IF(AG$6=0,0,IF(AL$6=0,VLOOKUP($L$10,データ!$B$4:$AF$13,31,FALSE)+VLOOKUP(AG$7,データ!$B$17:$AF$46,31,FALSE),0)) -> 90 | AG52: =+MAX(AH52,AL52) -> 0 | AH52: =IF(AG$7="ハイ・ウォーリアー",20,IF(AG$7="ソーサラー",20,0)) -> 0 | AJ52: =IF(AL$6=0,0,IF(AQ$6=0,VLOOKUP($L$10,データ!$B$4:$AF$13,31,FALSE)+VLOOKUP(AL$7,データ!$B$17:$AF$46,31,FALSE),0)) -> 0 | AL52: =+MAX(AM52,AQ52) -> 0 | AM52: =IF(AL$7="ハイ・ウォーリアー",20,IF(AL$7="ソーサラー",20,0)) -> 0 | AO52: =IF(AQ$6=0,0,IF(AV$6=0,VLOOKUP($L$10,データ!$B$4:$AF$13,31,FALSE)+VLOOKUP(AQ$7,データ!$B$17:$AF$46,31,FALSE),0)) -> 0 | AQ52: =+MAX(AR52,AV52) -> 0 | AR52: =IF(AQ$7="ハイ・ウォーリアー",20,IF(AQ$7="ソーサラー",20,0)) -> 0 | AT52: =IF(AV$6=0,0,IF(BA$6=0,VLOOKUP($L$10,データ!$B$4:$AF$13,31,FALSE)+VLOOKUP(AV$7,データ!$B$17:$AF$46,31,FALSE),0)) -> 0 | AV52: =+MAX(AW52,BA52) -> 0 | AW52: =IF(AV$7="ハイ・ウォーリアー",20,IF(AV$7="ソーサラー",20,0)) -> 0 | AY52: =IF(BA$6=0,0,IF(BF$6=0,VLOOKUP($L$10,データ!$B$4:$AF$13,31,FALSE)+VLOOKUP(BA$7,データ!$B$17:$AF$46,31,FALSE),0)) -> 0 | BA52: =+MAX(BB52,BF52) -> 0 | BB52: =IF(BA$7="ハイ・ウォーリアー",20,IF(BA$7="ソーサラー",20,0)) -> 0 | BD52: =IF(BF$6=0,0,IF(BJ$6=0,VLOOKUP($L$10,データ!$B$4:$AF$13,31,FALSE)+VLOOKUP(BF$7,データ!$B$17:$AF$46,31,FALSE),0)) -> 0 | BF52: =+MAX(BG52,BJ52) -> 0 | BG52: =IF(BF$7="ハイ・ウォーリアー",20,IF(BF$7="ソーサラー",20,0)) -> 0
P53: 個数： | S53: =+VLOOKUP(I53,アイテム!$B$4:$D$100,2,FALSE)*Q53 -> 0 | U53: ワーデンハルト語 | AB53: 風 | AC53: =IF(AC$54>36,36,データ!C78) -> 0
E54: =B54 -> 0 | F54: =+AE54+AJ54+AO54+AT54+AY54+BD54+C54 -> 0 | G54: 抵抗力 （魔法） | H54: =MAX(AG54,IF(W38<>"",20,0)) -> 0 | I54: 所持金 | J54: 60529 | M54: GP | S54: =+ROUNDDOWN(J54/100,1) -> 605.2 | U54: サウザシア語 | AB54: 空 | AC54: =+データ!C79 -> 0 | AG54: =+MAX(AH54,AL54) -> 0 | AH54: =IF(AG$7="ハイ・ウォーリアー",20,IF(AG$7="クレリック",20,0)) -> 0 | AL54: =+MAX(AM54,AQ54) -> 0 | AM54: =IF(AL$7="ハイ・ウォーリアー",20,IF(AL$7="クレリック",20,0)) -> 0 | AQ54: =+MAX(AR54,AV54) -> 0 | AR54: =IF(AQ$7="ハイ・ウォーリアー",20,IF(AQ$7="クレリック",20,0)) -> 0 | AV54: =+MAX(AW54,BA54) -> 0 | AW54: =IF(AV$7="ハイ・ウォーリアー",20,IF(AV$7="クレリック",20,0)) -> 0 | BA54: =+MAX(BB54,BF54) -> 0 | BB54: =IF(BA$7="ハイ・ウォーリアー",20,IF(BA$7="クレリック",20,0)) -> 0 | BF54: =+MAX(BG54,BJ54) -> 0 | BG54: =IF(BF$7="ハイ・ウォーリアー",20,IF(BF$7="クレリック",20,0)) -> 0
I55: 総重量 | S55: =+SUM(S32:S54) -> 640.2 | U55: ファイデルシア語 | AA55: 神聖 | AB55: オーゼス | AC55: =+データ!C81 -> 0
E56: =B56 -> 0 | F56: =+AE56+AJ56+AO56+AT56+AY56+BD56+C56 -> 0 | G56: 解呪 | H56: =MIN(90,MAX(AG56,IF(W$38<>"",ROUNDDOWN(F$14/5,0),0))) -> 0 | I56: 独自の技・術 | U56: ヴァリアンティア共通語 | AB56: キャロライン | AC56: =IF(AC$55>36,36,データ!C82) -> 0 | AG56: =+MAX(AH56,AL56) -> 0 | AH56: =MIN(90,IF(AG$7="ハイ・ウォーリアー",ROUNDDOWN(AE14/5,0),IF(AG$7="セイント",ROUNDDOWN(AE14/5,0),0))) -> 0 | AL56: =+MAX(AM56,AQ56) -> 0 | AM56: =MIN(90,IF(AL$7="ハイ・ウォーリアー",ROUNDDOWN(AJ14/5,0),IF(AL$7="セイント",ROUNDDOWN(AJ14/5,0),0))) -> 0 | AQ56: =+MAX(AR56,AV56) -> 0 | AR56: =MIN(90,IF(AQ$7="ハイ・ウォーリアー",ROUNDDOWN(AO14/5,0),IF(AQ$7="セイント",ROUNDDOWN(AO14/5,0),0))) -> 0 | AV56: =+MAX(AW56,BA56) -> 0 | AW56: =MIN(90,IF(AV$7="ハイ・ウォーリアー",ROUNDDOWN(AT14/5,0),IF(AV$7="セイント",ROUNDDOWN(AT14/5,0),0))) -> 0 | BA56: =+MAX(BB56,BF56) -> 0 | BB56: =MIN(90,IF(BA$7="ハイ・ウォーリアー",ROUNDDOWN(AY14/5,0),IF(BA$7="セイント",ROUNDDOWN(AY14/5,0),0))) -> 0 | BF56: =+MAX(BG56,BJ56) -> 0 | BG56: =MIN(90,IF(BF$7="ハイ・ウォーリアー",ROUNDDOWN(BD14/5,0),IF(BF$7="セイント",ROUNDDOWN(BD14/5,0),0))) -> 0
U57: エルフ語 | AB57: ゼイバラル | AC57: =IF(AC$55>36,36,データ!C83) -> 0
E58: =B58 -> 0 | F58: =+AE58+AJ58+AO58+AT58+AY58+BD58+C58 -> 0 | G58: ディスペル | H58: =MIN(90,MAX(AG58,IF(W$38<>"",ROUNDDOWN(F$14/5,0),0))) -> 0 | U58: ドワーフ語 | AB58: セフィーア | AC58: =IF(AC$55>36,36,データ!C84) -> 0 | AG58: =+MAX(AH58,AL58) -> 0 | AH58: =MIN(90,IF(AG$7="ハイ・ウォーリアー",ROUNDDOWN(AE14/5,0),IF(AG$7="ビショップ",ROUNDDOWN(AE14/5,0),0))) -> 0 | AL58: =+MAX(AM58,AQ58) -> 0 | AM58: =MIN(90,IF(AL$7="ハイ・ウォーリアー",ROUNDDOWN(AJ14/5,0),IF(AL$7="ビショップ",ROUNDDOWN(AJ14/5,0),0))) -> 0 | AQ58: =+MAX(AR58,AV58) -> 0 | AR58: =MIN(90,IF(AQ$7="ハイ・ウォーリアー",ROUNDDOWN(AO14/5,0),IF(AQ$7="ビショップ",ROUNDDOWN(AO14/5,0),0))) -> 0 | AV58: =+MAX(AW58,BA58) -> 0 | AW58: =MIN(90,IF(AV$7="ハイ・ウォーリアー",ROUNDDOWN(AT14/5,0),IF(AV$7="ビショップ",ROUNDDOWN(AT14/5,0),0))) -> 0 | BA58: =+MAX(BB58,BF58) -> 0 | BB58: =MIN(90,IF(BA$7="ハイ・ウォーリアー",ROUNDDOWN(AY14/5,0),IF(BA$7="ビショップ",ROUNDDOWN(AY14/5,0),0))) -> 0 | BF58: =+MAX(BG58,BJ58) -> 0 | BG58: =MIN(90,IF(BF$7="ハイ・ウォーリアー",ROUNDDOWN(BD14/5,0),IF(BF$7="ビショップ",ROUNDDOWN(BD14/5,0),0))) -> 0
U59: ミナンスロープ語 | AA59: 精神 | AB59: デュランド | AC59: =+データ!C86 -> 0
E60: =B60 -> 0 | F60: =+AE60+AJ60+AO60+AT60+AY60+BD60+C60 -> 0 | G60: 鑑定 | H60: =MAX(AG60,MIN(90,IF(W38<>"",G12*3,0))) -> 0 | U60: 竜語 | AB60: ヴィラスケイズ | AC60: =IF(AC$59>36,36,データ!C87) -> 0 | AG60: =+MAX(AH60,AL60) -> 0 | AH60: =IF(AG$7="ハイ・ウォーリアー",AG12*3,IF(AG$7="セイジ",AG12*3,0)) -> 0 | AL60: =+MAX(AM60,AQ60) -> 0 | AM60: =IF(AL$7="ハイ・ウォーリアー",AL12*3,IF(AL$7="セイジ",AL12*3,0)) -> 0 | AQ60: =+MAX(AR60,AV60) -> 0 | AR60: =IF(AQ$7="ハイ・ウォーリアー",AQ12*3,IF(AQ$7="セイジ",AQ12*3,0)) -> 0 | AV60: =+MAX(AW60,BA60) -> 0 | AW60: =IF(AV$7="ハイ・ウォーリアー",AV12*3,IF(AV$7="セイジ",AV12*3,0)) -> 0 | BA60: =+MAX(BB60,BF60) -> 0 | BB60: =IF(BA$7="ハイ・ウォーリアー",BA12*3,IF(BA$7="セイジ",BA12*3,0)) -> 0 | BF60: =+MAX(BG60,BJ60) -> 0 | BG60: =IF(BF$7="ハイ・ウォーリアー",BF12*3,IF(BF$7="セイジ",BF12*3,0)) -> 0
U61: 妖精語 | AB61: フォルカーク | AC61: =IF(AC$59>36,36,データ!C88) -> 0
E62: =B62 -> 0 | F62: =+AE62+AJ62+AO62+AT62+AY62+BD62+C62 -> 0 | G62: 罠判別 | H62: =MAX(AG62,IF(W$38<>"",MIN(90,G$12*5),0)) -> 3087 | I62: プロフィール | U62: 鬼族語 | AB62: マトロック | AC62: =IF(AC$59>36,36,データ!C89) -> 0 | AG62: =+MAX(AH62,AL62) -> 3087 | AH62: =IF(AG$7="ハイ・ウォーリアー",AG$12*5,IF(AG$7="ハーミット",AG$12*5,AG$12*3)) -> 3087 | AL62: =+MAX(AM62,AQ62) -> 0 | AM62: =IF(AL$7="ハイ・ウォーリアー",AL$12*5,IF(AL$7="ハーミット",AL$12*5,AL$12*3)) -> 0 | AQ62: =+MAX(AR62,AV62) -> 0 | AR62: =IF(AQ$7="ハイ・ウォーリアー",AQ$12*5,IF(AQ$7="ハーミット",AQ$12*5,AQ$12*3)) -> 0 | AV62: =+MAX(AW62,BA62) -> 0 | AW62: =IF(AV$7="ハイ・ウォーリアー",AV$12*5,IF(AV$7="ハーミット",AV$12*5,AV$12*3)) -> 0 | BA62: =+MAX(BB62,BF62) -> 0 | BB62: =IF(BA$7="ハイ・ウォーリアー",BA$12*5,IF(BA$7="ハーミット",BA$12*5,BA$12*3)) -> 0 | BF62: =+MAX(BG62,BJ62) -> 0 | BG62: =IF(BF$7="ハイ・ウォーリアー",BF$12*5,IF(BF$7="ハーミット",BF$12*5,BF$12*3)) -> 0
I63: 「世界」を司る「リベの六大神」のうちで、最強の身体能力を持つと言われる存在。激しい闘志を秘めているが、その言動は理性的。普段は「魔眼」と呼ばれる左目を閉じており、この状態時には全能力値が本シートの半分になっている。かつて、全能力を解放した状態で「運命の戦士」バートラムに敗れており、強い戦士を多く擁するこの世界に興味を持っている。 | U63: 魔族語 | AA63: 暗黒 | AB63: ダルシンド | AC63: =+データ!C91 -> 0
E64: =B64 -> 0 | F64: =+AE64+AJ64+AO64+AT64+AY64+BD64+C64 -> 0 | G64: 罠解除 | H64: =MAX(AG64,IF(W$38<>"",MIN(90,G$12*5),0)) -> 1029 | U64: 巨人語 | AB64: ガルグ | AC64: =IF(AC$63>36,36,データ!C92) -> 0 | AG64: =+MAX(AH64,AL64) -> 1029 | AH64: =IF(AG$7="ハイ・ウォーリアー",AG$12*5,IF(AG$7="モンク",AG$12*5,AG$12)) -> 1029 | AL64: =+MAX(AM64,AQ64) -> 0 | AM64: =IF(AL$7="ハイ・ウォーリアー",AL$12*5,IF(AL$7="モンク",AL$12*5,AL$12)) -> 0 | AQ64: =+MAX(AR64,AV64) -> 0 | AR64: =IF(AQ$7="ハイ・ウォーリアー",AQ$12*5,IF(AQ$7="モンク",AQ$12*5,AQ$12)) -> 0 | AV64: =+MAX(AW64,BA64) -> 0 | AW64: =IF(AV$7="ハイ・ウォーリアー",AV$12*5,IF(AV$7="モンク",AV$12*5,AV$12)) -> 0 | BA64: =+MAX(BB64,BF64) -> 0 | BB64: =IF(BA$7="ハイ・ウォーリアー",BA$12*5,IF(BA$7="モンク",BA$12*5,BA$12)) -> 0 | BF64: =+MAX(BG64,BJ64) -> 0 | BG64: =IF(BF$7="ハイ・ウォーリアー",BF$12*5,IF(BF$7="モンク",BF$12*5,BF$12)) -> 0
U65: リザードマン語 | AB65: エル＝ディノルド | AC65: =IF(AC$63>36,36,データ!C93) -> 0
B66: 使用 ポイント | C66: =+COUNTA(B53:B65)*90+SUM(C32:C65) -> 0 | E66: 技能 ポイント | F66: =+AE66+AJ66+AO66+AT66+AY66+BD66-C66 -> 4988 | G66: 偵察 | H66: =MAX(AG66,IF(W$38<>"",MIN(90,G$12*4),0)) -> 1029 | U66: 精霊語 | AB66: ティルミリア | AC66: =IF(AC$63>36,36,データ!C94) -> 0 | AE66: =+AF66 -> 4988 | AF66: 4988 | AG66: =+MAX(AH66,AL66) -> 1029 | AH66: =IF(AG$7="ハイ・ウォーリアー",AG$12*4,IF(AG$7="ドルイド",AG$12*4,AG$12)) -> 1029 | AJ66: =+AK66 -> 0 | AL66: =+MAX(AM66,AQ66) -> 0 | AM66: =IF(AL$7="ハイ・ウォーリアー",AL$12*4,IF(AL$7="ドルイド",AL$12*4,AL$12)) -> 0 | AO66: =+AP66 -> 0 | AQ66: =+MAX(AR66,AV66) -> 0 | AR66: =IF(AQ$7="ハイ・ウォーリアー",AQ$12*4,IF(AQ$7="ドルイド",AQ$12*4,AQ$12)) -> 0 | AT66: =+AU66 -> 0 | AV66: =+MAX(AW66,BA66) -> 0 | AW66: =IF(AV$7="ハイ・ウォーリアー",AV$12*4,IF(AV$7="ドルイド",AV$12*4,AV$12)) -> 0 | AY66: =+AZ66 -> 0 | BA66: =+MAX(BB66,BF66) -> 0 | BB66: =IF(BA$7="ハイ・ウォーリアー",BA$12*4,IF(BA$7="ドルイド",BA$12*4,BA$12)) -> 0 | BD66: =+BE66 -> 0 | BF66: =+MAX(BG66,BJ66) -> 0 | BG66: =IF(BF$7="ハイ・ウォーリアー",BF$12*4,IF(BF$7="ドルイド",BF$12*4,BF$12)) -> 0
U67: 神聖語 | AA67: 真正 | AB67: － | AC67: =+データ!C96 -> 0

Sheet データ
C2: 回避値 | K2: 上昇値 | S2: 回避値 | T2: 命中率 | U2: 防御力 | V2: 技能
B3: 種族一覧 | C3: S | D3: I | E3: P | F3: M | G3: V | H3: A | I3: L | J3: F | K3: 筋力 | L3: 知恵 | M3: 信仰心 | N3: 精神力 | O3: 生命力 | P3: 敏捷度 | Q3: 幸運度 | R3: 魅力 | S3: 無制限 | T3: 修正 | U3: 修正 | V3: 剣 | W3: 斧 | X3: 棒 | Y3: 鞭 | Z3: 槌 | AA3: 槍 | AB3: 弓矢 | AC3: 投擲 | AD3: 格闘 | AE3: 盾 | AF3: 一般
B4: 人間 | C4: 4 | D4: 5 | E4: 1 | F4: 3 | G4: 5 | H4: 3 | I4: 1 | J4: 3 | K4: 2 | L4: 3 | M4: 0 | N4: 1 | O4: 3 | P4: 0 | Q4: 0 | R4: 1 | S4: 0 | V4: 40 | W4: 10 | X4: 20 | Y4: 20 | Z4: 10 | AA4: 10 | AB4: 10 | AC4: 20 | AD4: 20 | AE4: 20 | AF4: 10
B5: エルフ | C5: 2 | D5: 3 | E5: 3 | F5: 5 | G5: 1 | H5: 3 | I5: 3 | J5: 5 | K5: 0 | L5: 1 | M5: 1 | N5: 3 | O5: 0 | P5: 1 | Q5: 1 | R5: 3 | S5: 0 | V5: 10 | W5: 10 | X5: 20 | Y5: 20 | Z5: 10 | AA5: 10 | AB5: 40 | AC5: 20 | AD5: 20 | AE5: 20 | AF5: 10
B6: ドワーフ | C6: 5 | D6: 1 | E6: 5 | F6: 2 | G6: 4 | H6: 1 | I6: 4 | J6: 1 | K6: 3 | L6: 0 | M6: 3 | N6: 0 | O6: 2 | P6: 0 | Q6: 2 | R6: 0 | S6: 0 | T6: 5 | V6: 10 | W6: 40 | X6: 20 | Y6: 20 | Z6: 10 | AA6: 10 | AB6: 10 | AC6: 20 | AD6: 20 | AE6: 20 | AF6: 10
B7: ミナンスロープ | C7: 1 | D7: 2 | E7: 4 | F7: 1 | G7: 2 | H7: 5 | I7: 5 | J7: 2 | K7: 0 | L7: 1 | M7: 1 | N7: 1 | O7: 0 | P7: 3 | Q7: 3 | R7: 1 | S7: 0 | T7: 10 | V7: 10 | W7: 10 | X7: 20 | Y7: 20 | Z7: 10 | AA7: 40 | AB7: 10 | AC7: 20 | AD7: 20 | AE7: 20 | AF7: 10
B8: ハーフエルフ | C8: 3 | D8: 4 | E8: 2 | F8: 4 | G8: 3 | H8: 3 | I8: 2 | J8: 4 | K8: 1 | L8: 2 | M8: 0 | N8: 2 | O8: 2 | P8: 1 | Q8: 0 | R8: 2 | S8: 0 | V8: 10 | W8: 10 | X8: 20 | Y8: 20 | Z8: 40 | AA8: 10 | AB8: 10 | AC8: 20 | AD8: 20 | AE8: 20 | AF8: 10
B9: 神 | C9: 10 | D9: 10 | E9: 10 | F9: 10 | G9: 10 | H9: 10 | I9: 10 | J9: 10 | K9: 100 | L9: 100 | M9: 100 | N9: 100 | O9: 100 | P9: 100 | Q9: 100 | R9: 100 | S9: 1 | U9: 200 | V9: 90 | W9: 90 | X9: 90 | Y9: 90 | Z9: 90 | AA9: 90 | AB9: 90 | AC9: 90 | AD9: 90 | AE9: 90 | AF9: 90
B10: 異世界神 | C10: 10 | D10: 10 | E10: 10 | F10: 10 | G10: 10 | H10: 10 | I10: 10 | J10: 10 | K10: 100 | L10: 100 | M10: 100 | N10: 100 | O10: 100 | P10: 100 | Q10: 100 | R10: 100 | S10: 1 | U10: 200 | V10: 90 | W10: 90 | X10: 90 | Y10: 90 | Z10: 90 | AA10: 90 | AB10: 90 | AC10: 90 | AD10: 90 | AE10: 90 | AF10: 90
B11: 天使 | C11: 3 | D11: 3 | E11: 4 | F11: 3 | G11: 3 | H11: 3 | I11: 3 | J11: 3 | K11: 2 | L11: 1 | M11: 2 | N11: 1 | O11: 2 | P11: 1 | Q11: 1 | R11: 1 | S11: 1 | V11: 50 | W11: 50 | X11: 50 | Y11: 50 | Z11: 50 | AA11: 50 | AB11: 50 | AC11: 50 | AD11: 50 | AE11: 50 | AF11: 10
B12: デーモン | C12: 3 | D12: 3 | E12: 4 | F12: 3 | G12: 3 | H12: 3 | I12: 3 | J12: 3 | K12: 2 | L12: 1 | M12: 2 | N12: 1 | O12: 2 | P12: 1 | Q12: 1 | R12: 1 | S12: 1 | V12: 50 | W12: 50 | X12: 50 | Y12: 50 | Z12: 50 | AA12: 50 | AB12: 50 | AC12: 50 | AD12: 50 | AE12: 50 | AF12: 10
B13: デビル | C13: 3 | D13: 3 | E13: 4 | F13: 3 | G13: 3 | H13: 3 | I13: 3 | J13: 3 | K13: 2 | L13: 1 | M13: 2 | N13: 1 | O13: 2 | P13: 1 | Q13: 1 | R13: 1 | S13: 1 | V13: 50 | W13: 50 | X13: 50 | Y13: 50 | Z13: 50 | AA13: 50 | AB13: 50 | AC13: 50 | AD13: 50 | AE13: 50 | AF13: 10
C15: 回避値 | K15: 上昇値 | S15: 回避値 | T15: 命中率 | U15: 防御力 | V15: 技能 | AG15: 特殊能力 | AY15: クラス | AZ15: 呪文系統 | BB15: 呪文
B16: クラス一覧 | C16: S | D16: I | E16: P | F16: M | G16: V | H16: A | I16: L | J16: F | K16: 筋力 | L16: 知恵 | M16: 信仰心 | N16: 精神力 | O16: 生命力 | P16: 敏捷度 | Q16: 幸運度 | R16: 魅力 | S16: 無制限 | T16: 修正 | U16: 修正 | V16: 剣 | W16: 斧 | X16: 棒 | Y16: 鞭 | Z16: 槌 | AA16: 槍 | AB16: 弓矢 | AC16: 投擲 | AD16: 格闘 | AE16: 盾 | AF16: 一般 | AG16: 快打 | AH16: 昏倒打 | AI16: 致命打 | AJ16: 攻撃回数 | AK16: 不意討ち | AL16: 渾身の一撃 | AM16: 流儀 | AN16: 防御力 | AO16: 移動力 | AP16: 敵判別 | AQ16: 毒抵抗 | AR16: 魔法抵抗 | AS16: 解呪 | AT16: ディスペル | AU16: 鑑定 | AV16: 罠判別 | AW16: 罠解除 | AX16: 偵察 | AY16: 分類 | AZ16: その1 | BA16: その2 | BB16: 速度
B17: なし | S17: 0 | AY17: 1 | BB17: 1
B18: ファイター | K18: 3 | O18: 4 | Q18: 1 | S18: 0 | V18: 10 | W18: 50 | X18: 10 | Y18: 10 | Z18: 10 | AA18: 10 | AB18: 10 | AC18: 10 | AD18: 30 | AE18: 30 | AH18: 1 | AY18: 1 | BB18: 1
B19: バトラー | K19: 4 | O19: 3 | Q19: 1 | S19: 0 | X19: 10 | Y19: 10 | Z19: 50 | AC19: 10 | AD19: 30 | AE19: 10 | AN19: 1 | AY19: 1 | BB19: 1
B20: フェンサー | K20: 3 | O20: 3 | P20: 1 | Q20: 1 | S20: 0 | V20: 50 | X20: 10 | Y20: 10 | AC20: 10 | AD20: 30 | AE20: 10 | AG20: 1 | AY20: 1 | BB20: 1
B21: ランサー | K21: 3 | O21: 3 | P21: 1 | Q21: 1 | S21: 0 | X21: 10 | Y21: 10 | AA21: 50 | AC21: 10 | AD21: 30 | AE21: 10 | AO21: 1 | AY21: 1 | BB21: 1
B22: アーチャー | K22: 3 | O22: 3 | P22: 1 | Q22: 1 | S22: 0 | X22: 10 | Y22: 10 | AB22: 50 | AC22: 10 | AD22: 30 | AE22: 10 | AK22: 1 | AY22: 1 | BB22: 1
B23: ウォーロック | K23: 0 | L23: 3 | N23: 1 | P23: 3 | Q23: 1 | S23: 0 | X23: 10 | Y23: 10 | AC23: 10 | AD23: 10 | AE23: 10 | AP23: 1 | AY23: 2 | AZ23: 1 | BB23: 2
B24: クレリック | M24: 3 | N24: 1 | P24: 3 | Q24: 1 | S24: 0 | X24: 10 | Y24: 10 | AC24: 10 | AD24: 10 | AE24: 10 | AR24: 1 | AY24: 2 | AZ24: 2 | BB24: 2
B25: ソーサラー | N25: 4 | P25: 3 | Q25: 1 | S25: 0 | X25: 10 | Y25: 10 | AC25: 10 | AD25: 10 | AE25: 10 | AQ25: 1 | AY25: 2 | AZ25: 3 | BB25: 2
B26: エクスパート | K26: 4 | O26: 1 | P26: 2 | R26: 1 | S26: 0 | V26: 10 | W26: 50 | X26: 10 | Y26: 10 | AC26: 10 | AD26: 30 | AE26: 30 | AI26: 1 | AY26: 3 | BB26: 1
B27: ウォーリアー | K27: 3 | L27: 1 | N27: 1 | O27: 2 | R27: 1 | S27: 0 | V27: 30 | W27: 30 | X27: 30 | Y27: 30 | Z27: 30 | AA27: 30 | AB27: 30 | AC27: 30 | AD27: 30 | AE27: 30 | AL27: 1 | AY27: 3 | AZ27: 1 | BB27: 1
B28: バラディン | K28: 3 | M28: 1 | N28: 1 | O28: 2 | R28: 1 | S28: 0 | V28: 30 | W28: 30 | X28: 30 | Y28: 30 | Z28: 30 | AA28: 30 | AB28: 30 | AC28: 30 | AD28: 30 | AE28: 30 | AJ28: 1 | AY28: 3 | AZ28: 2 | BB28: 1
B29: ナイト | K29: 3 | N29: 2 | O29: 2 | R29: 1 | S29: 0 | V29: 30 | W29: 30 | X29: 30 | Y29: 30 | Z29: 30 | AA29: 30 | AB29: 30 | AC29: 30 | AD29: 30 | AE29: 30 | AM29: 1 | AY29: 3 | AZ29: 3 | BB29: 1
B30: セイント | L30: 2 | M30: 2 | N30: 1 | P30: 2 | R30: 1 | S30: 0 | X30: 10 | Y30: 10 | AC30: 10 | AD30: 10 | AE30: 10 | AS30: 1 | AY30: 4 | AZ30: 1 | BA30: 2 | BB30: 1
B31: セイジ | L31: 2 | N31: 3 | P31: 2 | R31: 1 | S31: 0 | X31: 10 | Y31: 10 | AC31: 10 | AD31: 10 | AE31: 10 | AU31: 1 | AY31: 4 | AZ31: 1 | BA31: 3 | BB31: 1
B32: ビショップ | M32: 2 | N32: 3 | P32: 2 | R32: 1 | S32: 0 | X32: 10 | Y32: 10 | AC32: 10 | AD32: 10 | AE32: 10 | AT32: 1 | AY32: 4 | AZ32: 2 | BA32: 3 | BB32: 1
B33: ドルイド | K33: 1 | L33: 2 | N33: 1 | O33: 1 | P33: 2 | R33: 1 | S33: 0 | X33: 10 | Y33: 10 | Z33: 50 | AA33: 10 | AB33: 10 | AC33: 10 | AD33: 30 | AE33: 10 | AX33: 1 | AY33: 4 | AZ33: 1 | BB33: 2
B34: モンク | K34: 1 | M34: 2 | N34: 1 | O34: 1 | P34: 2 | R34: 1 | S34: 0 | X34: 10 | Y34: 10 | Z34: 50 | AA34: 10 | AB34: 10 | AC34: 10 | AD34: 30 | AE34: 10 | AW34: 1 | AY34: 4 | AZ34: 2 | BB34: 2
B35: ハーミット | K35: 1 | N35: 3 | O35: 1 | P35: 2 | R35: 1 | S35: 0 | X35: 10 | Y35: 10 | Z35: 50 | AA35: 10 | AB35: 10 | AC35: 10 | AD35: 30 | AE35: 10 | AV35: 1 | AY35: 4 | AZ35: 3 | BB35: 2
B36: ダイアボリスト | M36: 3 | N36: 1 | P36: 3 | Q36: 1 | S36: 0 | X36: 10 | Y36: 10 | AC36: 10 | AD36: 10 | AE36: 10 | AR36: 1 | AY36: 2 | AZ36: 4 | BB36: 2
B37: アサシン | K37: 4 | O37: 1 | P37: 2 | R37: 1 | S37: 0 | V37: 10 | W37: 50 | X37: 10 | Y37: 10 | AC37: 10 | AD37: 30 | AE37: 30 | AI37: 1 | AY37: 3 | BB37: 1
B38: ダーク・ソルジャー | K38: 3 | L38: 1 | N38: 1 | O38: 2 | R38: 1 | S38: 0 | V38: 30 | W38: 30 | X38: 30 | Y38: 30 | Z38: 30 | AA38: 30 | AB38: 30 | AC38: 30 | AD38: 30 | AE38: 30 | AL38: 1 | AY38: 3 | AZ38: 1 | BB38: 1
B39: ダーク・ロード | K39: 3 | M39: 1 | N39: 1 | O39: 2 | R39: 1 | S39: 0 | V39: 30 | W39: 30 | X39: 30 | Y39: 30 | Z39: 30 | AA39: 30 | AB39: 30 | AC39: 30 | AD39: 30 | AE39: 30 | AJ39: 1 | AY39: 3 | AZ39: 4 | BB39: 1
B40: ダーク・ナイト | K40: 3 | N40: 2 | O40: 2 | R40: 1 | S40: 0 | V40: 30 | W40: 30 | X40: 30 | Y40: 30 | Z40: 30 | AA40: 30 | AB40: 30 | AC40: 30 | AD40: 30 | AE40: 30 | AM40: 1 | AY40: 3 | AZ40: 3 | BB40: 1
B41: ダーク・ウィザード | L41: 2 | M41: 2 | N41: 1 | P41: 2 | R41: 1 | S41: 0 | X41: 10 | Y41: 10 | AC41: 10 | AD41: 10 | AE41: 10 | AS41: 1 | AY41: 4 | AZ41: 1 | BA41: 4 | BB41: 1
B42: ダーク・メイジ | L42: 2 | N42: 3 | P42: 2 | R42: 1 | S42: 0 | X42: 10 | Y42: 10 | AC42: 10 | AD42: 10 | AE42: 10 | AU42: 1 | AY42: 4 | AZ42: 1 | BA42: 3 | BB42: 1
B43: イリュージョニスト | M43: 2 | N43: 3 | P43: 2 | R43: 1 | S43: 0 | X43: 10 | Y43: 10 | AC43: 10 | AD43: 10 | AE43: 10 | AT43: 1 | AY43: 4 | AZ43: 3 | BA43: 4 | BB43: 1
B44: ダーク・シャーマン | K44: 1 | L44: 2 | N44: 1 | O44: 1 | P44: 2 | R44: 1 | S44: 0 | X44: 10 | Y44: 10 | Z44: 50 | AA44: 10 | AB44: 10 | AC44: 10 | AD44: 30 | AE44: 10 | AX44: 1 | AY44: 4 | AZ44: 1 | BB44: 2
B45: ネクロマンサー | K45: 1 | M45: 2 | N45: 1 | O45: 1 | P45: 2 | R45: 1 | S45: 0 | X45: 10 | Y45: 10 | Z45: 50 | AA45: 10 | AB45: 10 | AC45: 10 | AD45: 30 | AE45: 10 | AW45: 1 | AY45: 4 | AZ45: 4 | BB45: 2
B46: コンジャラー | K46: 1 | N46: 3 | O46: 1 | P46: 2 | R46: 1 | S46: 0 | X46: 10 | Y46: 10 | Z46: 50 | AA46: 10 | AB46: 10 | AC46: 10 | AD46: 30 | AE46: 10 | AV46: 1 | AY46: 4 | AZ46: 3 | BB46: 2
B47: ハイ・ウォーリアー | K47: 10 | L47: 10 | M47: 10 | N47: 10 | O47: 10 | P47: 10 | Q47: 10 | R47: 10 | S47: 1 | U47: 200 | AG47: 1 | AH47: 1 | AI47: 1 | AJ47: 1 | AK47: 1 | AL47: 1 | AM47: 1 | AN47: 1 | AO47: 1 | AP47: 1 | AQ47: 1 | AR47: 1 | AS47: 1 | AT47: 1 | AU47: 1 | AV47: 1 | AW47: 1 | AX47: 1 | AZ47: 全て | BB47: 2
C48: ※ハイ・ウォーリアーはHP・MP各+3,000
C50: 回避値 | K50: 上昇値
B51: 属性一覧 | C51: S | D51: I | E51: P | F51: M | G51: V | H51: A | I51: L | J51: F | K51: 筋力 | L51: 知恵 | M51: 信仰心 | N51: 精神力 | O51: 生命力 | P51: 敏捷度 | Q51: 幸運度 | R51: 魅力
B52: 善 | L52: 1 | M52: 1 | Q52: 1 | R52: 1
B53: 悪 | L53: 1 | M53: 1 | Q53: 1 | R53: -1
B54: 中立 | L54: 1 | M54: 1 | Q54: 1 | R54: -3
B57: 性別一覧
B58: 男
B59: 女
B60: なし
B61: 不明
B64: 魔術一覧
A65: 0
A66: 1 | B66: 精霊
A67: 2 | B67: 神聖
A68: 3 | B68: 精神
A69: 4 | B69: 暗黒
A70: 5 | B70: 真正
B73: 魔術系統一覧 | C73: 最大値 | E73: 計算用フラグ
A74: 精霊
A75: 精霊 | B75: 地 | C75: =MAX(E75:AB75) -> 0 | E75: =+IF(シート!$Y$31=$B75,シート!$Z$31,0) -> 0 | F75: =+IF(シート!$Y$32=$B75,シート!$Z$32,0) -> 0 | G75: =+IF(シート!$Y$33=$B75,シート!$Z$33,0) -> 0 | H75: =+IF(シート!$Y$34=$B75,シート!$Z$34,0) -> 0 | I75: =+IF(シート!$Y$35=$B75,シート!$Z$35,0) -> 0 | J75: =+IF(シート!$Y$36=$B75,シート!$Z$36,0) -> 0 | K75: =+IF(シート!$AB$31=$B75,シート!$AC$31,0) -> 0 | L75: =+IF(シート!$AB$32=$B75,シート!$AC$32,0) -> 0 | M75: =+IF(シート!$AB$33=$B75,シート!$AC$33,0) -> 0 | N75: =+IF(シート!$AB$34=$B75,シート!$AC$34,0) -> 0 | O75: =+IF(シート!$AB$35=$B75,シート!$AC$35,0) -> 0 | P75: =+IF(シート!$AB$36=$B75,シート!$AC$36,0) -> 0 | Q75: =+IF(シート!$Y$41=$B75,シート!$Z$41,0) -> 0 | R75: =+IF(シート!$Y$42=$B75,シート!$Z$42,0) -> 0 | S75: =+IF(シート!$Y$43=$B75,シート!$Z$43,0) -> 0 | T75: =+IF(シート!$Y$44=$B75,シート!$Z$44,0) -> 0 | U75: =+IF(シート!$Y$45=$B75,シート!$Z$45,0) -> 0 | V75: =+IF(シート!$Y$46=$B75,シート!$Z$46,0) -> 0 | W75: =+IF(シート!$AB$41=$B75,シート!$AC$41,0) -> 0 | X75: =+IF(シート!$AB$42=$B75,シート!$AC$42,0) -> 0 | Y75: =+IF(シート!$AB$43=$B75,シート!$AC$43,0) -> 0 | Z75: =+IF(シート!$AB$44=$B75,シート!$AC$44,0) -> 0 | AA75: =+IF(シート!$AB$45=$B75,シート!$AC$45,0) -> 0 | AB75: =+IF(シート!$AB$46=$B75,シート!$AC$46,0) -> 0
A76: 精霊 | B76: 水 | C76: =MAX(E76:AB76) -> 0 | E76: =+IF(シート!$Y$31=$B76,シート!$Z$31,0) -> 0 | F76: =+IF(シート!$Y$32=$B76,シート!$Z$32,0) -> 0 | G76: =+IF(シート!$Y$33=$B76,シート!$Z$33,0) -> 0 | H76: =+IF(シート!$Y$34=$B76,シート!$Z$34,0) -> 0 | I76: =+IF(シート!$Y$35=$B76,シート!$Z$35,0) -> 0 | J76: =+IF(シート!$Y$36=$B76,シート!$Z$36,0) -> 0 | K76: =+IF(シート!$AB$31=$B76,シート!$AC$31,0) -> 0 | L76: =+IF(シート!$AB$32=$B76,シート!$AC$32,0) -> 0 | M76: =+IF(シート!$AB$33=$B76,シート!$AC$33,0) -> 0 | N76: =+IF(シート!$AB$34=$B76,シート!$AC$34,0) -> 0 | O76: =+IF(シート!$AB$35=$B76,シート!$AC$35,0) -> 0 | P76: =+IF(シート!$AB$36=$B76,シート!$AC$36,0) -> 0 | Q76: =+IF(シート!$Y$41=$B76,シート!$Z$41,0) -> 0 | R76: =+IF(シート!$Y$42=$B76,シート!$Z$42,0) -> 0 | S76: =+IF(シート!$Y$43=$B76,シート!$Z$43,0) -> 0 | T76: =+IF(シート!$Y$44=$B76,シート!$Z$44,0) -> 0 | U76: =+IF(シート!$Y$45=$B76,シート!$Z$45,0) -> 0 | V76: =+IF(シート!$Y$46=$B76,シート!$Z$46,0) -> 0 | W76: =+IF(シート!$AB$41=$B76,シート!$AC$41,0) -> 0 | X76: =+IF(シート!$AB$42=$B76,シート!$AC$42,0) -> 0 | Y76: =+IF(シート!$AB$43=$B76,シート!$AC$43,0) -> 0 | Z76: =+IF(シート!$AB$44=$B76,シート!$AC$44,0) -> 0 | AA76: =+IF(シート!$AB$45=$B76,シート!$AC$45,0) -> 0 | AB76: =+IF(シート!$AB$46=$B76,シート!$AC$46,0) -> 0
A77: 精霊 | B77: 火 | C77: =MAX(E77:AB77) -> 0 | E77: =+IF(シート!$Y$31=$B77,シート!$Z$31,0) -> 0 | F77: =+IF(シート!$Y$32=$B77,シート!$Z$32,0) -> 0 | G77: =+IF(シート!$Y$33=$B77,シート!$Z$33,0) -> 0 | H77: =+IF(シート!$Y$34=$B77,シート!$Z$34,0) -> 0 | I77: =+IF(シート!$Y$35=$B77,シート!$Z$35,0) -> 0 | J77: =+IF(シート!$Y$36=$B77,シート!$Z$36,0) -> 0 | K77: =+IF(シート!$AB$31=$B77,シート!$AC$31,0) -> 0 | L77: =+IF(シート!$AB$32=$B77,シート!$AC$32,0) -> 0 | M77: =+IF(シート!$AB$33=$B77,シート!$AC$33,0) -> 0 | N77: =+IF(シート!$AB$34=$B77,シート!$AC$34,0) -> 0 | O77: =+IF(シート!$AB$35=$B77,シート!$AC$35,0) -> 0 | P77: =+IF(シート!$AB$36=$B77,シート!$AC$36,0) -> 0 | Q77: =+IF(シート!$Y$41=$B77,シート!$Z$41,0) -> 0 | R77: =+IF(シート!$Y$42=$B77,シート!$Z$42,0) -> 0 | S77: =+IF(シート!$Y$43=$B77,シート!$Z$43,0) -> 0 | T77: =+IF(シート!$Y$44=$B77,シート!$Z$44,0) -> 0 | U77: =+IF(シート!$Y$45=$B77,シート!$Z$45,0) -> 0 | V77: =+IF(シート!$Y$46=$B77,シート!$Z$46,0) -> 0 | W77: =+IF(シート!$AB$41=$B77,シート!$AC$41,0) -> 0 | X77: =+IF(シート!$AB$42=$B77,シート!$AC$42,0) -> 0 | Y77: =+IF(シート!$AB$43=$B77,シート!$AC$43,0) -> 0 | Z77: =+IF(シート!$AB$44=$B77,シート!$AC$44,0) -> 0 | AA77: =+IF(シート!$AB$45=$B77,シート!$AC$45,0) -> 0 | AB77: =+IF(シート!$AB$46=$B77,シート!$AC$46,0) -> 0
A78: 精霊 | B78: 風 | C78: =MAX(E78:AB78) -> 0 | E78: =+IF(シート!$Y$31=$B78,シート!$Z$31,0) -> 0 | F78: =+IF(シート!$Y$32=$B78,シート!$Z$32,0) -> 0 | G78: =+IF(シート!$Y$33=$B78,シート!$Z$33,0) -> 0 | H78: =+IF(シート!$Y$34=$B78,シート!$Z$34,0) -> 0 | I78: =+IF(シート!$Y$35=$B78,シート!$Z$35,0) -> 0 | J78: =+IF(シート!$Y$36=$B78,シート!$Z$36,0) -> 0 | K78: =+IF(シート!$AB$31=$B78,シート!$AC$31,0) -> 0 | L78: =+IF(シート!$AB$32=$B78,シート!$AC$32,0) -> 0 | M78: =+IF(シート!$AB$33=$B78,シート!$AC$33,0) -> 0 | N78: =+IF(シート!$AB$34=$B78,シート!$AC$34,0) -> 0 | O78: =+IF(シート!$AB$35=$B78,シート!$AC$35,0) -> 0 | P78: =+IF(シート!$AB$36=$B78,シート!$AC$36,0) -> 0 | Q78: =+IF(シート!$Y$41=$B78,シート!$Z$41,0) -> 0 | R78: =+IF(シート!$Y$42=$B78,シート!$Z$42,0) -> 0 | S78: =+IF(シート!$Y$43=$B78,シート!$Z$43,0) -> 0 | T78: =+IF(シート!$Y$44=$B78,シート!$Z$44,0) -> 0 | U78: =+IF(シート!$Y$45=$B78,シート!$Z$45,0) -> 0 | V78: =+IF(シート!$Y$46=$B78,シート!$Z$46,0) -> 0 | W78: =+IF(シート!$AB$41=$B78,シート!$AC$41,0) -> 0 | X78: =+IF(シート!$AB$42=$B78,シート!$AC$42,0) -> 0 | Y78: =+IF(シート!$AB$43=$B78,シート!$AC$43,0) -> 0 | Z78: =+IF(シート!$AB$44=$B78,シート!$AC$44,0) -> 0 | AA78: =+IF(シート!$AB$45=$B78,シート!$AC$45,0) -> 0 | AB78: =+IF(シート!$AB$46=$B78,シート!$AC$46,0) -> 0
A79: 精霊 | B79: 空 | C79: =MAX(E79:AB79) -> 0 | E79: =+IF(シート!$Y$31=$B79,シート!$Z$31,0) -> 0 | F79: =+IF(シート!$Y$32=$B79,シート!$Z$32,0) -> 0 | G79: =+IF(シート!$Y$33=$B79,シート!$Z$33,0) -> 0 | H79: =+IF(シート!$Y$34=$B79,シート!$Z$34,0) -> 0 | I79: =+IF(シート!$Y$35=$B79,シート!$Z$35,0) -> 0 | J79: =+IF(シート!$Y$36=$B79,シート!$Z$36,0) -> 0 | K79: =+IF(シート!$AB$31=$B79,シート!$AC$31,0) -> 0 | L79: =+IF(シート!$AB$32=$B79,シート!$AC$32,0) -> 0 | M79: =+IF(シート!$AB$33=$B79,シート!$AC$33,0) -> 0 | N79: =+IF(シート!$AB$34=$B79,シート!$AC$34,0) -> 0 | O79: =+IF(シート!$AB$35=$B79,シート!$AC$35,0) -> 0 | P79: =+IF(シート!$AB$36=$B79,シート!$AC$36,0) -> 0 | Q79: =+IF(シート!$Y$41=$B79,シート!$Z$41,0) -> 0 | R79: =+IF(シート!$Y$42=$B79,シート!$Z$42,0) -> 0 | S79: =+IF(シート!$Y$43=$B79,シート!$Z$43,0) -> 0 | T79: =+IF(シート!$Y$44=$B79,シート!$Z$44,0) -> 0 | U79: =+IF(シート!$Y$45=$B79,シート!$Z$45,0) -> 0 | V79: =+IF(シート!$Y$46=$B79,シート!$Z$46,0) -> 0 | W79: =+IF(シート!$AB$41=$B79,シート!$AC$41,0) -> 0 | X79: =+IF(シート!$AB$42=$B79,シート!$AC$42,0) -> 0 | Y79: =+IF(シート!$AB$43=$B79,シート!$AC$43,0) -> 0 | Z79: =+IF(シート!$AB$44=$B79,シート!$AC$44,0) -> 0 | AA79: =+IF(シート!$AB$45=$B79,シート!$AC$45,0) -> 0 | AB79: =+IF(シート!$AB$46=$B79,シート!$AC$46,0) -> 0
A80: 神聖
A81: 神聖 | B81: オーゼス | C81: =MAX(E81:AB81) -> 0 | E81: =+IF(シート!$Y$31=$B81,シート!$Z$31,0) -> 0 | F81: =+IF(シート!$Y$32=$B81,シート!$Z$32,0) -> 0 | G81: =+IF(シート!$Y$33=$B81,シート!$Z$33,0) -> 0 | H81: =+IF(シート!$Y$34=$B81,シート!$Z$34,0) -> 0 | I81: =+IF(シート!$Y$35=$B81,シート!$Z$35,0) -> 0 | J81: =+IF(シート!$Y$36=$B81,シート!$Z$36,0) -> 0 | K81: =+IF(シート!$AB$31=$B81,シート!$AC$31,0) -> 0 | L81: =+IF(シート!$AB$32=$B81,シート!$AC$32,0) -> 0 | M81: =+IF(シート!$AB$33=$B81,シート!$AC$33,0) -> 0 | N81: =+IF(シート!$AB$34=$B81,シート!$AC$34,0) -> 0 | O81: =+IF(シート!$AB$35=$B81,シート!$AC$35,0) -> 0 | P81: =+IF(シート!$AB$36=$B81,シート!$AC$36,0) -> 0 | Q81: =+IF(シート!$Y$41=$B81,シート!$Z$41,0) -> 0 | R81: =+IF(シート!$Y$42=$B81,シート!$Z$42,0) -> 0 | S81: =+IF(シート!$Y$43=$B81,シート!$Z$43,0) -> 0 | T81: =+IF(シート!$Y$44=$B81,シート!$Z$44,0) -> 0 | U81: =+IF(シート!$Y$45=$B81,シート!$Z$45,0) -> 0 | V81: =+IF(シート!$Y$46=$B81,シート!$Z$46,0) -> 0 | W81: =+IF(シート!$AB$41=$B81,シート!$AC$41,0) -> 0 | X81: =+IF(シート!$AB$42=$B81,シート!$AC$42,0) -> 0 | Y81: =+IF(シート!$AB$43=$B81,シート!$AC$43,0) -> 0 | Z81: =+IF(シート!$AB$44=$B81,シート!$AC$44,0) -> 0 | AA81: =+IF(シート!$AB$45=$B81,シート!$AC$45,0) -> 0 | AB81: =+IF(シート!$AB$46=$B81,シート!$AC$46,0) -> 0
A82: 神聖 | B82: キャロライン | C82: =MAX(E82:AB82) -> 0 | E82: =+IF(シート!$Y$31=$B82,シート!$Z$31,0) -> 0 | F82: =+IF(シート!$Y$32=$B82,シート!$Z$32,0) -> 0 | G82: =+IF(シート!$Y$33=$B82,シート!$Z$33,0) -> 0 | H82: =+IF(シート!$Y$34=$B82,シート!$Z$34,0) -> 0 | I82: =+IF(シート!$Y$35=$B82,シート!$Z$35,0) -> 0 | J82: =+IF(シート!$Y$36=$B82,シート!$Z$36,0) -> 0 | K82: =+IF(シート!$AB$31=$B82,シート!$AC$31,0) -> 0 | L82: =+IF(シート!$AB$32=$B82,シート!$AC$32,0) -> 0 | M82: =+IF(シート!$AB$33=$B82,シート!$AC$33,0) -> 0 | N82: =+IF(シート!$AB$34=$B82,シート!$AC$34,0) -> 0 | O82: =+IF(シート!$AB$35=$B82,シート!$AC$35,0) -> 0 | P82: =+IF(シート!$AB$36=$B82,シート!$AC$36,0) -> 0 | Q82: =+IF(シート!$Y$41=$B82,シート!$Z$41,0) -> 0 | R82: =+IF(シート!$Y$42=$B82,シート!$Z$42,0) -> 0 | S82: =+IF(シート!$Y$43=$B82,シート!$Z$43,0) -> 0 | T82: =+IF(シート!$Y$44=$B82,シート!$Z$44,0) -> 0 | U82: =+IF(シート!$Y$45=$B82,シート!$Z$45,0) -> 0 | V82: =+IF(シート!$Y$46=$B82,シート!$Z$46,0) -> 0 | W82: =+IF(シート!$AB$41=$B82,シート!$AC$41,0) -> 0 | X82: =+IF(シート!$AB$42=$B82,シート!$AC$42,0) -> 0 | Y82: =+IF(シート!$AB$43=$B82,シート!$AC$43,0) -> 0 | Z82: =+IF(シート!$AB$44=$B82,シート!$AC$44,0) -> 0 | AA82: =+IF(シート!$AB$45=$B82,シート!$AC$45,0) -> 0 | AB82: =+IF(シート!$AB$46=$B82,シート!$AC$46,0) -> 0
A83: 神聖 | B83: ゼイバラル | C83: =MAX(E83:AB83) -> 0 | E83: =+IF(シート!$Y$31=$B83,シート!$Z$31,0) -> 0 | F83: =+IF(シート!$Y$32=$B83,シート!$Z$32,0) -> 0 | G83: =+IF(シート!$Y$33=$B83,シート!$Z$33,0) -> 0 | H83: =+IF(シート!$Y$34=$B83,シート!$Z$34,0) -> 0 | I83: =+IF(シート!$Y$35=$B83,シート!$Z$35,0) -> 0 | J83: =+IF(シート!$Y$36=$B83,シート!$Z$36,0) -> 0 | K83: =+IF(シート!$AB$31=$B83,シート!$AC$31,0) -> 0 | L83: =+IF(シート!$AB$32=$B83,シート!$AC$32,0) -> 0 | M83: =+IF(シート!$AB$33=$B83,シート!$AC$33,0) -> 0 | N83: =+IF(シート!$AB$34=$B83,シート!$AC$34,0) -> 0 | O83: =+IF(シート!$AB$35=$B83,シート!$AC$35,0) -> 0 | P83: =+IF(シート!$AB$36=$B83,シート!$AC$36,0) -> 0 | Q83: =+IF(シート!$Y$41=$B83,シート!$Z$41,0) -> 0 | R83: =+IF(シート!$Y$42=$B83,シート!$Z$42,0) -> 0 | S83: =+IF(シート!$Y$43=$B83,シート!$Z$43,0) -> 0 | T83: =+IF(シート!$Y$44=$B83,シート!$Z$44,0) -> 0 | U83: =+IF(シート!$Y$45=$B83,シート!$Z$45,0) -> 0 | V83: =+IF(シート!$Y$46=$B83,シート!$Z$46,0) -> 0 | W83: =+IF(シート!$AB$41=$B83,シート!$AC$41,0) -> 0 | X83: =+IF(シート!$AB$42=$B83,シート!$AC$42,0) -> 0 | Y83: =+IF(シート!$AB$43=$B83,シート!$AC$43,0) -> 0 | Z83: =+IF(シート!$AB$44=$B83,シート!$AC$44,0) -> 0 | AA83: =+IF(シート!$AB$45=$B83,シート!$AC$45,0) -> 0 | AB83: =+IF(シート!$AB$46=$B83,シート!$AC$46,0) -> 0
A84: 神聖 | B84: セフィーア | C84: =MAX(E84:AB84) -> 0 | E84: =+IF(シート!$Y$31=$B84,シート!$Z$31,0) -> 0 | F84: =+IF(シート!$Y$32=$B84,シート!$Z$32,0) -> 0 | G84: =+IF(シート!$Y$33=$B84,シート!$Z$33,0) -> 0 | H84: =+IF(シート!$Y$34=$B84,シート!$Z$34,0) -> 0 | I84: =+IF(シート!$Y$35=$B84,シート!$Z$35,0) -> 0 | J84: =+IF(シート!$Y$36=$B84,シート!$Z$36,0) -> 0 | K84: =+IF(シート!$AB$31=$B84,シート!$AC$31,0) -> 0 | L84: =+IF(シート!$AB$32=$B84,シート!$AC$32,0) -> 0 | M84: =+IF(シート!$AB$33=$B84,シート!$AC$33,0) -> 0 | N84: =+IF(シート!$AB$34=$B84,シート!$AC$34,0) -> 0 | O84: =+IF(シート!$AB$35=$B84,シート!$AC$35,0) -> 0 | P84: =+IF(シート!$AB$36=$B84,シート!$AC$36,0) -> 0 | Q84: =+IF(シート!$Y$41=$B84,シート!$Z$41,0) -> 0 | R84: =+IF(シート!$Y$42=$B84,シート!$Z$42,0) -> 0 | S84: =+IF(シート!$Y$43=$B84,シート!$Z$43,0) -> 0 | T84: =+IF(シート!$Y$44=$B84,シート!$Z$44,0) -> 0 | U84: =+IF(シート!$Y$45=$B84,シート!$Z$45,0) -> 0 | V84: =+IF(シート!$Y$46=$B84,シート!$Z$46,0) -> 0 | W84: =+IF(シート!$AB$41=$B84,シート!$AC$41,0) -> 0 | X84: =+IF(シート!$AB$42=$B84,シート!$AC$42,0) -> 0 | Y84: =+IF(シート!$AB$43=$B84,シート!$AC$43,0) -> 0 | Z84: =+IF(シート!$AB$44=$B84,シート!$AC$44,0) -> 0 | AA84: =+IF(シート!$AB$45=$B84,シート!$AC$45,0) -> 0 | AB84: =+IF(シート!$AB$46=$B84,シート!$AC$46,0) -> 0
A85: 精神
A86: 精神 | B86: デュランド | C86: =MAX(E86:AB86) -> 0 | E86: =+IF(シート!$Y$31=$B86,シート!$Z$31,0) -> 0 | F86: =+IF(シート!$Y$32=$B86,シート!$Z$32,0) -> 0 | G86: =+IF(シート!$Y$33=$B86,シート!$Z$33,0) -> 0 | H86: =+IF(シート!$Y$34=$B86,シート!$Z$34,0) -> 0 | I86: =+IF(シート!$Y$35=$B86,シート!$Z$35,0) -> 0 | J86: =+IF(シート!$Y$36=$B86,シート!$Z$36,0) -> 0 | K86: =+IF(シート!$AB$31=$B86,シート!$AC$31,0) -> 0 | L86: =+IF(シート!$AB$32=$B86,シート!$AC$32,0) -> 0 | M86: =+IF(シート!$AB$33=$B86,シート!$AC$33,0) -> 0 | N86: =+IF(シート!$AB$34=$B86,シート!$AC$34,0) -> 0 | O86: =+IF(シート!$AB$35=$B86,シート!$AC$35,0) -> 0 | P86: =+IF(シート!$AB$36=$B86,シート!$AC$36,0) -> 0 | Q86: =+IF(シート!$Y$41=$B86,シート!$Z$41,0) -> 0 | R86: =+IF(シート!$Y$42=$B86,シート!$Z$42,0) -> 0 | S86: =+IF(シート!$Y$43=$B86,シート!$Z$43,0) -> 0 | T86: =+IF(シート!$Y$44=$B86,シート!$Z$44,0) -> 0 | U86: =+IF(シート!$Y$45=$B86,シート!$Z$45,0) -> 0 | V86: =+IF(シート!$Y$46=$B86,シート!$Z$46,0) -> 0 | W86: =+IF(シート!$AB$41=$B86,シート!$AC$41,0) -> 0 | X86: =+IF(シート!$AB$42=$B86,シート!$AC$42,0) -> 0 | Y86: =+IF(シート!$AB$43=$B86,シート!$AC$43,0) -> 0 | Z86: =+IF(シート!$AB$44=$B86,シート!$AC$44,0) -> 0 | AA86: =+IF(シート!$AB$45=$B86,シート!$AC$45,0) -> 0 | AB86: =+IF(シート!$AB$46=$B86,シート!$AC$46,0) -> 0
A87: 精神 | B87: ヴィラスケイズ | C87: =MAX(E87:AB87) -> 0 | E87: =+IF(シート!$Y$31=$B87,シート!$Z$31,0) -> 0 | F87: =+IF(シート!$Y$32=$B87,シート!$Z$32,0) -> 0 | G87: =+IF(シート!$Y$33=$B87,シート!$Z$33,0) -> 0 | H87: =+IF(シート!$Y$34=$B87,シート!$Z$34,0) -> 0 | I87: =+IF(シート!$Y$35=$B87,シート!$Z$35,0) -> 0 | J87: =+IF(シート!$Y$36=$B87,シート!$Z$36,0) -> 0 | K87: =+IF(シート!$AB$31=$B87,シート!$AC$31,0) -> 0 | L87: =+IF(シート!$AB$32=$B87,シート!$AC$32,0) -> 0 | M87: =+IF(シート!$AB$33=$B87,シート!$AC$33,0) -> 0 | N87: =+IF(シート!$AB$34=$B87,シート!$AC$34,0) -> 0 | O87: =+IF(シート!$AB$35=$B87,シート!$AC$35,0) -> 0 | P87: =+IF(シート!$AB$36=$B87,シート!$AC$36,0) -> 0 | Q87: =+IF(シート!$Y$41=$B87,シート!$Z$41,0) -> 0 | R87: =+IF(シート!$Y$42=$B87,シート!$Z$42,0) -> 0 | S87: =+IF(シート!$Y$43=$B87,シート!$Z$43,0) -> 0 | T87: =+IF(シート!$Y$44=$B87,シート!$Z$44,0) -> 0 | U87: =+IF(シート!$Y$45=$B87,シート!$Z$45,0) -> 0 | V87: =+IF(シート!$Y$46=$B87,シート!$Z$46,0) -> 0 | W87: =+IF(シート!$AB$41=$B87,シート!$AC$41,0) -> 0 | X87: =+IF(シート!$AB$42=$B87,シート!$AC$42,0) -> 0 | Y87: =+IF(シート!$AB$43=$B87,シート!$AC$43,0) -> 0 | Z87: =+IF(シート!$AB$44=$B87,シート!$AC$44,0) -> 0 | AA87: =+IF(シート!$AB$45=$B87,シート!$AC$45,0) -> 0 | AB87: =+IF(シート!$AB$46=$B87,シート!$AC$46,0) -> 0
A88: 精神 | B88: フォルカーク | C88: =MAX(E88:AB88) -> 0 | E88: =+IF(シート!$Y$31=$B88,シート!$Z$31,0) -> 0 | F88: =+IF(シート!$Y$32=$B88,シート!$Z$32,0) -> 0 | G88: =+IF(シート!$Y$33=$B88,シート!$Z$33,0) -> 0 | H88: =+IF(シート!$Y$34=$B88,シート!$Z$34,0) -> 0 | I88: =+IF(シート!$Y$35=$B88,シート!$Z$35,0) -> 0 | J88: =+IF(シート!$Y$36=$B88,シート!$Z$36,0) -> 0 | K88: =+IF(シート!$AB$31=$B88,シート!$AC$31,0) -> 0 | L88: =+IF(シート!$AB$32=$B88,シート!$AC$32,0) -> 0 | M88: =+IF(シート!$AB$33=$B88,シート!$AC$33,0) -> 0 | N88: =+IF(シート!$AB$34=$B88,シート!$AC$34,0) -> 0 | O88: =+IF(シート!$AB$35=$B88,シート!$AC$35,0) -> 0 | P88: =+IF(シート!$AB$36=$B88,シート!$AC$36,0) -> 0 | Q88: =+IF(シート!$Y$41=$B88,シート!$Z$41,0) -> 0 | R88: =+IF(シート!$Y$42=$B88,シート!$Z$42,0) -> 0 | S88: =+IF(シート!$Y$43=$B88,シート!$Z$43,0) -> 0 | T88: =+IF(シート!$Y$44=$B88,シート!$Z$44,0) -> 0 | U88: =+IF(シート!$Y$45=$B88,シート!$Z$45,0) -> 0 | V88: =+IF(シート!$Y$46=$B88,シート!$Z$46,0) -> 0 | W88: =+IF(シート!$AB$41=$B88,シート!$AC$41,0) -> 0 | X88: =+IF(シート!$AB$42=$B88,シート!$AC$42,0) -> 0 | Y88: =+IF(シート!$AB$43=$B88,シート!$AC$43,0) -> 0 | Z88: =+IF(シート!$AB$44=$B88,シート!$AC$44,0) -> 0 | AA88: =+IF(シート!$AB$45=$B88,シート!$AC$45,0) -> 0 | AB88: =+IF(シート!$AB$46=$B88,シート!$AC$46,0) -> 0
A89: 精神 | B89: マトロック | C89: =MAX(E89:AB89) -> 0 | E89: =+IF(シート!$Y$31=$B89,シート!$Z$31,0) -> 0 | F89: =+IF(シート!$Y$32=$B89,シート!$Z$32,0) -> 0 | G89: =+IF(シート!$Y$33=$B89,シート!$Z$33,0) -> 0 | H89: =+IF(シート!$Y$34=$B89,シート!$Z$34,0) -> 0 | I89: =+IF(シート!$Y$35=$B89,シート!$Z$35,0) -> 0 | J89: =+IF(シート!$Y$36=$B89,シート!$Z$36,0) -> 0 | K89: =+IF(シート!$AB$31=$B89,シート!$AC$31,0) -> 0 | L89: =+IF(シート!$AB$32=$B89,シート!$AC$32,0) -> 0 | M89: =+IF(シート!$AB$33=$B89,シート!$AC$33,0) -> 0 | N89: =+IF(シート!$AB$34=$B89,シート!$AC$34,0) -> 0 | O89: =+IF(シート!$AB$35=$B89,シート!$AC$35,0) -> 0 | P89: =+IF(シート!$AB$36=$B89,シート!$AC$36,0) -> 0 | Q89: =+IF(シート!$Y$41=$B89,シート!$Z$41,0) -> 0 | R89: =+IF(シート!$Y$42=$B89,シート!$Z$42,0) -> 0 | S89: =+IF(シート!$Y$43=$B89,シート!$Z$43,0) -> 0 | T89: =+IF(シート!$Y$44=$B89,シート!$Z$44,0) -> 0 | U89: =+IF(シート!$Y$45=$B89,シート!$Z$45,0) -> 0 | V89: =+IF(シート!$Y$46=$B89,シート!$Z$46,0) -> 0 | W89: =+IF(シート!$AB$41=$B89,シート!$AC$41,0) -> 0 | X89: =+IF(シート!$AB$42=$B89,シート!$AC$42,0) -> 0 | Y89: =+IF(シート!$AB$43=$B89,シート!$AC$43,0) -> 0 | Z89: =+IF(シート!$AB$44=$B89,シート!$AC$44,0) -> 0 | AA89: =+IF(シート!$AB$45=$B89,シート!$AC$45,0) -> 0 | AB89: =+IF(シート!$AB$46=$B89,シート!$AC$46,0) -> 0
A90: 暗黒
A91: 暗黒 | B91: ダルシンド | C91: =MAX(E91:AB91) -> 0 | E91: =+IF(シート!$Y$31=$B91,シート!$Z$31,0) -> 0 | F91: =+IF(シート!$Y$32=$B91,シート!$Z$32,0) -> 0 | G91: =+IF(シート!$Y$33=$B91,シート!$Z$33,0) -> 0 | H91: =+IF(シート!$Y$34=$B91,シート!$Z$34,0) -> 0 | I91: =+IF(シート!$Y$35=$B91,シート!$Z$35,0) -> 0 | J91: =+IF(シート!$Y$36=$B91,シート!$Z$36,0) -> 0 | K91: =+IF(シート!$AB$31=$B91,シート!$AC$31,0) -> 0 | L91: =+IF(シート!$AB$32=$B91,シート!$AC$32,0) -> 0 | M91: =+IF(シート!$AB$33=$B91,シート!$AC$33,0) -> 0 | N91: =+IF(シート!$AB$34=$B91,シート!$AC$34,0) -> 0 | O91: =+IF(シート!$AB$35=$B91,シート!$AC$35,0) -> 0 | P91: =+IF(シート!$AB$36=$B91,シート!$AC$36,0) -> 0 | Q91: =+IF(シート!$Y$41=$B91,シート!$Z$41,0) -> 0 | R91: =+IF(シート!$Y$42=$B91,シート!$Z$42,0) -> 0 | S91: =+IF(シート!$Y$43=$B91,シート!$Z$43,0) -> 0 | T91: =+IF(シート!$Y$44=$B91,シート!$Z$44,0) -> 0 | U91: =+IF(シート!$Y$45=$B91,シート!$Z$45,0) -> 0 | V91: =+IF(シート!$Y$46=$B91,シート!$Z$46,0) -> 0 | W91: =+IF(シート!$AB$41=$B91,シート!$AC$41,0) -> 0 | X91: =+IF(シート!$AB$42=$B91,シート!$AC$42,0) -> 0 | Y91: =+IF(シート!$AB$43=$B91,シート!$AC$43,0) -> 0 | Z91: =+IF(シート!$AB$44=$B91,シート!$AC$44,0) -> 0 | AA91: =+IF(シート!$AB$45=$B91,シート!$AC$45,0) -> 0 | AB91: =+IF(シート!$AB$46=$B91,シート!$AC$46,0) -> 0
A92: 暗黒 | B92: ガルグ | C92: =MAX(E92:AB92) -> 0 | E92: =+IF(シート!$Y$31=$B92,シート!$Z$31,0) -> 0 | F92: =+IF(シート!$Y$32=$B92,シート!$Z$32,0) -> 0 | G92: =+IF(シート!$Y$33=$B92,シート!$Z$33,0) -> 0 | H92: =+IF(シート!$Y$34=$B92,シート!$Z$34,0) -> 0 | I92: =+IF(シート!$Y$35=$B92,シート!$Z$35,0) -> 0 | J92: =+IF(シート!$Y$36=$B92,シート!$Z$36,0) -> 0 | K92: =+IF(シート!$AB$31=$B92,シート!$AC$31,0) -> 0 | L92: =+IF(シート!$AB$32=$B92,シート!$AC$32,0) -> 0 | M92: =+IF(シート!$AB$33=$B92,シート!$AC$33,0) -> 0 | N92: =+IF(シート!$AB$34=$B92,シート!$AC$34,0) -> 0 | O92: =+IF(シート!$AB$35=$B92,シート!$AC$35,0) -> 0 | P92: =+IF(シート!$AB$36=$B92,シート!$AC$36,0) -> 0 | Q92: =+IF(シート!$Y$41=$B92,シート!$Z$41,0) -> 0 | R92: =+IF(シート!$Y$42=$B92,シート!$Z$42,0) -> 0 | S92: =+IF(シート!$Y$43=$B92,シート!$Z$43,0) -> 0 | T92: =+IF(シート!$Y$44=$B92,シート!$Z$44,0) -> 0 | U92: =+IF(シート!$Y$45=$B92,シート!$Z$45,0) -> 0 | V92: =+IF(シート!$Y$46=$B92,シート!$Z$46,0) -> 0 | W92: =+IF(シート!$AB$41=$B92,シート!$AC$41,0) -> 0 | X92: =+IF(シート!$AB$42=$B92,シート!$AC$42,0) -> 0 | Y92: =+IF(シート!$AB$43=$B92,シート!$AC$43,0) -> 0 | Z92: =+IF(シート!$AB$44=$B92,シート!$AC$44,0) -> 0 | AA92: =+IF(シート!$AB$45=$B92,シート!$AC$45,0) -> 0 | AB92: =+IF(シート!$AB$46=$B92,シート!$AC$46,0) -> 0
A93: 暗黒 | B93: エル＝ディノルド | C93: =MAX(E93:AB93) -> 0 | E93: =+IF(シート!$Y$31=$B93,シート!$Z$31,0) -> 0 | F93: =+IF(シート!$Y$32=$B93,シート!$Z$32,0) -> 0 | G93: =+IF(シート!$Y$33=$B93,シート!$Z$33,0) -> 0 | H93: =+IF(シート!$Y$34=$B93,シート!$Z$34,0) -> 0 | I93: =+IF(シート!$Y$35=$B93,シート!$Z$35,0) -> 0 | J93: =+IF(シート!$Y$36=$B93,シート!$Z$36,0) -> 0 | K93: =+IF(シート!$AB$31=$B93,シート!$AC$31,0) -> 0 | L93: =+IF(シート!$AB$32=$B93,シート!$AC$32,0) -> 0 | M93: =+IF(シート!$AB$33=$B93,シート!$AC$33,0) -> 0 | N93: =+IF(シート!$AB$34=$B93,シート!$AC$34,0) -> 0 | O93: =+IF(シート!$AB$35=$B93,シート!$AC$35,0) -> 0 | P93: =+IF(シート!$AB$36=$B93,シート!$AC$36,0) -> 0 | Q93: =+IF(シート!$Y$41=$B93,シート!$Z$41,0) -> 0 | R93: =+IF(シート!$Y$42=$B93,シート!$Z$42,0) -> 0 | S93: =+IF(シート!$Y$43=$B93,シート!$Z$43,0) -> 0 | T93: =+IF(シート!$Y$44=$B93,シート!$Z$44,0) -> 0 | U93: =+IF(シート!$Y$45=$B93,シート!$Z$45,0) -> 0 | V93: =+IF(シート!$Y$46=$B93,シート!$Z$46,0) -> 0 | W93: =+IF(シート!$AB$41=$B93,シート!$AC$41,0) -> 0 | X93: =+IF(シート!$AB$42=$B93,シート!$AC$42,0) -> 0 | Y93: =+IF(シート!$AB$43=$B93,シート!$AC$43,0) -> 0 | Z93: =+IF(シート!$AB$44=$B93,シート!$AC$44,0) -> 0 | AA93: =+IF(シート!$AB$45=$B93,シート!$AC$45,0) -> 0 | AB93: =+IF(シート!$AB$46=$B93,シート!$AC$46,0) -> 0
A94: 暗黒 | B94: ティルミリア | C94: =MAX(E94:AB94) -> 0 | E94: =+IF(シート!$Y$31=$B94,シート!$Z$31,0) -> 0 | F94: =+IF(シート!$Y$32=$B94,シート!$Z$32,0) -> 0 | G94: =+IF(シート!$Y$33=$B94,シート!$Z$33,0) -> 0 | H94: =+IF(シート!$Y$34=$B94,シート!$Z$34,0) -> 0 | I94: =+IF(シート!$Y$35=$B94,シート!$Z$35,0) -> 0 | J94: =+IF(シート!$Y$36=$B94,シート!$Z$36,0) -> 0 | K94: =+IF(シート!$AB$31=$B94,シート!$AC$31,0) -> 0 | L94: =+IF(シート!$AB$32=$B94,シート!$AC$32,0) -> 0 | M94: =+IF(シート!$AB$33=$B94,シート!$AC$33,0) -> 0 | N94: =+IF(シート!$AB$34=$B94,シート!$AC$34,0) -> 0 | O94: =+IF(シート!$AB$35=$B94,シート!$AC$35,0) -> 0 | P94: =+IF(シート!$AB$36=$B94,シート!$AC$36,0) -> 0 | Q94: =+IF(シート!$Y$41=$B94,シート!$Z$41,0) -> 0 | R94: =+IF(シート!$Y$42=$B94,シート!$Z$42,0) -> 0 | S94: =+IF(シート!$Y$43=$B94,シート!$Z$43,0) -> 0 | T94: =+IF(シート!$Y$44=$B94,シート!$Z$44,0) -> 0 | U94: =+IF(シート!$Y$45=$B94,シート!$Z$45,0) -> 0 | V94: =+IF(シート!$Y$46=$B94,シート!$Z$46,0) -> 0 | W94: =+IF(シート!$AB$41=$B94,シート!$AC$41,0) -> 0 | X94: =+IF(シート!$AB$42=$B94,シート!$AC$42,0) -> 0 | Y94: =+IF(シート!$AB$43=$B94,シート!$AC$43,0) -> 0 | Z94: =+IF(シート!$AB$44=$B94,シート!$AC$44,0) -> 0 | AA94: =+IF(シート!$AB$45=$B94,シート!$AC$45,0) -> 0 | AB94: =+IF(シート!$AB$46=$B94,シート!$AC$46,0) -> 0
A95: 真正
A96: 真正 | B96: － | C96: =MAX(E96:AB96) -> 0 | E96: =+IF(シート!$Y$31=$B96,シート!$Z$31,0) -> 0 | F96: =+IF(シート!$Y$32=$B96,シート!$Z$32,0) -> 0 | G96: =+IF(シート!$Y$33=$B96,シート!$Z$33,0) -> 0 | H96: =+IF(シート!$Y$34=$B96,シート!$Z$34,0) -> 0 | I96: =+IF(シート!$Y$35=$B96,シート!$Z$35,0) -> 0 | J96: =+IF(シート!$Y$36=$B96,シート!$Z$36,0) -> 0 | K96: =+IF(シート!$AB$31=$B96,シート!$AC$31,0) -> 0 | L96: =+IF(シート!$AB$32=$B96,シート!$AC$32,0) -> 0 | M96: =+IF(シート!$AB$33=$B96,シート!$AC$33,0) -> 0 | N96: =+IF(シート!$AB$34=$B96,シート!$AC$34,0) -> 0 | O96: =+IF(シート!$AB$35=$B96,シート!$AC$35,0) -> 0 | P96: =+IF(シート!$AB$36=$B96,シート!$AC$36,0) -> 0 | Q96: =+IF(シート!$Y$41=$B96,シート!$Z$41,0) -> 0 | R96: =+IF(シート!$Y$42=$B96,シート!$Z$42,0) -> 0 | S96: =+IF(シート!$Y$43=$B96,シート!$Z$43,0) -> 0 | T96: =+IF(シート!$Y$44=$B96,シート!$Z$44,0) -> 0 | U96: =+IF(シート!$Y$45=$B96,シート!$Z$45,0) -> 0 | V96: =+IF(シート!$Y$46=$B96,シート!$Z$46,0) -> 0 | W96: =+IF(シート!$AB$41=$B96,シート!$AC$41,0) -> 0 | X96: =+IF(シート!$AB$42=$B96,シート!$AC$42,0) -> 0 | Y96: =+IF(シート!$AB$43=$B96,シート!$AC$43,0) -> 0 | Z96: =+IF(シート!$AB$44=$B96,シート!$AC$44,0) -> 0 | AA96: =+IF(シート!$AB$45=$B96,シート!$AC$45,0) -> 0 | AB96: =+IF(シート!$AB$46=$B96,シート!$AC$46,0) -> 0
B99: 言語オプション
B101: 習得

Sheet 武器
B3: 材質 | D3: 攻撃力 | E3: 防御力 | F3: 命中率 | G3: 回避率 | H3: 重量（鎧） | I3: 重量 | J3: 価格
D4: 0 | E4: 0 | H4: 0 | I4: 0 | J4: 1
B5: ブラス | D5: 5 | E5: 1 | H5: -5 | I5: -1 | J5: 10
B6: アイアン | D6: 10 | E6: 2 | H6: -10 | I6: -2 | J6: 20
B7: スチール | D7: 15 | E7: 3 | H7: -15 | I7: -3 | J7: 30
B8: シルバー | D8: 20 | E8: 4 | H8: -20 | I8: -4 | J8: 40
B9: ハイパー | D9: 25 | E9: 5 | H9: -25 | I9: -5 | J9: 50
B11: プラス・アイテム | D11: 攻撃力 | E11: 防御力 | F11: 命中率 | G11: 回避率 | H11: 重量（鎧） | I11: 重量 | J11: 価格
F12: 0 | G12: 0 | J12: 1
B13: 1 | F13: 5 | G13: 1 | J13: 10
B14: 2 | F14: 10 | G14: 2 | J14: 20
B15: 3 | F15: 15 | G15: 3 | J15: 30
B16: 4 | F16: 20 | G16: 4 | J16: 40
B17: 5 | F17: 25 | G17: 5 | J17: 50
B19: 武器 | C19: 攻撃力 | E19: 防御力 | F19: 命中率 | G19: 回避率 | H19: 種別 | I19: 重量 | J19: 価格 | K19: 戦1 | L19: 戦2 | M19: 戦3 | N19: 戦4 | O19: 術1 | P19: 術2 | Q19: 術3 | R19: 術4
B20: 素手 | C20: D2 | D20: 0 | H20: 素手 | I20: 0 | J20: 0 | K20: ○ | L20: ○ | M20: ○ | N20: ○ | O20: ○ | P20: ○ | Q20: ○ | R20: ○
B21: クラブ | C21: D6 | D21: 3 | H21: 片手棒 | I21: 1 | J21: 60 | K21: ○ | L21: ○ | M21: ○ | N21: ○ | O21: ○ | P21: ○ | Q21: ○ | R21: ○
B22: スタッフ | C22: D6 | D22: 10 | H22: 片手棒 | I22: 1 | J22: 130 | K22: ○ | L22: ○ | M22: ○ | N22: ○ | O22: ○ | P22: ○ | Q22: ○ | R22: ○
B23: メイス | C23: D6 | D23: 20 | H23: 片手棒 | I23: 2 | J23: 230 | K23: ○ | L23: ○ | M23: ○ | N23: ○ | P23: ○ | Q23: ○ | R23: ○
B24: フレイル | C24: D6 | D24: 24 | H24: 片手棒 | I24: 3 | J24: 270 | K24: ○ | L24: ○ | M24: ○ | N24: ○ | P24: ○ | R24: ○
B25: プラメット | C25: D20 | D25: 20 | H25: 片手棒 | I25: 3 | J25: 300 | K25: ○ | L25: ○ | N25: ○ | P25: ○ | R25: ○
B26: ウィップ | C26: D8 | D26: 12 | H26: 片手鞭 | I26: 1 | J26: 160 | K26: ○ | L26: ○ | M26: ○ | N26: ○ | O26: ○ | P26: ○ | Q26: ○ | R26: ○
B27: ハンマー | C27: D8 | D27: 25 | H27: 両手槌 | I27: 5 | J27: 290 | K27: ○ | L27: ○ | N27: ○ | P27: ○ | R27: ○
B28: グレートハンマー | C28: D8 | D28: 32 | H28: 両手槌 | I28: 10 | J28: 360 | L28: ○ | N28: ○ | R28: ○
B29: ピックアックス（マトック） | C29: 2D10 | D29: 12 | H29: 両手槌 | I29: 5 | J29: 220 | K29: ○ | L29: ○ | M29: ○ | N29: ○ | R29: ○
B30: ダガー | C30: D20 | D30: 5 | H30: 片手剣 | I30: 1 | J30: 150 | K30: ○ | L30: ○ | M30: ○ | N30: ○ | O30: ○ | R30: ○
B31: ダゲット | C31: D8 | D31: 10 | H31: 片手剣 | I31: 1 | J31: 140 | K31: ○ | L31: ○ | M31: ○ | N31: ○ | O31: ○ | Q31: ○ | R31: ○
B32: ショートソード | C32: D10 | D32: 14 | H32: 片手剣 | I32: 1 | J32: 190 | K32: ○ | L32: ○ | M32: ○ | N32: ○ | O32: ○ | R32: ○
B33: グラディウス | C33: D4 | D33: 16 | H33: 片手剣 | I33: 1 | J33: 180 | K33: ○ | L33: ○ | M33: ○ | N33: ○ | O33: ○ | Q33: ○ | R33: ○
B34: スクラマサックス | C34: D20 | D34: 10 | H34: 片手剣 | I34: 1 | J34: 200 | K34: ○ | L34: ○ | M34: ○ | N34: ○ | R34: ○
B35: カトラス | C35: 2D10 | D35: 12 | H35: 片手剣 | I35: 1 | J35: 220 | K35: ○ | M35: △ | N35: ○ | R35: ○
B36: ブリケット | C36: 2D8 | D36: 16 | H36: 片手剣 | I36: 1 | J36: 240 | M36: △ | N36: ○ | R36: ○
B37: ロングソード | C37: D10 | D37: 20 | H37: 片手剣 | I37: 3 | J37: 250 | K37: ○ | L37: ○ | M37: ○ | N37: ○
B38: レイピア | C38: D8 | D38: 17 | H38: 片手剣 | I38: 2 | J38: 210 | K38: ○ | M38: ○ | N38: ○ | R38: ○
B39: エストック | C39: D4 | D39: 21 | H39: 片手剣 | I39: 2 | J39: 230 | K39: ○ | M39: △ | N39: ○
B40: ブロードソード | C40: D20 | D40: 15 | H40: 片手剣 | I40: 4 | J40: 250 | K40: ○ | M40: △ | N40: ○
B41: シミター | C41: 2D10 | D41: 16 | H41: 片手剣 | I41: 3 | J41: 260 | K41: ○ | M41: △ | N41: ○
B42: セイバー | C42: 2D8 | D42: 20 | H42: 片手剣 | I42: 3 | J42: 280 | M42: △ | N42: ○
B43: バスタードソード | C43: D10 | D43: 25 | H43: 両用剣 | I43: 5 | J43: 300 | K43: ○ | L43: ○ | M43: ○ | N43: ○
B44: グレートソード | C44: D10 | D44: 30 | H44: 両手剣 | I44: 7 | J44: 350 | K44: ○ | M44: ○ | N44: ○
B45: シャムシャー | C45: 2D10 | D45: 25 | H45: 両手剣 | I45: 6 | J45: 350 | K45: ○ | M45: △ | N45: ○
B46: フラムバージ | C46: 2D10 | D46: 30 | H46: 両手剣 | I46: 6 | J46: 400 | M46: △ | N46: ○
B47: ハチェット | C47: D20 | D47: 9 | H47: 片手斧 | I47: 2 | J47: 190 | K47: ○ | L47: ○ | M47: ○ | N47: ○ | O47: ○ | R47: ○
B48: バトルアックス | C48: D20 | D48: 17 | H48: 片手斧 | I48: 4 | J48: 200 | K48: ○ | L48: ○ | M48: ○ | N48: ○ | R48: ○
B49: トマホーク | C49: D20 | D49: 20 | H49: 両用斧 | I49: 7 | J49: 270 | K49: ○ | L49: ○ | N49: ○
B50: グレートアックス | C50: D20 | D50: 25 | H50: 両手斧 | I50: 10 | J50: 350 | K50: ○ | N50: ○
B51: ショートスピア | C51: D6 | D51: 16 | H51: 片手槍 | I51: 2 | J51: 190 | K51: ○ | L51: ○ | M51: ○ | N51: ○ | R51: ○
B52: ロングスピア | C52: D6 | D52: 22 | H52: 両手槍 | I52: 5 | J52: 250 | K52: ○ | L52: ○ | M52: ○ | N52: ○
B53: ランス（馬上用） | C53: 2D6 | D53: 25 | H53: 両用槍 | I53: 4 | J53: 310 | K53: ○ | M53: ○ | N53: ○ | R53: ○
B54: グレイブ | C54: D6 | D54: 28 | H54: 両手槍 | I54: 6 | J54: 310 | K54: ○ | L54: ○ | M54: △ | N54: ○
B55: トライデント | C55: 2D6 | D55: 28 | H55: 両手槍 | I55: 8 | J55: 340 | K55: ○ | M55: △ | N55: ○
B56: ハルバード | C56: 2D6 | D56: 32 | H56: 両手槍 | I56: 10 | J56: 380 | M56: △ | N56: ○
B57: スリング | C57: D8 | D57: 5 | H57: 飛道具 | I57: 1 | J57: 90 | K57: ○ | L57: ○ | M57: ○ | N57: ○ | O57: ○ | P57: ○ | Q57: ○ | R57: ○
B58: ショートボウ | C58: D10 | D58: 20 | H58: 両手弓 | I58: 2 | J58: 250 | K58: ○ | L58: ○ | M58: ○ | N58: ○ | O58: ○ | P58: ○ | Q58: ○ | R58: ○
B59: ロングボウ | C59: D10 | D59: 25 | H59: 両手弓 | I59: 4 | J59: 300 | K59: ○ | L59: ○ | M59: ○ | N59: ○ | O59: ○ | P59: ○ | R59: ○
B60: クロスボウ | C60: 2D10 | D60: 30 | H60: 両手弓 | I60: 6 | J60: 400 | K60: ○ | M60: ○ | N60: ○ | R60: ○
B61: グレートボウ | C61: 2D10 | D61: 40 | H61: 両手弓 | I61: 10 | J61: 500 | K61: ○ | M61: △ | N61: ○
B62: アーバレスト | C62: 3D10 | D62: 45 | H62: 両手弓 | I62: 15 | J62: 600 | M62: △ | N62: ○
B63: スローイングダガー | C63: 2D10 | D63: 4 | H63: 兼用剣 | I63: 1 | J63: 140 | K63: ○ | L63: ○ | M63: ○ | N63: ○ | O63: ○ | R63: ○
B64: スローイングアックス | C64: 2D20 | D64: 6 | H64: 兼用斧 | I64: 4 | J64: 260 | K64: ○ | L64: ○ | M64: ○ | N64: ○
B65: ジャベリン | C65: D10 | D65: 18 | H65: 兼用槍 | I65: 4 | J65: 230 | K65: ○ | L65: ○ | M65: ○ | N65: ○ | P65: ○ | R65: ○
B66: シックル | C66: D20 | D66: 14 | H66: 兼用剣 | I66: 3 | J66: 240 | K66: ○ | L66: ○ | M66: △ | N66: ○
B67: 素手（ハイ・ウォーリアー） | C67: D100 | D67: 200 | H67: 素手 | I67: 0 | J67: 0
B68: 素手（神） | C68: D100 | D68: 200 | H68: 素手 | I68: 0 | J68: 0
B69: 夕映えの剣 | C69: D10 | D69: 40 | H69: 片手剣 | I69: 3 | J69: 0 | K69: ○ | L69: ○ | M69: ○ | N69: ○
B70: 焦熱剣 | C70: D10 | D70: 35 | F70: 25 | H70: 片手剣 | I70: 3 | J70: 0 | S70: 1ターンに1回、高熱のブレスと同等の攻撃を行える（回数制限なし）
B71: 霧氷剣 | C71: D10 | D71: 35 | F71: 25 | H71: 片手剣 | I71: 3 | J71: 0 | S71: 1ターンに1回、吹雪のブレスと同等の攻撃を行える（回数制限なし）
B72: 火炎剣 | C72: D10 | D72: 35 | F72: 25 | H72: 片手剣 | I72: 3 | J72: 0 | S72: 1ターンに1回、炎のブレスと同等の攻撃を行える（回数制限なし）
B73: 雷光剣 | C73: D10 | D73: 35 | F73: 25 | H73: 片手剣 | I73: 3 | J73: 0 | S73: 1ターンに1回、雷撃のブレスと同等の攻撃を行える（回数制限なし）
B74: 威光剣 | C74: 4D10 | D74: 140 | F74: 100 | H74: 片手剣 | I74: 1 | J74: 0 | S74: 戦闘中は、毎ターン1回ずつ、全精霊魔術を使える（MP消費なし）
B75: 裁きの剣 | C75: 2D10 | D75: 150 | F75: 100 | H75: 片手剣 | I75: 1 | J75: 0 | S75: Hyper Explosion（神聖魔術・オーゼス）を使用可：MP消費なし・回数制限なし
B76: 三日月の弓 | C76: 2D100 | D76: 50 | F76: 125 | H76: 両手弓 | I76: 1 | J76: 0 | S76: 攻撃命中時に、目標に対してDispel Undeadが発動する（MP消費なし）
B77: 真理の剣 | C77: D100 | D77: 100 | F77: 125 | H77: 両手剣 | I77: 1 | J77: 0 | S77: 攻撃命中時に、3Mチェック失敗で目標をステータス「恐怖」にする
B78: 希望の槍 | C78: D50 | D78: 100 | F78: 100 | H78: 両手槍 | I78: 1 | J78: 0 | S78: Super Recoveryを使用可：MP消費なし・回数制限なし
B79: 龍神の牙 | C79: 2D20 | D79: 50 | F79: 125 | H79: 片手槍 | I79: 1 | J79: 0 | S79: 攻撃命中時に、3Mチェック失敗で目標をステータス「魅了」にする
B80: 烈空の剣 | C80: 3D20 | D80: 100 | F80: 100 | H80: 片手剣 | I80: 1 | J80: 0 | S80: 攻撃回数＋1
B81: 水晶の剣「代斬者」 | C81: D100 | D81: 150 | F81: 100 | H81: 片手剣 | I81: 1 | J81: 0 | S81: Lightning（神聖魔術・オーゼス）を使用可：MP消費なし・回数制限なし
B82: 正義の杖 | C82: D20 | D82: 100 | F82: 150 | H82: 片手棒 | I82: 1 | J82: 0 | S82: 戦闘中は毎ターン、MPを20回復
B83: 勇士の翼 | C83: D100 | D83: 100 | F83: 100 | H83: 片手剣 | I83: 1 | J83: 0 | S83: 攻撃回数＋2
B84: 隼の爪 | C84: D50 | D84: 100 | F84: 125 | H84: 片手剣 | I84: 1 | J84: 0 | S84: 攻撃回数＋1
B85: 勝者の剣 | C85: 2D20 | D85: 150 | F85: 100 | H85: 片手剣 | I85: 1 | J85: 0 | S85: 使用者は、与えたダメージの5分の1のHPを回復
B86: 天界の遣い | C86: 2D20 | D86: 50 | F86: 150 | H86: 両手棒 | I86: 1 | J86: 0 | S86: 呪文の消費MP半減
B87: 挑みの剣 | C87: 2D100 | D87: 50 | F87: 100 | H87: 不定 | I87: 1 | J87: 0 | S87: 攻撃1回ごとに命中率＋5％を累積加算
B88: 運命の剣 | C88: 6D20 | D88: 300 | F88: 300 | H88: 両手剣 | I88: 5 | J88: 0 | S88: 可視範囲の全ての敵に6D100のダメージ（抵抗2P、結界無効） ※正体は、同化した武器の能力を3倍に高める生命体。ここでの能力は、新星剣に同化したときのもの。
B89: 心見の剣 | C89: D20 | D89: 150 | F89: 100 | H89: 剣 | I89: 1 | J89: 0 | S89: 装備者のLV1～10…ダガー、～LV20…ショートソード、～LV30…ロングソード、～LV40…バスタードソード、～LV50グレートソード、以後は任意に形態を選べる
B90: 嵐の斧 | C90: D200 | D90: 50 | F90: 100 | H90: 両手斧 | I90: 1 | J90: 0 | S90: 10×10以内の任意の範囲に、攻撃力と同じダメージを与える嵐（抵抗2I、結界無効）を起こす
B91: 虹の杖 | C91: D100 | D91: 50 | F91: 150 | H91: 片手棒 | I91: 1 | J91: 0 | S91: 自分を中心とした11×11の範囲の味方に、毎戦闘ターン10ポイントのHP回復能力を与える
B92: 闇狩りの弓 | C92: 2D200 | D92: 0 | F92: 200 | H92: 両手弓 | I92: 1 | J92: 0 | S92: 矢は召還して用いる（残数制限なし）
B93: 蜃気楼の杖 | C93: D50 | D93: 50 | F93: 50 | H93: 片手棒 | I93: 1 | J93: 0 | S93: 1ターンにつき、呪文を2回ずつ唱えられる
B94: 光の剣「クリスタル・ドラゴン」 | C94: D1000 | D94: 1000 | F94: 500 | H94: 片手剣 | I94: 1 | J94: 0 | S94: High Lightning（超上級神聖魔術）を使用可：MP消費なし・回数制限なし 可視範囲の全ての味方にリジェネレート100（死亡状態からも蘇生する）、可視範囲の全ての敵にリジェネレート-100
B95: 光の剣「運命の剣」 | C95: 3D1000 | D95: 3000 | F95: 1500 | H95: 両手剣 | I95: 1 | J95: 0 | S95: 可視範囲の全ての味方にリジェネレート100（死亡状態からも蘇生する）、可視範囲の全ての敵にリジェネレート-100、可視範囲の全ての敵に6D100のダメージ（抵抗2P、結界無効） ※ここでの能力は、新星剣を「光の剣」として、これに「運命の剣」を同化したときのもの。
B96: 光の剣 | C96: D1000 | D96: 1000 | F96: 500 | H96: 片手剣 | I96: 1 | J96: 0 | S96: 可視範囲の全ての味方にリジェネレート100（死亡状態からも蘇生する）、可視範囲の全ての敵にリジェネレート-100 ベースの武器に他の特殊能力があれば、それを継承
B97: 光の杖 | C97: D1000 | D97: 1000 | F97: 500 | H97: 片手剣 | I97: 1 | J97: 0 | S97: 可視範囲の全ての味方にリジェネレート100（死亡状態からも蘇生する）、可視範囲の全ての敵にリジェネレート-100 ベースの武器に他の特殊能力があれば、それを継承
B98: 光の鞭 | C98: D1000 | D98: 1000 | F98: 500 | H98: 片手剣 | I98: 1 | J98: 0 | S98: 可視範囲の全ての味方にリジェネレート100（死亡状態からも蘇生する）、可視範囲の全ての敵にリジェネレート-100 ベースの武器に他の特殊能力があれば、それを継承
B99: 光の槌 | C99: D1000 | D99: 1000 | F99: 500 | H99: 片手剣 | I99: 1 | J99: 0 | S99: 可視範囲の全ての味方にリジェネレート100（死亡状態からも蘇生する）、可視範囲の全ての敵にリジェネレート-100 ベースの武器に他の特殊能力があれば、それを継承
B100: 光の斧 | C100: D1000 | D100: 1000 | F100: 500 | H100: 片手剣 | I100: 1 | J100: 0 | S100: 可視範囲の全ての味方にリジェネレート100（死亡状態からも蘇生する）、可視範囲の全ての敵にリジェネレート-100 ベースの武器に他の特殊能力があれば、それを継承
B101: 光の槍 | C101: D1000 | D101: 1000 | F101: 500 | H101: 片手剣 | I101: 1 | J101: 0 | S101: 可視範囲の全ての味方にリジェネレート100（死亡状態からも蘇生する）、可視範囲の全ての敵にリジェネレート-100 ベースの武器に他の特殊能力があれば、それを継承
B102: 光の弓 | C102: D1000 | D102: 1000 | F102: 500 | H102: 片手剣 | I102: 1 | J102: 0 | S102: 可視範囲の全ての味方にリジェネレート100（死亡状態からも蘇生する）、可視範囲の全ての敵にリジェネレート-100 ベースの武器に他の特殊能力があれば、それを継承
B103: 光の剣 | C103: D1000 | D103: 1000 | F103: 500 | H103: 片手剣 | I103: 1 | J103: 0 | S103: 可視範囲の全ての味方にリジェネレート100（死亡状態からも蘇生する）、可視範囲の全ての敵にリジェネレート-100 ベースの武器に他の特殊能力があれば、それを継承
B104: 降魔の剣 | C104: D10 | D104: 23 | F104: 15 | H104: 片手剣 | I104: 1 | J104: 0 | S104: 悪魔に対してはD10+30、命中率+50％、攻撃回数+3
B105: 覇気の剣 | C105: D20 | D105: 150 | F105: 100 | H105: 剣 | I105: 1 | J105: 0 | S105: 装備者のLV1～10…ダガー、～LV20…ショートソード、～LV30…ロングソード、～LV40…バスタードソード、～LV50グレートソード、以後は任意に形態を選べる
B106: 天翔の聖杖 | C106: 2D20 | D106: 50 | F106: 150 | H106: 両手棒 | I106: 1 | J106: 0 | S106: 呪文の消費MP半減
B107: 彗星剣 | C107: D10 | D107: 50 | F107: 50 | H107: 両手剣 | I107: 10 | J107: 0 | K107: ○ | M107: ○ | N107: ○
B108: 新星剣 | C108: 2D20 | D108: 100 | F108: 100 | H108: 両手剣 | I108: 5 | J108: 0 | K108: ○ | M108: ○ | N108: ○ | S108: 可視範囲の全ての敵に2D100のダメージ（抵抗2P、結界無効）
B109: 不屈の槍 | C109: 2D6 | D109: 100 | F109: 25 | H109: 両手槍 | I109: 5 | J109: 0 | K109: ○ | L109: ○ | M109: ○ | N109: ○
B110: 春日の小太刀 | C110: D4 | D110: 100 | F110: 50 | H110: 片手剣 | I110: 1 | J110: 0
B111: ダーク・ブレード | C111: D100 | D111: 200 | F111: 100 | H111: 片手剣 | I111: 1 | J111: 0 | M111: △ | N111: ○
B112: スタッフ・オブ・エナジードレイン | C112: D6 | D112: 60 | F112: 50 | H112: 片手棒 | I112: 1 | J112: 0 | K112: ○ | L112: ○ | M112: ○ | N112: ○ | O112: ○ | P112: ○ | Q112: ○ | R112: ○ | S112: 使用者は、攻撃目標に与えたダメージと同量のHPを回復
B113: アックス・オブ・デス | C113: D50 | D113: 100 | F113: 200 | H113: 両手斧 | I113: 10 | J113: 0 | K113: ○ | N113: ○
B114: レイピア・オブ・シャドウ | C114: D8 | D114: 100 | F114: 100 | H114: 片手剣 | I114: 1 | J114: 0 | K114: ○ | M114: ○ | N114: ○ | R114: ○
B115: グランド・スラッシャー | C115: D100 | D115: 100 | F115: 250 | H115: 両手槍 | I115: 5 | J115: 0 | M115: △ | N115: ○
B116: ホーリー・スタッフ | C116: D6 | D116: 100 | F116: 100 | H116: 片手棒 | I116: 1 | J116: 0 | K116: ○ | L116: ○ | M116: ○ | N116: ○ | O116: ○ | P116: ○ | Q116: ○ | R116: ○
B117: フォルテン・ヴァルセ | C117: D100 | D117: 150 | F117: 100 | H117: 片手剣 | I117: 1 | J117: 0 | S117: ダルシンドの守護戦士専用
B118: ユレイニアの剣 | C118: D10 | D118: 80 | F118: 50 | H118: 両手剣 | I118: 3 | J118: 0 | K118: ○ | M118: ○ | N118: ○
B119: バルレインの錫杖 | C119: D6 | D119: 50 | F119: 50 | H119: 片手棒 | I119: 1 | J119: 0 | K119: ○ | L119: ○ | M119: ○ | N119: ○ | O119: ○ | P119: ○ | Q119: ○ | R119: ○ | S119: 呪文の効果倍増
B120: イヴァクス | C120: D100 | D120: 300 | F120: 100 | H120: 両手剣 | I120: 10 | J120: 0 | S120: イヴァクス・テュエール専用
B121: 紅闇の剣 | C121: D100 | D121: 300 | F121: 100 | H121: 両手剣 | I121: 10 | J121: 0
B122: ダミー79 | C122: D2 | D122: 0 | I122: 0 | J122: 0
B123: ダミー78 | C123: D2 | D123: 0 | I123: 0 | J123: 0
B124: ダミー77 | C124: D2 | D124: 0 | I124: 0 | J124: 0
B125: ダミー76 | C125: D2 | D125: 0 | I125: 0 | J125: 0
B126: ダミー75 | C126: D2 | D126: 0 | I126: 0 | J126: 0
B127: ダミー74 | C127: D2 | D127: 0 | I127: 0 | J127: 0
B128: ダミー73 | C128: D2 | D128: 0 | I128: 0 | J128: 0
B129: ダミー72 | C129: D2 | D129: 0 | I129: 0 | J129: 0
B130: ダミー71 | C130: D2 | D130: 0 | I130: 0 | J130: 0
B131: ダミー70 | C131: D2 | D131: 0 | I131: 0 | J131: 0
B132: ダミー69 | C132: D2 | D132: 0 | I132: 0 | J132: 0
B133: ダミー68 | C133: D2 | D133: 0 | I133: 0 | J133: 0
B134: ダミー67 | C134: D2 | D134: 0 | I134: 0 | J134: 0
B135: ダミー66 | C135: D2 | D135: 0 | I135: 0 | J135: 0
B136: ダミー65 | C136: D2 | D136: 0 | I136: 0 | J136: 0
B137: ダミー64 | C137: D2 | D137: 0 | I137: 0 | J137: 0
B138: ダミー63 | C138: D2 | D138: 0 | I138: 0 | J138: 0
B139: ダミー62 | C139: D2 | D139: 0 | I139: 0 | J139: 0
B140: ダミー61 | C140: D2 | D140: 0 | I140: 0 | J140: 0
B141: ダミー60 | C141: D2 | D141: 0 | I141: 0 | J141: 0
B142: ダミー59 | C142: D2 | D142: 0 | I142: 0 | J142: 0
B143: ダミー58 | C143: D2 | D143: 0 | I143: 0 | J143: 0
B144: ダミー57 | C144: D2 | D144: 0 | I144: 0 | J144: 0
B145: ダミー56 | C145: D2 | D145: 0 | I145: 0 | J145: 0
B146: ダミー55 | C146: D2 | D146: 0 | I146: 0 | J146: 0
B147: ダミー54 | C147: D2 | D147: 0 | I147: 0 | J147: 0
B148: ダミー53 | C148: D2 | D148: 0 | I148: 0 | J148: 0
B149: ダミー52 | C149: D2 | D149: 0 | I149: 0 | J149: 0
B150: ダミー51 | C150: D2 | D150: 0 | I150: 0 | J150: 0
B151: ダミー50 | C151: D2 | D151: 0 | I151: 0 | J151: 0
B152: ダミー49 | C152: D2 | D152: 0 | I152: 0 | J152: 0
B153: ダミー48 | C153: D2 | D153: 0 | I153: 0 | J153: 0
B154: ダミー47 | C154: D2 | D154: 0 | I154: 0 | J154: 0
B155: ダミー46 | C155: D2 | D155: 0 | I155: 0 | J155: 0
B156: ダミー45 | C156: D2 | D156: 0 | I156: 0 | J156: 0
B157: ダミー44 | C157: D2 | D157: 0 | I157: 0 | J157: 0
B158: ダミー43 | C158: D2 | D158: 0 | I158: 0 | J158: 0
B159: ダミー42 | C159: D2 | D159: 0 | I159: 0 | J159: 0
B160: ダミー41 | C160: D2 | D160: 0 | I160: 0 | J160: 0
B161: ダミー40 | C161: D2 | D161: 0 | I161: 0 | J161: 0
B162: ダミー39 | C162: D2 | D162: 0 | I162: 0 | J162: 0
B163: ダミー38 | C163: D2 | D163: 0 | I163: 0 | J163: 0
B164: ダミー37 | C164: D2 | D164: 0 | I164: 0 | J164: 0
B165: ダミー36 | C165: D2 | D165: 0 | I165: 0 | J165: 0
B166: ダミー35 | C166: D2 | D166: 0 | I166: 0 | J166: 0
B167: ダミー34 | C167: D2 | D167: 0 | I167: 0 | J167: 0
B168: ダミー33 | C168: D2 | D168: 0 | I168: 0 | J168: 0
B169: ダミー32 | C169: D2 | D169: 0 | I169: 0 | J169: 0
B170: ダミー31 | C170: D2 | D170: 0 | I170: 0 | J170: 0
B171: ダミー30 | C171: D2 | D171: 0 | I171: 0 | J171: 0
B172: ダミー29 | C172: D2 | D172: 0 | I172: 0 | J172: 0
B173: ダミー28 | C173: D2 | D173: 0 | I173: 0 | J173: 0
B174: ダミー27 | C174: D2 | D174: 0 | I174: 0 | J174: 0
B175: ダミー26 | C175: D2 | D175: 0 | I175: 0 | J175: 0
B176: ダミー25 | C176: D2 | D176: 0 | I176: 0 | J176: 0
B177: ダミー24 | C177: D2 | D177: 0 | I177: 0 | J177: 0
B178: ダミー23 | C178: D2 | D178: 0 | I178: 0 | J178: 0
B179: ダミー22 | C179: D2 | D179: 0 | I179: 0 | J179: 0
B180: ダミー21 | C180: D2 | D180: 0 | I180: 0 | J180: 0
B181: ダミー20 | C181: D2 | D181: 0 | I181: 0 | J181: 0
B182: ダミー19 | C182: D2 | D182: 0 | I182: 0 | J182: 0
B183: ダミー18 | C183: D2 | D183: 0 | I183: 0 | J183: 0
B184: ダミー17 | C184: D2 | D184: 0 | I184: 0 | J184: 0
B185: ダミー16 | C185: D2 | D185: 0 | I185: 0 | J185: 0
B186: ダミー15 | C186: D2 | D186: 0 | I186: 0 | J186: 0
B187: ダミー14 | C187: D2 | D187: 0 | I187: 0 | J187: 0
B188: ダミー13 | C188: D2 | D188: 0 | I188: 0 | J188: 0
B189: ダミー12 | C189: D2 | D189: 0 | I189: 0 | J189: 0
B190: ダミー11 | C190: D2 | D190: 0 | I190: 0 | J190: 0
B191: ダミー10 | C191: D2 | D191: 0 | I191: 0 | J191: 0
B192: ダミー9 | C192: D2 | D192: 0 | I192: 0 | J192: 0
B193: ダミー8 | C193: D2 | D193: 0 | I193: 0 | J193: 0
B194: ダミー7 | C194: D2 | D194: 0 | I194: 0 | J194: 0
B195: ダミー6 | C195: D2 | D195: 0 | I195: 0 | J195: 0
B196: ダミー5 | C196: D2 | D196: 0 | I196: 0 | J196: 0
B197: ダミー4 | C197: D2 | D197: 0 | I197: 0 | J197: 0
B198: ダミー3 | C198: D2 | D198: 0 | I198: 0 | J198: 0
B199: ダミー2 | C199: D2 | D199: 0 | I199: 0 | J199: 0
B200: ダミー1 | C200: D2 | D200: 0 | I200: 0 | J200: 0

Sheet 防具
B3: 材質 | D3: 攻撃力 | E3: 防御力 | F3: 命中率 | G3: 回避率 | H3: 重量（鎧） | I3: 重量 | J3: 価格
D4: 0 | E4: 0 | H4: 0 | I4: 0 | J4: 1
B5: ブラス | D5: 5 | E5: 1 | H5: -5 | I5: -1 | J5: 10
B6: アイアン | D6: 10 | E6: 2 | H6: -10 | I6: -2 | J6: 20
B7: スチール | D7: 15 | E7: 3 | H7: -15 | I7: -3 | J7: 30
B8: シルバー | D8: 20 | E8: 4 | H8: -20 | I8: -4 | J8: 40
B9: ハイパー | D9: 25 | E9: 5 | H9: -25 | I9: -5 | J9: 50
B11: プラス・アイテム | D11: 攻撃力 | E11: 防御力 | F11: 命中率 | G11: 回避率 | H11: 重量（鎧） | I11: 重量 | J11: 価格
F12: 0 | G12: 0 | J12: 1
B13: 1 | F13: 5 | G13: 1 | J13: 10
B14: 2 | F14: 10 | G14: 2 | J14: 20
B15: 3 | F15: 15 | G15: 3 | J15: 30
B16: 4 | F16: 20 | G16: 4 | J16: 40
B17: 5 | F17: 25 | G17: 5 | J17: 50
B19: 防具 | D19: 攻撃力 | E19: 防御力 | F19: 命中率 | G19: 回避率 | H19: 種別 | I19: 重量 | J19: 価格 | K19: 戦1 | L19: 戦2 | M19: 戦3 | N19: 戦4 | O19: 術1 | P19: 術2 | Q19: 術3 | R19: 術4
B20: なし | E20: 0 | H20: 鎧 | I20: 0 | J20: 0 | K20: ○ | L20: ○ | M20: ○ | N20: ○ | O20: ○ | P20: ○ | Q20: ○ | R20: ○
B21: ローブ | E21: 1 | H21: 鎧 | I21: 1 | J21: 100 | K21: ○ | L21: ○ | M21: ○ | N21: ○ | O21: ○ | P21: ○ | Q21: ○ | R21: ○
B22: ショルダーアーマー | E22: 2 | H22: 鎧 | I22: 3 | J22: 200 | K22: ○ | L22: ○ | M22: ○ | N22: ○ | O22: ○ | P22: ○ | Q22: ○ | R22: ○
B23: レザー・アーマー | E23: 3 | H23: 鎧 | I23: 5 | J23: 300 | K23: ○ | L23: ○ | M23: ○ | N23: ○ | O23: ○ | P23: ○ | R23: ○
B24: リングメイル | E24: 4 | H24: 鎧 | I24: 10 | J24: 400 | K24: ○ | L24: ○ | M24: ○ | N24: ○ | P24: ○ | R24: ○
B25: スケールアーマー | E25: 5 | H25: 鎧 | I25: 15 | J25: 500 | K25: ○ | L25: ○ | M25: ○ | N25: ○ | P25: ○ | R25: ○
B26: チェインメイル | E26: 6 | H26: 鎧 | I26: 20 | J26: 600 | K26: ○ | L26: ○ | M26: ○ | N26: ○ | P26: ○ | R26: ○
B27: プラストロン | E27: 7 | H27: 鎧 | I27: 25 | J27: 700 | K27: ○ | L27: ○ | M27: ○ | N27: ○ | R27: ○
B28: スプリントメイル | E28: 8 | H28: 鎧 | I28: 30 | J28: 800 | K28: ○ | M28: ○ | N28: ○ | R28: ○
B29: バンデッドメイル | E29: 9 | H29: 鎧 | I29: 35 | J29: 900 | K29: ○ | M29: ○ | N29: ○
B30: プレートメイル | E30: 10 | H30: 鎧 | I30: 50 | J30: 1000 | K30: ○ | N30: ○
B31: 夕映えの鎧 | E31: 14 | H31: 鎧 | I31: 30 | J31: 0 | K31: ○ | L31: ○ | M31: ○ | N31: ○
B32: 裁きの鎧 | E32: 25 | G32: 20 | H32: 鎧 | I32: 1 | J32: 0 | S32: 呪文反射＋20％、所有者…ヴィンセント・エルスドルフ4世
B33: 星灯りの鎧 | E33: 20 | G33: 25 | H33: 鎧 | I33: 1 | J33: 0 | S33: 呪文無効化＋20％、所有者…ジョフリー・ベルモント2世
B34: 真理の鎧 | E34: 20 | G34: 25 | H34: 鎧 | I34: 1 | J34: 0 | S34: 呪文無効化＋20％、所有者…ウィルフレッド・レスター
B35: 希望の鎧 | E35: 25 | G35: 20 | H35: 鎧 | I35: 1 | J35: 0 | S35: 呪文無効化＋20％、所有者…グレイアム・フォルカーク5世
B36: 龍神の鎧 | E36: 20 | G36: 25 | H36: 鎧 | I36: 1 | J36: 0 | S36: 呪文無効化＋20％、所有者…ネイディーン・メレワース
B37: 霧の鎧 | E37: 25 | G37: 20 | H37: 鎧 | I37: 1 | J37: 0 | S37: 呪文無効化＋20％、所有者…ウィルバー・ドルトン
B38: 黄金の鎧 | E38: 30 | G38: 20 | H38: 鎧 | I38: 1 | J38: 0 | S38: 呪文吸収＋20％、飛行可
B39: 正義の鎧 | E39: 15 | G39: 30 | H39: 鎧 | I39: 1 | J39: 0 | S39: 呪文無効化＋20％
B40: 勇士の鎧 | E40: 25 | G40: 20 | H40: 鎧 | I40: 1 | J40: 0 | S40: 呪文無効化＋20％
B41: 水の鎧 | E41: 20 | G41: 25 | H41: 鎧 | I41: 1 | J41: 0 | S41: 呪文無効化＋20％
B42: 勝者の鎧 | E42: 25 | G42: 20 | H42: 鎧 | I42: 1 | J42: 0 | S42: 呪文無効化＋20％
B43: 風の鎧 | E43: 15 | G43: 30 | H43: 鎧 | I43: 1 | J43: 0 | S43: 呪文無効化＋20％
B44: 挑みの鎧 | E44: 25 | G44: 20 | H44: 鎧 | I44: 1 | J44: 0 | S44: 呪文無効化＋20％
B45: 運命の鎧 | E45: 40 | G45: 30 | H45: 鎧 | I45: 1 | J45: 0 | S45: 呪文消散＋20％
B46: 心見の鎧 | E46: 25 | G46: 15 | H46: 鎧 | I46: 1 | J46: 0 | S46: 呪文無効化＋20％、形状は見る者のレベルにより変わって見える。見る者のレベルが高いほど重装に見える
B47: 嵐の鎧 | E47: 25 | G47: 20 | H47: 鎧 | I47: 1 | J47: 0 | S47: 呪文無効化＋20％
B48: 虹の鎧 | E48: 20 | G48: 30 | H48: 鎧 | I48: 1 | J48: 0 | S48: 呪文無効化＋20％
B49: 闇狩りの鎧 | E49: 15 | G49: 40 | H49: 鎧 | I49: 1 | J49: 0 | S49: 呪文無効化＋20％
B50: 蜃気楼の鎧 | E50: 20 | G50: 10 | H50: 鎧 | I50: 1 | J50: 0 | S50: 呪文無効化＋20％
B51: 光の鎧 | E51: 100 | G51: 100 | H51: 鎧 | I51: 1 | J51: 0 | S51: 呪文無効化＋20％（ベースの防具が他の呪文への作用を持つ場合、その能力が優先） ベースの防具に他の特殊能力があれば、それを継承
B52: 天使の衣 | E52: 13 | G52: 5 | H52: 鎧 | I52: 2 | J52: 0 | K52: ○ | L52: ○ | M52: ○ | N52: ○ | O52: ○ | P52: ○ | Q52: ○ | R52: ○
B53: 覇気の鎧 | E53: 25 | G53: 15 | H53: 鎧 | I53: 1 | J53: 0 | S53: 呪文無効化＋20％、形状は見る者のレベルにより変わって見える。見る者のレベルが高いほど重装に見える
B54: ダーク・プレート | E54: 40 | G54: 20 | H54: 鎧 | I54: 1 | J54: 0 | K54: ○ | N54: ○
B55: ローブ・オブ・ファング | E55: 10 | G55: 10 | H55: 鎧 | I55: 1 | J55: 0 | K55: ○ | L55: ○ | M55: ○ | N55: ○ | O55: ○ | P55: ○ | Q55: ○ | R55: ○ | S55: 呪文無効化＋8％、装備者が受けたダメージと同量のHPを、攻撃者から減らす
B56: インビジブル・アーマー | E56: 30 | G56: 40 | H56: 鎧 | I56: 0 | J56: 0 | K56: ○ | L56: ○ | M56: ○ | N56: ○ | R56: ○ | S56: 呪文無効化＋20％
B57: アーマー・オブ・シャドウ | E57: 12 | G57: 20 | H57: 鎧 | I57: 1 | J57: 0 | K57: ○ | L57: ○ | M57: ○ | N57: ○ | R57: ○ | S57: 呪文無効化＋１0％
B58: アーマー・オブ・リフレクション | E58: 25 | G58: 50 | H58: 鎧 | I58: 1 | J58: 0 | K58: ○ | N58: ○ | S58: 呪文無効化＋20％
B59: フォルテン・ネイソス | E59: 30 | G59: 20 | H59: 鎧 | I59: 1 | J59: 0 | S59: 呪文無効化＋20％、飛行可
B60: イヴァクス | E60: 25 | G60: 20 | H60: 鎧 | I60: 20 | J60: 0 | S60: 呪文無効化＋20％、イヴァクス・テュエール専用
B61: 紅闇の鎧 | E61: 20 | G61: 20 | H61: 鎧 | I61: 10 | J61: 0 | S61: 呪文無効化＋20％
B62: 鎧ダミー19 | E62: 0 | H62: 鎧 | I62: 0 | J62: 0
B63: 鎧ダミー18 | E63: 0 | H63: 鎧 | I63: 0 | J63: 0
B64: 鎧ダミー17 | E64: 0 | H64: 鎧 | I64: 0 | J64: 0
B65: 鎧ダミー16 | E65: 0 | H65: 鎧 | I65: 0 | J65: 0
B66: 鎧ダミー15 | E66: 0 | H66: 鎧 | I66: 0 | J66: 0
B67: 鎧ダミー14 | E67: 0 | H67: 鎧 | I67: 0 | J67: 0
B68: 鎧ダミー13 | E68: 0 | H68: 鎧 | I68: 0 | J68: 0
B69: 鎧ダミー12 | E69: 0 | H69: 鎧 | I69: 0 | J69: 0
B70: 鎧ダミー11 | E70: 0 | H70: 鎧 | I70: 0 | J70: 0
B71: 鎧ダミー10 | E71: 0 | H71: 鎧 | I71: 0 | J71: 0
B72: 鎧ダミー9 | E72: 0 | H72: 鎧 | I72: 0 | J72: 0
B73: 鎧ダミー8 | E73: 0 | H73: 鎧 | I73: 0 | J73: 0
B74: 鎧ダミー7 | E74: 0 | H74: 鎧 | I74: 0 | J74: 0
B75: 鎧ダミー6 | E75: 0 | H75: 鎧 | I75: 0 | J75: 0
B76: 鎧ダミー5 | E76: 0 | H76: 鎧 | I76: 0 | J76: 0
B77: 鎧ダミー4 | E77: 0 | H77: 鎧 | I77: 0 | J77: 0
B78: 鎧ダミー3 | E78: 0 | H78: 鎧 | I78: 0 | J78: 0
B79: 鎧ダミー2 | E79: 0 | H79: 鎧 | I79: 0 | J79: 0
B80: 鎧ダミー1 | E80: 0 | H80: 鎧 | I80: 0 | J80: 0
B81: なし | E81: 0 | H81: 盾 | I81: 0 | J81: 0 | K81: ○ | L81: ○ | M81: ○ | N81: ○ | O81: ○ | P81: ○ | Q81: ○ | R81: ○
B82: フレームシールド | E82: 1 | H82: 小盾 | I82: 1 | J82: 100 | K82: ○ | L82: ○ | M82: ○ | N82: ○ | O82: ○ | P82: ○ | Q82: ○ | R82: ○
B83: レザー・シールド | E83: 2 | H83: 小盾 | I83: 2 | J83: 200 | K83: ○ | L83: ○ | M83: ○ | N83: ○ | O83: ○ | P83: ○ | R83: ○
B84: スモールシールド | E84: 3 | H84: 小盾 | I84: 3 | J84: 300 | K84: ○ | L84: ○ | M84: ○ | N84: ○ | P84: ○ | R84: ○
B85: ミドルシールド | E85: 4 | H85: 小盾 | I85: 5 | J85: 400 | K85: ○ | M85: ○ | N85: ○ | P85: ○ | R85: ○
B86: ラージシールド | E86: 5 | H86: 大盾 | I86: 7 | J86: 500 | K86: ○ | M86: ○ | N86: ○ | R86: ○
B87: カイトシールド | E87: 6 | H87: 大盾 | I87: 10 | J87: 600 | K87: ○ | M87: ○ | N87: ○
B88: グレートシールド | E88: 7 | H88: 大盾 | I88: 15 | J88: 700 | K88: ○ | N88: ○
B89: 夕映えの盾 | E89: 8 | H89: 小盾 | I89: 1 | J89: 0 | K89: ○ | L89: ○ | M89: ○ | N89: ○
B90: 裁きの盾 | E90: 25 | G90: 20 | H90: 大盾 | I90: 1 | J90: 0 | S90: 呪文反射＋20％、所有者…ヴィンセント・エルスドルフ4世
B91: 星灯りの盾 | E91: 20 | G91: 25 | H91: 小盾 | I91: 1 | J91: 0 | S91: 呪文無効化＋20％、所有者…ジョフリー・ベルモント2世
B92: 真理の盾 | E92: 20 | G92: 25 | H92: 小盾 | I92: 1 | J92: 0 | S92: 呪文無効化＋20％、所有者…ウィルフレッド・レスター
B93: 希望の盾 | E93: 25 | G93: 20 | H93: 小盾 | I93: 1 | J93: 0 | S93: 呪文無効化＋20％、所有者…グレイアム・フォルカーク5世
B94: 龍神の盾 | E94: 20 | G94: 25 | H94: 大盾 | I94: 1 | J94: 0 | S94: 呪文無効化＋20％、所有者…ネイディーン・メレワース
B95: 霧の盾 | E95: 25 | G95: 20 | H95: 大盾 | I95: 1 | J95: 0 | S95: 呪文無効化＋20％、所有者…ウィルバー・ドルトン
B96: 黄金の盾 | E96: 30 | G96: 20 | H96: 大盾 | I96: 1 | J96: 0 | S96: 呪文吸収＋20％
B97: 正義の盾 | E97: 15 | G97: 30 | H97: 小盾 | I97: 1 | J97: 0 | S97: 呪文無効化＋20％
B98: 勇士の盾 | E98: 25 | G98: 20 | H98: 大盾 | I98: 1 | J98: 0 | S98: 呪文無効化＋20％
B99: 水の盾 | E99: 20 | G99: 25 | H99: 小盾 | I99: 1 | J99: 0 | S99: 呪文無効化＋20％
B100: 勝者の盾 | E100: 25 | G100: 20 | H100: 大盾 | I100: 1 | J100: 0 | S100: 呪文無効化＋20％
B101: 風の盾 | E101: 15 | G101: 30 | H101: 小盾 | I101: 1 | J101: 0 | S101: 呪文無効化＋20％
B102: 挑みの盾 | E102: 25 | G102: 20 | H102: 小盾 | I102: 1 | J102: 0 | S102: 呪文無効化＋20％
B103: 運命の盾 | E103: 40 | G103: 30 | H103: 小盾 | I103: 1 | J103: 0 | S103: 呪文消散＋20％
B104: 心見の盾 | E104: 25 | G104: 15 | H104: 小盾 | I104: 1 | J104: 0 | S104: 呪文無効化＋20％、形状は見る者のレベルにより変わって見える。見る者のレベルが高いほど重装に見える
B105: 嵐の盾 | E105: 25 | G105: 20 | H105: 小盾 | I105: 1 | J105: 0 | S105: 呪文無効化＋20％
B106: 虹の盾 | E106: 20 | G106: 30 | H106: 小盾 | I106: 1 | J106: 0 | S106: 呪文無効化＋20％
B107: 闇狩りの盾 | E107: 15 | G107: 40 | H107: 小盾 | I107: 1 | J107: 0 | S107: 呪文無効化＋20％
B108: 蜃気楼の盾 | E108: 20 | G108: 10 | H108: 小盾 | I108: 1 | J108: 0 | S108: 呪文無効化＋20％
B109: 光の盾 | E109: 100 | G109: 100 | H109: 小盾 | I109: 1 | J109: 0 | S109: 呪文無効化＋20％（ベースの防具が他の呪文への作用を持つ場合、その能力が優先） ベースの防具に他の特殊能力があれば、それを継承
B110: 光の盾 | E110: 100 | G110: 100 | H110: 大盾 | I110: 1 | J110: 0 | S110: 呪文無効化＋20％（ベースの防具が他の呪文への作用を持つ場合、その能力が優先） ベースの防具に他の特殊能力があれば、それを継承
B111: 天使の盾 | E111: 9 | G111: 5 | H111: 大盾 | I111: 3 | J111: 0 | K111: ○ | M111: ○ | N111: ○
B112: 覇気の盾 | E112: 25 | G112: 15 | H112: 小盾 | I112: 1 | J112: 0 | S112: 呪文無効化＋20％、形状は見る者のレベルにより変わって見える。見る者のレベルが高いほど重装に見える
B113: ダーク・シールド | E113: 40 | G113: 20 | H113: 大盾 | I113: 1 | J113: 0 | K113: ○ | M113: ○ | N113: ○ | R113: ○
B114: シールド・オブ・ファング | E114: 10 | G114: 10 | H114: 小盾 | I114: 1 | J114: 0 | K114: ○ | L114: ○ | M114: ○ | N114: ○ | O114: ○ | P114: ○ | Q114: ○ | R114: ○ | S114: 呪文無効化＋8％、装備者が受けたダメージと同量のHPを、攻撃者から減らす
B115: インビジブル・シールド | E115: 30 | G115: 40 | H115: 小盾 | I115: 0 | J115: 0 | K115: ○ | L115: ○ | M115: ○ | N115: ○ | R115: ○ | S115: 呪文無効化＋20％
B116: シールド・オブ・シャドウ | E116: 12 | G116: 20 | H116: 小盾 | I116: 1 | J116: 0 | K116: ○ | L116: ○ | M116: ○ | N116: ○ | R116: ○ | S116: 呪文無効化＋１0％
B117: シールド・オブ・リフレクション | E117: 25 | G117: 50 | H117: 小盾 | I117: 1 | J117: 0 | K117: ○ | N117: ○ | S117: 呪文無効化＋20％
B118: フォルテン・ネイソス | E118: 30 | G118: 20 | H118: 大盾 | I118: 1 | J118: 0 | S118: 呪文無効化＋20％
B119: イヴァクス | E119: 25 | G119: 20 | H119: 小盾 | I119: 5 | J119: 0 | S119: 呪文無効化＋20％、イヴァクス・テュエール専用
B120: 紅闇の盾 | E120: 20 | G120: 20 | H120: 小盾 | I120: 3 | J120: 0 | S120: 呪文無効化＋20％
B121: 盾ダミー18 | E121: 0 | H121: 盾 | I121: 0 | J121: 0
B122: 盾ダミー17 | E122: 0 | H122: 盾 | I122: 0 | J122: 0
B123: 盾ダミー16 | E123: 0 | H123: 盾 | I123: 0 | J123: 0
B124: 盾ダミー15 | E124: 0 | H124: 盾 | I124: 0 | J124: 0
B125: 盾ダミー14 | E125: 0 | H125: 盾 | I125: 0 | J125: 0
B126: 盾ダミー13 | E126: 0 | H126: 盾 | I126: 0 | J126: 0
B127: 盾ダミー12 | E127: 0 | H127: 盾 | I127: 0 | J127: 0
B128: 盾ダミー11 | E128: 0 | H128: 盾 | I128: 0 | J128: 0
B129: 盾ダミー10 | E129: 0 | H129: 盾 | I129: 0 | J129: 0
B130: 盾ダミー9 | E130: 0 | H130: 盾 | I130: 0 | J130: 0
B131: 盾ダミー8 | E131: 0 | H131: 盾 | I131: 0 | J131: 0
B132: 盾ダミー7 | E132: 0 | H132: 盾 | I132: 0 | J132: 0
B133: 盾ダミー6 | E133: 0 | H133: 盾 | I133: 0 | J133: 0
B134: 盾ダミー5 | E134: 0 | H134: 盾 | I134: 0 | J134: 0
B135: 盾ダミー4 | E135: 0 | H135: 盾 | I135: 0 | J135: 0
B136: 盾ダミー3 | E136: 0 | H136: 盾 | I136: 0 | J136: 0
B137: 盾ダミー2 | E137: 0 | H137: 盾 | I137: 0 | J137: 0
B138: 盾ダミー1 | E138: 0 | H138: 盾 | I138: 0 | J138: 0
B139: なし | E139: 0 | H139: 兜 | I139: 0 | J139: 0 | K139: ○ | L139: ○ | M139: ○ | N139: ○ | O139: ○ | P139: ○ | Q139: ○ | R139: ○
B140: コロネット | E140: 1 | H140: 兜 | I140: 1 | J140: 100 | K140: ○ | L140: ○ | M140: ○ | N140: ○ | O140: ○ | P140: ○ | Q140: ○ | R140: ○
B141: レザー・キャップ | E141: 2 | H141: 兜 | I141: 1 | J141: 200 | K141: ○ | L141: ○ | M141: ○ | N141: ○ | O141: ○ | P141: ○ | R141: ○
B142: オープンヘルメット | E142: 3 | H142: 兜 | I142: 3 | J142: 300 | K142: ○ | M142: ○ | N142: ○ | R142: ○
B143: バシネット | E143: 4 | H143: 兜 | I143: 5 | J143: 400 | K143: ○ | L143: ○ | M143: ○ | N143: ○ | P143: ○ | R143: ○
B144: クローズヘルメット | E144: 5 | H144: 兜 | I144: 4 | J144: 500 | K144: ○ | N144: ○
B145: 夕映えの兜 | E145: 9 | H145: 兜 | I145: 1 | J145: 0 | K145: ○ | L145: ○ | M145: ○ | N145: ○
B146: 裁きの兜 | E146: 25 | G146: 20 | H146: 兜 | I146: 1 | J146: 0 | S146: 呪文反射＋20％、所有者…ヴィンセント・エルスドルフ4世
B147: 星灯りの兜 | E147: 20 | G147: 25 | H147: 兜 | I147: 1 | J147: 0 | S147: 呪文無効化＋20％、所有者…ジョフリー・ベルモント2世
B148: 真理の兜 | E148: 20 | G148: 25 | H148: 兜 | I148: 1 | J148: 0 | S148: 呪文無効化＋20％、所有者…ウィルフレッド・レスター
B149: 希望の兜 | E149: 25 | G149: 20 | H149: 兜 | I149: 1 | J149: 0 | S149: 呪文無効化＋20％、所有者…グレイアム・フォルカーク5世
B150: 龍神の兜 | E150: 20 | G150: 25 | H150: 兜 | I150: 1 | J150: 0 | S150: 呪文無効化＋20％、所有者…ネイディーン・メレワース
B151: 霧の兜 | E151: 25 | G151: 20 | H151: 兜 | I151: 1 | J151: 0 | S151: 呪文無効化＋20％、所有者…ウィルバー・ドルトン
B152: 黄金の兜 | E152: 30 | G152: 20 | H152: 兜 | I152: 1 | J152: 0 | S152: 呪文吸収＋20％
B153: 正義の兜 | E153: 15 | G153: 30 | H153: 兜 | I153: 1 | J153: 0 | S153: 呪文無効化＋20％
B154: 勇士の兜 | E154: 25 | G154: 20 | H154: 兜 | I154: 1 | J154: 0 | S154: 呪文無効化＋20％
B155: 水の宝冠 | E155: 20 | G155: 25 | H155: 兜 | I155: 1 | J155: 0 | S155: 呪文無効化＋20％
B156: 勝者の兜 | E156: 25 | G156: 20 | H156: 兜 | I156: 1 | J156: 0 | S156: 呪文無効化＋20％
B157: 風の宝冠 | E157: 15 | G157: 30 | H157: 兜 | I157: 1 | J157: 0 | S157: 呪文無効化＋20％
B158: 挑みの兜 | E158: 25 | G158: 20 | H158: 兜 | I158: 1 | J158: 0 | S158: 呪文無効化＋20％
B159: 運命の兜 | E159: 40 | G159: 30 | H159: 兜 | I159: 1 | J159: 0 | S159: 呪文消散＋20％
B160: 心見の宝冠 | E160: 25 | G160: 15 | H160: 兜 | I160: 1 | J160: 0 | S160: 呪文無効化＋20％、形状は見る者のレベルにより変わって見える。見る者のレベルが高いほど重装に見える
B161: 嵐の兜 | E161: 25 | G161: 20 | H161: 兜 | I161: 1 | J161: 0 | S161: 呪文無効化＋20％
B162: 虹の宝冠 | E162: 20 | G162: 30 | H162: 兜 | I162: 1 | J162: 0 | S162: 呪文無効化＋20％
B163: 闇狩りの宝冠 | E163: 15 | G163: 40 | H163: 兜 | I163: 1 | J163: 0 | S163: 呪文無効化＋20％
B164: 蜃気楼の兜 | E164: 20 | G164: 10 | H164: 兜 | I164: 1 | J164: 0 | S164: 呪文無効化＋20％
B165: 光の兜 | E165: 100 | G165: 100 | H165: 兜 | I165: 1 | J165: 0 | S165: 呪文無効化＋20％（ベースの防具が他の呪文への作用を持つ場合、その能力が優先） ベースの防具に他の特殊能力があれば、それを継承
B166: 光の宝冠 | E166: 100 | G166: 100 | H166: 兜 | I166: 1 | J166: 0 | S166: 呪文無効化＋20％（ベースの防具が他の呪文への作用を持つ場合、その能力が優先） ベースの防具に他の特殊能力があれば、それを継承
B167: 天使の宝冠 | E167: 9 | G167: 5 | H167: 兜 | I167: 1 | J167: 0 | K167: ○ | L167: ○ | M167: ○ | N167: ○ | O167: ○ | P167: ○ | Q167: ○ | R167: ○
B168: 覇気の宝冠 | E168: 25 | G168: 15 | H168: 兜 | I168: 1 | J168: 0 | S168: 呪文無効化＋20％、形状は見る者のレベルにより変わって見える。見る者のレベルが高いほど重装に見える
B169: ダーク・ヘルメット | E169: 40 | G169: 20 | H169: 兜 | I169: 1 | J169: 0 | K169: ○ | N169: ○
B170: コロネット・オブ・ファング | E170: 10 | G170: 10 | H170: 兜 | I170: 1 | J170: 0 | K170: ○ | L170: ○ | M170: ○ | N170: ○ | O170: ○ | P170: ○ | Q170: ○ | R170: ○ | S170: 呪文無効化＋8％、装備者が受けたダメージと同量のHPを、攻撃者から減らす
B171: インビジブル・ヘルメット | E171: 30 | G171: 40 | H171: 兜 | I171: 0 | J171: 0 | K171: ○ | L171: ○ | M171: ○ | N171: ○ | R171: ○ | S171: 呪文無効化＋20％
B172: コロネット・オブ・シャドウ | E172: 12 | G172: 20 | H172: 兜 | I172: 0 | J172: 0 | K172: ○ | L172: ○ | M172: ○ | N172: ○ | R172: ○ | S172: 呪文無効化＋１0％
B173: ヘルメット・オブ・リフレクション | E173: 25 | G173: 50 | H173: 兜 | I173: 1 | J173: 0 | K173: ○ | N173: ○ | S173: 呪文無効化＋20％
B174: フォルテン・ネイソス | E174: 30 | G174: 20 | H174: 兜 | I174: 1 | J174: 0 | S174: 呪文無効化＋20％
B175: イヴァクス | E175: 25 | G175: 20 | H175: 兜 | I175: 5 | J175: 0 | S175: 呪文無効化＋20％、イヴァクス・テュエール専用
B176: 紅闇の兜 | E176: 20 | G176: 20 | H176: 兜 | I176: 3 | J176: 0 | S176: 呪文無効化＋20％
B177: 兜ダミー18 | E177: 0 | H177: 兜 | I177: 0 | J177: 0
B178: 兜ダミー17 | E178: 0 | H178: 兜 | I178: 0 | J178: 0
B179: 兜ダミー16 | E179: 0 | H179: 兜 | I179: 0 | J179: 0
B180: 兜ダミー15 | E180: 0 | H180: 兜 | I180: 0 | J180: 0
B181: 兜ダミー14 | E181: 0 | H181: 兜 | I181: 0 | J181: 0
B182: 兜ダミー13 | E182: 0 | H182: 兜 | I182: 0 | J182: 0
B183: 兜ダミー12 | E183: 0 | H183: 兜 | I183: 0 | J183: 0
B184: 兜ダミー11 | E184: 0 | H184: 兜 | I184: 0 | J184: 0
B185: 兜ダミー10 | E185: 0 | H185: 兜 | I185: 0 | J185: 0
B186: 兜ダミー9 | E186: 0 | H186: 兜 | I186: 0 | J186: 0
B187: 兜ダミー8 | E187: 0 | H187: 兜 | I187: 0 | J187: 0
B188: 兜ダミー7 | E188: 0 | H188: 兜 | I188: 0 | J188: 0
B189: 兜ダミー6 | E189: 0 | H189: 兜 | I189: 0 | J189: 0
B190: 兜ダミー5 | E190: 0 | H190: 兜 | I190: 0 | J190: 0
B191: 兜ダミー4 | E191: 0 | H191: 兜 | I191: 0 | J191: 0
B192: 兜ダミー3 | E192: 0 | H192: 兜 | I192: 0 | J192: 0
B193: 兜ダミー2 | E193: 0 | H193: 兜 | I193: 0 | J193: 0
B194: 兜ダミー1 | E194: 0 | H194: 兜 | I194: 0 | J194: 0
B195: なし | E195: 0 | H195: 籠手 | I195: 0 | J195: 0 | K195: ○ | L195: ○ | M195: ○ | N195: ○ | O195: ○ | P195: ○ | Q195: ○ | R195: ○
B196: グラブズ | E196: 1 | H196: 籠手 | I196: 1 | J196: 100 | K196: ○ | L196: ○ | M196: ○ | N196: ○ | O196: ○ | P196: ○ | Q196: ○ | R196: ○
B197: レザー・グラブズ | E197: 2 | H197: 籠手 | I197: 1 | J197: 200 | K197: ○ | L197: ○ | M197: ○ | N197: ○ | O197: ○ | P197: ○ | R197: ○
B198: ミッツ | E198: 3 | H198: 籠手 | I198: 3 | J198: 300 | K198: ○ | L198: ○ | M198: ○ | N198: ○ | P198: ○ | R198: ○
B199: ブレイサーズ | E199: 4 | H199: 籠手 | I199: 4 | J199: 400 | K199: ○ | M199: ○ | N199: ○ | R199: ○
B200: ガントレッツ | E200: 5 | H200: 籠手 | I200: 5 | J200: 500 | K200: ○ | N200: ○
B201: 夕映えの籠手 | E201: 9 | H201: 籠手 | I201: 1 | J201: 0 | K201: ○ | L201: ○ | M201: ○ | N201: ○
B202: 裁きの籠手 | E202: 25 | G202: 20 | H202: 籠手 | I202: 1 | J202: 0 | S202: 呪文反射＋20％、所有者…ヴィンセント・エルスドルフ4世
B203: 星灯りの籠手 | E203: 20 | G203: 25 | H203: 籠手 | I203: 1 | J203: 0 | S203: 呪文無効化＋20％、所有者…ジョフリー・ベルモント2世
B204: 真理の籠手 | E204: 20 | G204: 25 | H204: 籠手 | I204: 1 | J204: 0 | S204: 呪文無効化＋20％、所有者…ウィルフレッド・レスター
... 154 more rows

Sheet アイテム
B2: アイテム
B3: 名称 | C3: 重量 | D3: 価格
C4: 0 | D4: 0
B5: 油（100ml：ランプで5時間） | C5: 0.1 | D5: 5
B6: ランプ | C6: 0.5 | D6: 30
B7: 火打ち石（一組） | C7: 0.1 | D7: 10
B8: たいまつ | C8: 0.5 | D8: 10
B9: ろうそく | C9: 0.1 | D9: 3
B10: しょく台 | C10: 0.1 | D10: 10
B11: ロープ（10m） | C11: 5 | D11: 20
B12: フック付きロープ（5m） | C12: 3 | D12: 15
B13: 棒（1m） | C13: 0.5 | D13: 5
B14: 布地（4m×4m） | C14: 2 | D14: 40
B15: バックパック | C15: 1 | D15: 20
B16: ポーチ | C16: 0.5 | D16: 10
B17: 宝箱（鍵付き） | C17: 3 | D17: 70
B18: 鍵のスペア | C18: 0.1 | D18: 40
B19: マント | C19: 1 | D19: 10
B20: 服（普段着） | C20: 2 | D20: 50
B21: 服（正装用） | C21: 3 | D21: 100
B22: 靴（一般用） | C22: 0.5 | D22: 30
B23: 麻袋（小） | C23: 0.1 | D23: 5
B24: 麻袋（大） | C24: 0.5 | D24: 15
B25: 食器セット（1人分） | C25: 2 | D25: 50
B26: 携帯食（1日分） | C26: 1 | D26: 30
B27: 水袋（1リットル） | C27: 0.1 | D27: 10
B28: テント（6人用） | C28: 10 | D28: 200
B29: 寝袋 | C29: 2 | D29: 50
B30: 防寒具 | C30: 2 | D30: 40
B31: 馬（馬具付き） | C31: － | D31: 5000
B32: 馬車（4～6頭引き：6人乗り） | C32: － | D32: 5000
B33: 工具セット | C33: 5 | D33: 600
B34: 材木 | C34: 10 | D34: 75
B35: ペン | C35: 0.1 | D35: 5
B36: インク | C36: 0.1 | D36: 5
B37: 画材 | C37: 3 | D37: 100
B38: 紙（20cm×30cm：100枚） | C38: 0.2 | D38: 20
B39: 日時計 | C39: 0.1 | D39: 10
B40: 六分儀 | C40: 2 | D40: 100
B41: 定規（1m） | C41: 0.1 | D41: 10
B42: 巻き尺（5m） | C42: 0.2 | D42: 50
B43: 傷薬（HPを2D20回復） | C43: 0.1 | D43: 100
B44: 解毒薬 | C44: 0.1 | D44: 150
B45: 回復薬（麻痺用） | C45: 0.1 | D45: 200
B46: 包帯 | C46: 0.1 | D46: 15
B47: ダミー54 | C47: 0 | D47: 0
B48: ダミー53 | C48: 0 | D48: 0
B49: ダミー52 | C49: 0 | D49: 0
B50: ダミー51 | C50: 0 | D50: 0
B51: ダミー50 | C51: 0 | D51: 0
B52: ダミー49 | C52: 0 | D52: 0
B53: ダミー48 | C53: 0 | D53: 0
B54: ダミー47 | C54: 0 | D54: 0
B55: ダミー46 | C55: 0 | D55: 0
B56: ダミー45 | C56: 0 | D56: 0
B57: ダミー44 | C57: 0 | D57: 0
B58: ダミー43 | C58: 0 | D58: 0
B59: ダミー42 | C59: 0 | D59: 0
B60: ダミー41 | C60: 0 | D60: 0
B61: ダミー40 | C61: 0 | D61: 0
B62: ダミー39 | C62: 0 | D62: 0
B63: ダミー38 | C63: 0 | D63: 0
B64: ダミー37 | C64: 0 | D64: 0
B65: ダミー36 | C65: 0 | D65: 0
B66: ダミー35 | C66: 0 | D66: 0
B67: ダミー34 | C67: 0 | D67: 0
B68: ダミー33 | C68: 0 | D68: 0
B69: ダミー32 | C69: 0 | D69: 0
B70: ダミー31 | C70: 0 | D70: 0
B71: ダミー30 | C71: 0 | D71: 0
B72: ダミー29 | C72: 0 | D72: 0
B73: ダミー28 | C73: 0 | D73: 0
B74: ダミー27 | C74: 0 | D74: 0
B75: ダミー26 | C75: 0 | D75: 0
B76: ダミー25 | C76: 0 | D76: 0
B77: ダミー24 | C77: 0 | D77: 0
B78: ダミー23 | C78: 0 | D78: 0
B79: ダミー22 | C79: 0 | D79: 0
B80: ダミー21 | C80: 0 | D80: 0
B81: ダミー20 | C81: 0 | D81: 0
B82: ダミー19 | C82: 0 | D82: 0
B83: ダミー18 | C83: 0 | D83: 0
B84: ダミー17 | C84: 0 | D84: 0
B85: ダミー16 | C85: 0 | D85: 0
B86: ダミー15 | C86: 0 | D86: 0
B87: ダミー14 | C87: 0 | D87: 0
B88: ダミー13 | C88: 0 | D88: 0
B89: ダミー12 | C89: 0 | D89: 0
B90: ダミー11 | C90: 0 | D90: 0
B91: ダミー10 | C91: 0 | D91: 0
B92: ダミー9 | C92: 0 | D92: 0
B93: ダミー8 | C93: 0 | D93: 0
B94: ダミー7 | C94: 0 | D94: 0
B95: ダミー6 | C95: 0 | D95: 0
B96: ダミー5 | C96: 0 | D96: 0
B97: ダミー4 | C97: 0 | D97: 0
B98: ダミー3 | C98: 0 | D98: 0
B99: ダミー2 | C99: 0 | D99: 0
B100: ダミー1 | C100: 0 | D100: 0

Sheet 経験値
B2: レベル | C2: 必要経験値 | G2: 呪文№
B3: 到達レベル | C3: 初級戦士系 | D3: 初級術者系 | E3: 上級戦士系 | F3: 上級術者系 | G3: 精霊№ | H3: 神聖№ | I3: 精神№ | J3: 暗黒№
B4: 1 | C4: 0 | D4: 0 | E4: 0 | F4: 0 | G4: 1 | H4: 1 | I4: 1 | J4: 1
B5: 2 | C5: 1000 | D5: 1200 | E5: 1600 | F5: 1400 | G5: 1 | H5: 2 | I5: 2 | J5: 2
B6: 3 | C6: 2000 | D6: 2400 | E6: 3200 | F6: 2800 | G6: 2 | H6: 3 | I6: 3 | J6: 3
B7: 4 | C7: 3000 | D7: 3600 | E7: 4800 | F7: 4200 | G7: 3 | H7: 4 | I7: 4 | J7: 4
B8: 5 | C8: 4500 | D8: 5400 | E8: 7200 | F8: 6300 | G8: 4 | H8: 4 | I8: 4 | J8: 4
B9: 6 | C9: 6700 | D9: 8100 | E9: 10800 | F9: 9400 | G9: 4 | H9: 5 | I9: 5 | J9: 5
B10: 7 | C10: 10000 | D10: 12100 | E10: 16200 | F10: 14100 | G10: 5 | H10: 6 | I10: 6 | J10: 6
B11: 8 | C11: 15000 | D11: 18100 | E11: 24300 | F11: 21100 | G11: 6 | H11: 6 | I11: 6 | J11: 6
B12: 9 | C12: 22500 | D12: 27100 | E12: 36400 | F12: 31600 | G12: 6 | H12: 7 | I12: 7 | J12: 7
B13: 10 | C13: 33700 | D13: 40600 | E13: 54600 | F13: 47400 | G13: 7 | H13: 8 | I13: 8 | J13: 8
B14: 11 | C14: 50500 | D14: 60900 | E14: 81900 | F14: 71100 | G14: 8 | H14: 9 | I14: 9 | J14: 9
B15: 12 | C15: 75700 | D15: 91300 | E15: 122800 | F15: 106600 | G15: 9 | H15: 9 | I15: 9 | J15: 9
B16: 13 | C16: 113500 | D16: 136900 | E16: 184200 | F16: 159900 | G16: 9 | H16: 10 | I16: 10 | J16: 10
B17: 14 | C17: 170200 | D17: 205300 | E17: 300000 | F17: 239800 | G17: 10 | H17: 11 | I17: 11 | J17: 11
B18: 15 | C18: 255300 | D18: 300000 | E18: 400000 | F18: 350000 | G18: 11 | H18: 12 | I18: 12 | J18: 12
B19: 16 | C19: 350000 | D19: 400000 | E19: 500000 | F19: 450000 | G19: 12 | H19: 12 | I19: 12 | J19: 12
B20: 17 | C20: 450000 | D20: 500000 | E20: 600000 | F20: 550000 | G20: 12 | H20: 13 | I20: 13 | J20: 13
B21: 18 | C21: =+C20+100000 -> 550000 | D21: =+D20+100000 -> 600000 | E21: =+E20+100000 -> 700000 | F21: =+F20+100000 -> 650000 | G21: 13 | H21: 14 | I21: 14 | J21: 14
B22: 19 | C22: =+C21+100000 -> 650000 | D22: =+D21+100000 -> 700000 | E22: =+E21+100000 -> 800000 | F22: =+F21+100000 -> 750000 | G22: 14 | H22: 15 | I22: 15 | J22: 15
B23: 20 | C23: 750000 | D23: 800000 | E23: 900000 | F23: 850000 | G23: 15 | H23: 15 | I23: 15 | J23: 15
B24: 21 | C24: 850000 | D24: 900000 | E24: 1000000 | F24: 950000 | G24: 15 | H24: 16 | I24: 16 | J24: 16
B25: 22 | C25: 950000 | D25: 1000000 | E25: 1100000 | F25: 1050000 | G25: 16 | H25: 17 | I25: 17 | J25: 17
B26: 23 | C26: 1050000 | D26: 1100000 | E26: 1200000 | F26: 1150000 | G26: 17 | H26: 17 | I26: 17 | J26: 17
B27: 24 | C27: 1150000 | D27: 1200000 | E27: 1300000 | F27: 1250000 | G27: 17 | H27: 18 | I27: 18 | J27: 18
B28: 25 | C28: 1250000 | D28: 1300000 | E28: 1400000 | F28: 1350000 | G28: 18 | H28: 19 | I28: 19 | J28: 19
B29: 26 | C29: 1350000 | D29: 1400000 | E29: 1500000 | F29: 1450000 | G29: 19 | H29: 19 | I29: 19 | J29: 19
B30: 27 | C30: 1450000 | D30: 1500000 | E30: 1600000 | F30: 1550000 | G30: 19 | H30: 20 | I30: 20 | J30: 20
B31: 28 | C31: 1550000 | D31: 1600000 | E31: 1700000 | F31: 1650000 | G31: 20 | H31: 20 | I31: 20 | J31: 20
B32: 29 | C32: 1650000 | D32: 1700000 | E32: 1800000 | F32: 1750000 | G32: 20 | H32: 21 | I32: 21 | J32: 21
B33: 30 | C33: 1750000 | D33: 1800000 | E33: 1900000 | F33: 1850000 | G33: 21 | H33: 22 | I33: 22 | J33: 22
B34: 31 | C34: 1850000 | D34: 1900000 | E34: 2000000 | F34: 1950000 | G34: 22 | H34: 22 | I34: 22 | J34: 22
B35: 32 | C35: 1950000 | D35: 2000000 | E35: 2100000 | F35: 2050000 | G35: 22 | H35: 23 | I35: 23 | J35: 23
B36: 33 | C36: 2050000 | D36: 2100000 | E36: 2200000 | F36: 2150000 | G36: 23 | H36: 24 | I36: 24 | J36: 24
B37: 34 | C37: 2150000 | D37: 2200000 | E37: 2300000 | F37: 2250000 | G37: 24 | H37: 24 | I37: 24 | J37: 24
B38: 35 | C38: 2250000 | D38: 2300000 | E38: 2400000 | F38: 2350000 | G38: 24 | H38: 25 | I38: 25 | J38: 25
B39: 36 | C39: 2350000 | D39: 2400000 | E39: 2500000 | F39: 2450000 | G39: 25 | H39: 25 | I39: 25 | J39: 25
B40: 37 | C40: 2500000 | D40: 2550000 | E40: 2650000 | F40: 2600000 | G40: 25 | H40: 26 | I40: 26 | J40: 26
B41: 38 | C41: =+C40+150000 -> 2650000 | D41: =+D40+150000 -> 2700000 | E41: =+E40+150000 -> 2800000 | F41: =+F40+150000 -> 2750000 | G41: 26 | H41: 27 | I41: 27 | J41: 27
B42: 39 | C42: =+C41+150000 -> 2800000 | D42: =+D41+150000 -> 2850000 | E42: =+E41+150000 -> 2950000 | F42: =+F41+150000 -> 2900000 | G42: 27 | H42: 28 | I42: 28 | J42: 28
B43: 40 | C43: 2950000 | D43: 3000000 | E43: 3100000 | F43: 3050000 | G43: 28 | H43: 29 | I43: 29 | J43: 29
B44: 41 | C44: 3100000 | D44: 3150000 | E44: 3250000 | F44: 3200000 | G44: 29 | H44: 30 | I44: 30 | J44: 30
B45: 42 | C45: 3250000 | D45: 3300000 | E45: 3400000 | F45: 3350000 | G45: 30 | H45: 31 | I45: 31 | J45: 31
B46: 43 | C46: 3400000 | D46: 3450000 | E46: 3550000 | F46: 3500000 | G46: 31 | H46: 32 | I46: 32 | J46: 32
B47: 44 | C47: 3550000 | D47: 3600000 | E47: 3700000 | F47: 3650000 | G47: 32 | H47: 33 | I47: 33 | J47: 33
B48: 45 | C48: 3700000 | D48: 3750000 | E48: 3850000 | F48: 3800000 | G48: 33 | H48: 34 | I48: 34 | J48: 34
B49: 46 | C49: 3850000 | D49: 3900000 | E49: 4000000 | F49: 3950000 | G49: 34 | H49: 35 | I49: 35 | J49: 35
B50: 47 | C50: 4000000 | D50: 4050000 | E50: 4150000 | F50: 4100000 | G50: 35 | H50: 35 | I50: 35 | J50: 35
B51: 48 | C51: 4150000 | D51: 4200000 | E51: 4300000 | F51: 4250000 | G51: 35 | H51: 35 | I51: 35 | J51: 35
B52: 49 | C52: 4300000 | D52: 4350000 | E52: 4450000 | F52: 4400000 | G52: 35 | H52: 35 | I52: 35 | J52: 35
B53: 50 | C53: 4450000 | D53: 4500000 | E53: 4600000 | F53: 4550000 | G53: 36 | H53: 36 | I53: 36 | J53: 36
B54: 51 | C54: （前のレベルの必要経験値に200,000点ずつ加算） | G54: =+G4+36 -> 37 | H54: 37 | I54: 37 | J54: 37
B55: 52 | G55: 37 | H55: 38 | I55: 38 | J55: 38
B56: 53 | G56: 38 | H56: 39 | I56: 39 | J56: 39
B57: 54 | G57: 39 | H57: 40 | I57: 40 | J57: 40
B58: 55 | G58: 40 | H58: 40 | I58: 40 | J58: 40
B59: 56 | G59: 40 | H59: 41 | I59: 41 | J59: 41
B60: 57 | G60: 41 | H60: 42 | I60: 42 | J60: 42
B61: 58 | G61: 42 | H61: 42 | I61: 42 | J61: 42
B62: 59 | G62: 42 | H62: 43 | I62: 43 | J62: 43
B63: 60 | G63: 43 | H63: 44 | I63: 44 | J63: 44
B64: 61 | G64: 44 | H64: 45 | I64: 45 | J64: 45
B65: 62 | G65: 45 | H65: 45 | I65: 45 | J65: 45
B66: 63 | G66: 45 | H66: 46 | I66: 46 | J66: 46
B67: 64 | G67: 46 | H67: 47 | I67: 47 | J67: 47
B68: 65 | G68: 47 | H68: 48 | I68: 48 | J68: 48
B69: 66 | G69: 48 | H69: 48 | I69: 48 | J69: 48
B70: 67 | G70: 48 | H70: 49 | I70: 49 | J70: 49
B71: 68 | G71: 49 | H71: 50 | I71: 50 | J71: 50
B72: 69 | G72: 50 | H72: 51 | I72: 51 | J72: 51
B73: 70 | G73: 51 | H73: 51 | I73: 51 | J73: 51
B74: 71 | G74: =+G24+36 -> 51 | H74: 52 | I74: 52 | J74: 52
B75: 72 | G75: 52 | H75: 53 | I75: 53 | J75: 53
B76: 73 | G76: 53 | H76: 53 | I76: 53 | J76: 53
B77: 74 | G77: 53 | H77: 54 | I77: 54 | J77: 54
B78: 75 | G78: 54 | H78: 55 | I78: 55 | J78: 55
B79: 76 | G79: 55 | H79: 55 | I79: 55 | J79: 55
B80: 77 | G80: 55 | H80: 56 | I80: 56 | J80: 56
B81: 78 | G81: 56 | H81: 56 | I81: 56 | J81: 56
B82: 79 | G82: 56 | H82: 57 | I82: 57 | J82: 57
B83: 80 | G83: 57 | H83: 58 | I83: 58 | J83: 58
B84: 81 | G84: 58 | H84: 58 | I84: 58 | J84: 58
B85: 82 | G85: 58 | H85: 59 | I85: 59 | J85: 59
B86: 83 | G86: 59 | H86: 60 | I86: 60 | J86: 60
B87: 84 | G87: 60 | H87: 60 | I87: 60 | J87: 60
B88: 85 | G88: 60 | H88: 61 | I88: 61 | J88: 61
B89: 86 | G89: 61 | H89: 61 | I89: 61 | J89: 61
B90: 87 | G90: 61 | H90: 62 | I90: 62 | J90: 62
B91: 88 | G91: 62 | H91: 63 | I91: 63 | J91: 63
B92: 89 | G92: 63 | H92: 64 | I92: 64 | J92: 64
B93: 90 | G93: 64 | H93: 65 | I93: 65 | J93: 65
B94: 91 | G94: =+G44+36 -> 65 | H94: 66 | I94: 66 | J94: 66
B95: 92 | G95: 66 | H95: 67 | I95: 67 | J95: 67
B96: 93 | G96: 67 | H96: 68 | I96: 68 | J96: 68
B97: 94 | G97: 68 | H97: 69 | I97: 69 | J97: 69
B98: 95 | G98: 69 | H98: 70 | I98: 70 | J98: 70
B99: 96 | G99: 70 | H99: 71 | I99: 71 | J99: 71
B100: 97 | G100: 71 | H100: 71 | I100: 71 | J100: 71
B101: 98 | G101: 71 | H101: 71 | I101: 71 | J101: 71
B102: 99 | G102: 71 | H102: 71 | I102: 71 | J102: 71
B103: 100 | G103: 72 | H103: 72 | I103: 72 | J103: 72
